{"text_format":"1","workbook":"xlsx","n_sheets":29,"sheets":["Menu","TSS1","1","TSS2","2","TSS3","3","TSS4","4","TSS5","5","TSS6","6","TSS7","7","TSS8","8","PCS","Stopwatch","Yamazumi1","Yamazumi2","Yamazumi3","Yamazumi4","Yamazumi5","Yamazumi6","Yamazumi7","Yamazumi8","Help","lang"],"not_rendered":{"charts":9,"images":4,"macros":1,"external_links":0,"defined_names":25,"comments":16,"pivot_tables":0},"unopened":[],"bounds":{"document_bytes":16777216,"sheet_cells":100000,"rows_first":2000,"rows_last":500,"rows_between":2000,"halvings":0,"cell_chars":16384,"cell_head_chars":4096},"cells_cut":0,"cells_raw":0,"read":"whole","date_system":"1900"}

{"sheet":"Menu","index":0,"n_rows":200,"n_cols":228,"rows_kept":200,"cut":false,"hidden":false,"merged":[[0,0,0,18],[17,0,17,18],[18,13,20,18]]}
["Standardized Work Analyze Tool\nVideo Capture"]
["Ver.5.0",null,null,null,null,null,null,null,null,null,null,null,"Created by Yaser Ali Husen (yaseralie@gmail.com)",null,null,null,null,null,null,null,"    ",null,null,null,null,null,null,null,null,null,null,null,null,null,null,null,null,null,null,null,null,null,null,null,null,null,null,null,null,null,null,null,null,null,null,null,null,null,null,null,null,null,null,null,null,null,null,null,null,null,null,null,null,null,null,null,null,null,null,null,null,null,null,null,null,null,null,null,null,null,null,null,null,null,null,null,null,null,null,null,null,null,null,null,null,null,null,null,null,null,null,null,null,null,null,null,null,null,null,null,null,null,null,null,null,null,null,null,null,null,null,null,null,null,null,null,null,null,null,null,null,null,null,null,null,null,null,null,null,null,null,null,null,null,null,null,null,null,null,null,null,null,null,null,null,null,null,null,null,null,null,null,null,null,null,null,null,null,null,null,null,null,null,null,null,null,null,null,null,null,null,null,null,null,null,null,null,null,null,null,null,null,null,null,null,null,null,null,null,null,null,null,null,null,null,null,null,null,null,null,null,null,null,null,null,null,null,"PREPARED"]
["First time,Please click Start Button! (This Program is registered only for this Computer, could not be copied or moved to another Computer)"]
["Source :","lean-tool.com",null,null,null,null,null,null,null,null,null,null,null,null,null,null,null,null,null,null,null,null,null,null,null,null,null,{"$f":"SUM(AB6:AB103)","v":0},{"$f":"SUM(AC6:AC103)","v":0},{"$f":"SUM(AD6:AD103)","v":0}]
[]
[]
[]
[null,null,null,null,null,null,null,null,null,null,null," "]
[]
[]
[]
[]
[]
[null,null,null,null,null,null,null,null,null,null,null,null," "]
[]
["*Don’t rename each sheet in this program"]
[]
["Welcome to use Standardized Work Analyze Tool Ver.5.0\nPlease run it only for 1 computer, if you use in different computer,the license will not be valid"]
[null,null,null,null,null,null,null,null,null,null,null,null,null,"If you have a newer version on this computer\nPlease click button below to transfer activation"]
[]
[]
[]
[]
[]
[]
[]
[]
[]
[]
[]
[]
[]
[]
[]
[]
[]
[]
[]
[]
[]
[]
[]
[]
[]
[]
[]
[]
[]
[]
[]
[]
[]
[null,null,null,null,null,"Wait"]
[]
[]
[]
[]
[]
[]
[]
[]
[]
[]
[]
[]
[]
[]
[]
[]
[]
[]
[]
[]
[]
[]
[]
[]
[]
[]
[]
[]
[]
[]
[]
[]
[]
[]
[]
[]
[]
[]
[]
[]
[]
[]
[]
[]
[]
[]
[]
[]
[]
[]
[]
[]
[]
[]
[null,null,null,null,null,null,null,null,null,null,null,null,null,null,null,"2013-09-09T06:58:31"]
[]
[]
[]
[]
[]
[]
[]
[]
[]
[]
[]
[]
[]
[]
[]
[]
[]
[]
[]
[]
[]
[]
[]
[]
[]
[]
[]
[]
[]
[]
[]
[]
[]
[]
[]
[]
[]
[]
[]
[]
[]
[]
[]
[]
[]
[]
[]
[]
[]
[]
[]
[]
[]
[]
[]
[]
[]
[]
[]
[]
[]
[]
[]
[]
[]
[]
[]
[]
[]
[]
[]
[]
[]
[]
[]
[]
[]
[]
[]
[]
[]
[]
[]
[]
[]
[]
[]
[]
[]
[]
[]
[null,null,null,null,null,null,null,null,null,null,null,null,"  "]

{"sheet":"TSS1","index":1,"n_rows":507,"n_cols":66,"rows_kept":507,"cut":false,"hidden":false,"merged":[[25,19,26,19],[25,0,26,0],[25,1,26,1],[25,2,25,16],[25,17,26,17],[25,18,26,18],[3,20,4,20],[3,21,3,25],[3,26,4,26],[21,0,21,1],[1,23,1,25],[2,14,2,16],[2,23,2,25],[3,0,4,0],[3,2,3,16],[3,17,4,17],[3,18,4,18],[3,19,4,19],[1,0,2,1],[1,2,2,5],[1,6,2,13],[1,14,1,16]]}
[null,null,{"$f":"COUNTA(B:B)-1","v":2}]
["PROCESS NAME",null,null,null,null,null,"TIME STUDY SHEET",null,null,null,null,null,null,null,"PART NO",null,null,null,"SECTION LINE",null,null,null,null,"DATE"]
[null,null,null,null,null,null,null,null,null,null,null,null,null,null,"TYPE",null,null,null,"TAKT TIME",null,null,null,null,"MEASURED BY"]
["NO","WORK NAME\nFor walk activity, please write :","Manual Time",null,null,null,null,null,null,null,null,null,null,null,null,null,null,"OPERATION TIME","ADJUSTMENT\n(Will be used for SWCT Line)","OPERATION","MACHINE NO","MACHINE TIME",null,null,null,null,"AUTO \n(MACHINE TIME)",null,null,null,{"$f":"SUM(AE6:AE100)","v":0},{"$f":"SUM(AF6:AF100)","v":0},{"$f":"SUM(AG6:AG100)","v":0}]
[null,"Walk; Walk; walking; return; Return",1,2,3,4,5,6,7,8,9,10,11,12,13,14,15,null,null,null,null,1,2,3,4,5]
[1,null,null,null,null,null,null,null,null,null,null,null,null,null,null,null,null,null,null,null,null,null,null,null,null,null,null,null,null,null,null,null,null,null,null,null,null,null,null,{"$f":"ROUND(C6,0)","v":0},0,0,0,0,0,null,null,null,null,null,null,null,null,null,{"$f":"IF(F6=\"\",\"\",CEILING(F6,0.5))","v":""},"","","","","","","","","","",""]
[{"$f":"+A6+1","v":2},null,null,null,null,null,null,null,null,null,null,null,null,null,null,null,null,null,null,null,null,null,null,null,null,null,null,null,null,null,null,null,null,null,null,null,null,null,null,0,0,0,0,0,0,null,null,null,null,null,null,null,null,null,"","","","","","","","","","","",""]
[3,null,null,null,null,null,null,null,null,null,null,null,null,null,null,null,null,null,null,null,null,null,null,null,null,null,null,null,null,null,null,null,null,null,null,null,null,null,null,0,0,0,0,0,0,null,null,null,null,null,null,null,null,null,"","","","","","","","","","","",""]
[4,null,null,null,null,null,null,null,null,null,null,null,null,null,null,null,null,null,null,null,null,null,null,null,null,null,null,null,null,null,null,null,null,null,null,null,null,null,null,0,0,0,0,0,0,null,null,null,null,null,null,null,null,null,"","","","","","","","","","","",""]
[5,null,null,null,null,null,null,null,null,null,null,null,null,null,null,null,null,null,null,null,null,null,null,null,null,null,null,null,null,null,null,null,null,null,null,null,null,null,null,0,0,0,0,0,0,null,null,null,null,null,null,null,null,null,"","","","","","","","","","","",""]
[6,null,null,null,null,null,null,null,null,null,null,null,null,null,null,null,null,null,null,null,null,null,null,null,null,null,null,null,null,null,null,null,null,null,null,null,null,null,null,0,0,0,0,0,0,null,null,null,null,null,null,null,null,null,"","","","","","","","","","","",""]
[7,null,null,null,null,null,null,null,null,null,null,null,null,null,null,null,null,null,null,null,null,null,null,null,null,null,null,null,null,null,null,null,null,null,null,null,null,null,null,0,0,0,0,0,0,null,null,null,null,null,null,null,null,null,"","","","","","","","","","","",""]
[8,null,null,null,null,null,null,null,null,null,null,null,null,null,null,null,null,null,null,null,null,null,null,null,null,null,null,null,null,null,null,null,null,null,null,null,null,null,null,0,0,0,0,0,0,null,null,null,null,null,null,null,null,null,"","","","","","","","","","","",""]
[9,null,null,null,null,null,null,null,null,null,null,null,null,null,null,null,null,null,null,null,null,null,null,null,null,null,null,null,null,null,null,null,null,null,null,null,null,null,null,null,null,null,null,null,null,null,null,null,null,null,null,null,null,null,"","","","","","","","","","","",""]
[10,null,null,null,null,null,null,null,null,null,null,null,null,null,null,null,null,null,null,null,null,null,null,null,null,null,null,null,null,null,null,null,null,null,null,null,null,null,null,null,null,null,null,null,null,null,null,null,null,null,null,null,null,null,"","","","","","","","","","","",""]
[11,null,null,null,null,null,null,null,null,null,null,null,null,null,null,null,null,null,null,null,null,null,null,null,null,null,null,null,null,null,null,null,null,null,null,null,null,null,null,null,null,null,null,null,null,null,null,null,null,null,null,null,null,null,"","","","","","","","","","","",""]
[12,null,null,null,null,null,null,null,null,null,null,null,null,null,null,null,null,null,null,null,null,null,null,null,null,null,null,null,null,null,null,null,null,null,null,null,null,null,null,null,null,null,null,null,null,null,null,null,null,null,null,null,null,null,"","","","","","","","","","","",""]
[{"$f":"+A17+1","v":13},null,null,null,null,null,null,null,null,null,null,null,null,null,null,null,null,null,null,null,null,null,null,null,null,null,null,null,null,null,null,null,null,null,null,null,null,null,null,null,null,null,null,null,null,null,null,null,null,null,null,null,null,null,"","","","","","","","","","","",""]
[14]
[15]
[16]
["CYCLE TIME",null,{"$f":"IF(SUM(C6:C21)=0,\"\",SUM(C6:C21))","v":""},"","","","","","","","","","","","","",{"$f":"IF(SUM(Q6:Q21)=0,\"\",SUM(Q6:Q21))","v":""},{"$f":"SUM(R6:R21)","v":0},{"$f":"SUM(S6:S21)","v":0},null,null,null,null,null,null,null,null,null,null,null,null,null,null,null,null,null,null,null,null,{"$f":"ROUND(C22,0)","v":{"$error":"#VALUE!"}},{"$error":"#VALUE!"},{"$error":"#VALUE!"},{"$error":"#VALUE!"},{"$error":"#VALUE!"},{"$error":"#VALUE!"}]
[]
[]
["Irregular Work (example : Take new polybox, etc)",null,null,null,null,null,null,null,null,null,null,null,null,null,null,null,null,null,null,{"$f":"COUNTA(B:B)","v":3}]
["NO","Irregular Work","Time",null,null,null,null,null,null,null,null,null,null,null,null,null,null,"Average Time","Piece","Time\n(sec/pc)",null,null,null,null,null,null,null,null,null,null,null,null,null,null,null,null,null,null,null,{"$f":"ROUND(C26,0)","v":{"$error":"#VALUE!"}}]
[null,null,1,2,3,4,5,6,7,8,9,10,11,12,13,14,15,null,null,null,null,null,null,null,null,null,null,null,null,null,null,null,null,null,null,null,null,null,null,{"$f":"ROUND(C27,0)","v":1},{"$f":"ROUND(D27,0)","v":2},3,4,5,6,7,8,9,10,11,12,13,14,15]
[1,null,null,null,null,null,null,null,null,null,null,null,null,null,null,null,null,null,null,null,null,null,null,null,null,null,null,null,null,null,null,null,null,null,null,null,null,null,null,{"$f":"ROUND(C28,0)","v":0},{"$f":"ROUND(D28,0)","v":0}]
[{"$f":"+A28+1","v":2}]
[{"$f":"+A29+1","v":3}]
[{"$f":"+A30+1","v":4}]
[5]
[6]
[7]
[8]
[9]
[10]
[null,null,null,null,null,null,null,null,null,null,null,null,null,null,null,null,null,null,null,{"$f":"SUM(T28:T37)","v":0}]
[]
[]
[]
[]
[]
[]
[]
[]
[]
[]
[]
[]
[]
[]
[]
[]
[]
[]
[]
[]
[]
[]
[]
[]
[]
[]
[]
[]
[]
[]
[]
[]
[]
[]
[]
[]
[]
[]
[]
[]
[]
[]
[]
[]
[]
[]
[]
[]
[]
[]
[]
[]
[]
[]
[]
[]
[]
[]
[]
[]
[]
[]
[]
[]
[]
[]
[]
[]
[]
[]
[]
[]
[]
[]
[]
[]
[]
[]
[]
[]
[]
[]
[]
[]
[]
[]
[]
[]
[]
[]
[]
[]
[]
[]
[]
[]
[]
[]
[]
[]
[]
[]
[]
[]
[]
[]
[]
[]
[]
[]
[]
[]
[]
[]
[]
[]
[]
[]
[]
[]
[]
[]
[]
[]
[]
[]
[]
[]
[]
[]
[]
[]
[]
[]
[]
[]
[]
[]
[]
[]
[]
[]
[]
[]
[]
[]
[]
[]
[]
[]
[]
[]
[]
[]
[]
[]
[]
[]
[]
[]
[]
[]
[]
[]
[]
[]
[]
[]
[]
[]
[]
[]
[]
[]
[]
[]
[]
[]
[]
[]
[]
[]
[]
[]
[]
[]
[]
[]
[]
[]
[]
[]
[]
[]
[]
[]
[]
[]
[]
[]
[]
[]
[]
[]
[]
[]
[]
[]
[]
[]
[]
[]
[]
[]
[]
[]
[]
[]
[]
[]
[]
[]
[]
[]
[]
[]
[]
[]
[]
[]
[]
[]
[]
[]
[]
[]
[]
[]
[]
[]
[]
[]
[]
[]
[]
[]
[]
[]
[]
[]
[]
[]
[]
[]
[]
[]
[]
[]
[]
[]
[]
[]
[]
[]
[]
[]
[]
[]
[]
[]
[]
[]
[]
[]
[]
[]
[]
[]
[]
[]
[]
[]
[]
[]
[]
[]
[]
[]
[]
[]
[]
[]
[]
[]
[]
[]
[]
[]
[]
[]
[]
[]
[]
[]
[]
[]
[]
[]
[]
[]
[]
[]
[]
[]
[]
[]
[]
[]
[]
[]
[]
[]
[]
[]
[]
[]
[]
[]
[]
[]
[]
[]
[]
[]
[]
[]
[]
[]
[]
[]
[]
[]
[]
[]
[]
[]
[]
[]
[]
[]
[]
[]
[]
[]
[]
[]
[]
[]
[]
[]
[]
[]
[]
[]
[]
[]
[]
[]
[]
[]
[]
[]
[]
[]
[]
[]
[]
[]
[]
[]
[]
[]
[]
[]
[]
[]
[]
[]
[]
[]
[]
[]
[]
[]
[]
[]
[]
[]
[]
[]
[]
[]
[]
[]
[]
[]
[]
[]
[]
[]
[]
[]
[]
[]
[]
[]
[]
[]
[]
[]
[]
[]
[]
[]
[]
[]
[]
[]
[]
[]
[]
[]
[]
[]
[]
[]
[]
[]
[]
[]
[]
[]
[]
[]
[]
[]
[]
[]
[]
[]
[]
[]
[]
[]
[]
[]
[]
[]
[]
[]
[]
[]
[]
[]
[]
[]
[]
[]
[null,null,null,null,null,null,null,null,null,null,null,null,null,null,null,null,null,null,10]

{"sheet":"1","index":2,"n_rows":56,"n_cols":228,"rows_kept":56,"cut":false,"hidden":false,"merged":[[5,1,6,3],[40,0,42,0],[16,5,18,5],[7,6,8,6],[18,6,20,6],[40,1,42,3],[40,4,42,4],[16,0,18,0],[13,1,15,3],[16,1,18,3],[16,4,18,4],[40,5,42,5],[42,6,44,6],[43,0,45,0],[43,1,45,3],[43,4,45,4],[43,5,45,5],[45,6,47,6],[28,5,30,5],[34,1,36,3],[34,4,36,4],[34,5,36,5],[10,5,12,5],[15,6,17,6],[1,227,1,246],[2,187,4,206],[2,207,4,226],[2,227,4,246],[13,0,15,0],[5,7,5,246],[2,127,2,156],[1,187,1,206],[1,207,1,226],[13,4,15,4],[13,5,15,5],[1,7,4,126],[2,157,2,186],[3,157,3,186],[4,157,4,186],[3,127,3,156],[4,127,4,156],[1,0,2,1],[1,2,2,6],[3,0,4,1],[3,2,4,6],[5,4,6,4],[5,5,6,5],[5,6,6,6],[1,157,1,186],[36,6,38,6],[37,0,39,0],[37,1,39,3],[37,4,39,4],[37,5,39,5],[39,6,41,6],[7,1,9,3],[7,4,9,4],[19,0,21,0],[19,1,21,3],[19,4,21,4],[19,5,21,5],[21,6,23,6],[22,5,24,5],[24,6,26,6],[25,0,27,0],[25,1,27,3],[25,5,27,5],[10,0,12,0],[10,1,12,3],[10,4,12,4],[1,127,1,156],[5,0,6,0],[57,1,57,246],[51,6,53,6],[52,0,54,0],[52,1,54,3],[55,6,56,6],[49,0,51,0],[49,1,51,3],[49,4,51,4],[48,6,50,6],[55,0,56,3],[55,4,56,4],[52,4,54,4],[52,5,54,5],[49,5,51,5],[46,0,48,0],[46,1,48,3],[46,4,48,4],[46,5,48,5],[25,4,27,4],[9,6,11,6],[12,6,14,6],[27,6,29,6],[22,0,24,0],[22,1,24,3],[22,4,24,4],[28,0,30,0],[28,1,30,3],[28,4,30,4],[30,6,32,6],[31,0,33,0],[31,1,33,3],[31,4,33,4],[31,5,33,5],[33,6,35,6],[34,0,36,0],[7,0,9,0],[7,5,9,5]]}
[2,null,null,null,null,null,null,3.5,0.5]
["PART NO",null,null,null,null,null,null,"STANDARDIZED WORK COMBINATION TABLE SHEET",null,null,null,null,null,null,null,null,null,null,null,null,null,null,null,null,null,null,null,null,null,null,null,null,null,null,null,null,null,null,null,null,null,null,null,null,null,null,null,null,null,null,null,null,null,null,null,null,null,null,null,null,null,null,null,null,null,null,null,null,null,null,null,null,null,null,null,null,null,null,null,null,null,null,null,null,null,null,null,null,null,null,null,null,null,null,null,null,null,null,null,null,null,null,null,null,null,null,null,null,null,null,null,null,null,null,null,null,null,null,null,null,null,null,null,null,null,null,null,"DATE TAKEN",null,null,null,null,null,null,null,null,null,null,null,null,null,null,null,null,null,null,null,null,null,null,null,null,null,null,null,null,null,null,null,null,null,null,null,null,null,null,null,null,null,null,null,null,null,null,null,null,null,null,null,null,null,null,null,null,null,null,null,"APPROVED",null,null,null,null,null,null,null,null,null,null,null,null,null,null,null,null,null,null,null,"CHECKED",null,null,null,null,null,null,null,null,null,null,null,null,null,null,null,null,null,null,null,"PREPARED"]
[null,null,null,null,null,null,null,null,null,null,null,null,null,null,null,null,null,null,null,null,null,null,null,null,null,null,null,null,null,null,null,null,null,null,null,null,null,null,null,null,null,null,null,null,null,null,null,null,null,null,null,null,null,null,null,null,null,null,null,null,null,null,null,null,null,null,null,null,null,null,null,null,null,null,null,null,null,null,null,null,null,null,null,null,null,null,null,null,null,null,null,null,null,null,null,null,null,null,null,null,null,null,null,null,null,null,null,null,null,null,null,null,null,null,null,null,null,null,null,null,null,null,null,null,null,null,null,"PCS / DAY"]
["PROCESS",null,null,null,null,null,null,null,null,null,null,null,null,null,null,null,null,null,null,null,null,null,null,null,null,null,null,null,null,null,null,null,null,null,null,null,null,null,null,null,null,null,null,null,null,null,null,null,null,null,null,null,null,null,null,null,null,null,null,null,null,null,null,null,null,null,null,null,null,null,null,null,null,null,null,null,null,null,null,null,null,null,null,null,null,null,null,null,null,null,null,null,null,null,null,null,null,null,null,null,null,null,null,null,null,null,null,null,null,null,null,null,null,null,null,null,null,null,null,null,null,null,null,null,null,null,null,"LINE TAKT TIME"]
[null,null,null,null,null,null,null,null,null,null,null,null,null,null,null,null,null,null,null,null,null,null,null,null,null,null,null,null,null,null,null,null,null,null,null,null,null,null,null,null,null,null,null,null,null,null,null,null,null,null,null,null,null,null,null,null,null,null,null,null,null,null,null,null,null,null,null,null,null,null,null,null,null,null,null,null,null,null,null,null,null,null,null,null,null,null,null,null,null,null,null,null,null,null,null,null,null,null,null,null,null,null,null,null,null,null,null,null,null,null,null,null,null,null,null,null,null,null,null,null,null,null,null,null,null,null,null,"SECTION / LINE"]
["NO","WORK NAME",null,null,"MAN","AUTO","WALK"]
[]
[]
[]
[]
[]
[]
[]
[]
[]
[]
[]
[]
[]
[]
[]
[]
[]
[]
[]
[]
[]
[]
[]
[]
[]
[]
[]
[]
[]
[]
[]
[]
[]
[]
[]
[]
[]
[]
[]
[]
[]
[]
[]
[]
[]
[]
[]
[]
[]
["TOTAL",null,null,null,{"$f":"SUM(E8:E55)","v":0},"Wait",{"$f":"SUM(G8:G55)","v":0},"akhir"]

{"sheet":"TSS2","index":3,"n_rows":502,"n_cols":66,"rows_kept":502,"cut":false,"hidden":true,"merged":[[21,0,21,1],[25,0,26,0],[25,1,26,1],[25,2,25,16],[25,17,26,17],[25,18,26,18],[25,19,26,19],[3,20,4,20],[3,21,3,25],[3,26,4,26],[1,23,1,25],[2,14,2,16],[2,23,2,25],[3,0,4,0],[3,2,3,16],[3,17,4,17],[3,18,4,18],[3,19,4,19],[1,0,2,1],[1,2,2,5],[1,6,2,13],[1,14,1,16]]}
[null,null,{"$f":"COUNTA(B:B)-1","v":2}]
["PROCESS NAME",null,null,null,null,null,"TIME STUDY SHEET",null,null,null,null,null,null,null,"PART NO",null,null,null,"SECTION LINE",null,null,null,null,"DATE"]
[null,null,null,null,null,null,null,null,null,null,null,null,null,null,"TYPE",null,null,null,"TAKT TIME",null,null,null,null,"MEASURED BY"]
["NO","WORK NAME\nFor walk activity, please write :","Manual Time",null,null,null,null,null,null,null,null,null,null,null,null,null,null,"OPERATION TIME","ADJUSTMENT\n(Will be used for SWCT Line)","OPERATION","MACHINE NO","MACHINE TIME",null,null,null,null,"AUTO \n(MACHINE TIME)",null,null,null,{"$f":"SUM(AE6:AE100)","v":12.59},{"$f":"SUM(AF6:AF100)","v":9.7899999999999991},{"$f":"SUM(AG6:AG100)","v":9.57}]
[null,"Walk; Walk; walking; return; Return",1,2,3,4,5,6,7,8,9,10,11,12,13,14,15,null,null,null,null,1,2,3,4,5]
[1,null,null,null,null,null,null,null,null,null,null,null,null,null,null,null,null,null,null,null,null,null,null,null,null,null,null,null,null,null,2.0099999999999993,1.93,1.92,null,null,null,null,null,null,{"$f":"ROUND(C6,0)","v":0},0,0,0,null,null,null,null,null,null,null,null,null,null,null,{"$f":"IF(F6=\"\",\"\",CEILING(F6,0.5))","v":""},"","","","","","","","","","",""]
[{"$f":"+A6+1","v":2},null,null,null,null,null,null,null,null,null,null,null,null,null,null,null,null,null,null,null,null,null,null,null,null,null,null,null,null,null,2.75,2.0499999999999998,1.9500000000000002,null,null,null,null,null,null,0,0,0,0,null,null,null,null,null,null,null,null,null,null,null,"","","","","","","","","","","",""]
[3,null,null,null,null,null,null,null,null,null,null,null,null,null,null,null,null,null,null,null,null,null,null,null,null,null,null,null,null,null,1.9699999999999998,1.9500000000000002,1.9500000000000002,null,null,null,null,null,null,0,0,0,0,null,null,null,null,null,null,null,null,null,null,null,"","","","","","","","","","","",""]
[4,null,null,null,null,null,null,null,null,null,null,null,null,null,null,null,null,null,null,null,null,null,null,null,null,null,null,null,null,null,3.87,1.94,1.9100000000000001,null,null,null,null,null,null,0,0,0,0,null,null,null,null,null,null,null,null,null,null,null,"","","","","","","","","","","",""]
[5,null,null,null,null,null,null,null,null,null,null,null,null,null,null,null,null,null,null,null,null,null,null,null,null,null,null,null,null,null,1.9899999999999998,1.92,1.8399999999999999,null,null,null,null,null,null,0,0,0,0,null,null,null,null,null,null,null,null,null,null,null,"","","","","","","","","","","",""]
[6,null,null,null,null,null,null,null,null,null,null,null,null,null,null,null,null,null,null,null,null,null,null,null,null,null,null,null,null,null,null,null,null,null,null,null,null,null,null,null,null,null,null,null,null,null,null,null,null,null,null,null,null,null,"","","","","","","","","","","",""]
[7,null,null,null,null,null,null,null,null,null,null,null,null,null,null,null,null,null,null,null,null,null,null,null,null,null,null,null,null,null,null,null,null,null,null,null,null,null,null,null,null,null,null,null,null,null,null,null,null,null,null,null,null,null,"","","","","","","","","","","",""]
[8,null,null,null,null,null,null,null,null,null,null,null,null,null,null,null,null,null,null,null,null,null,null,null,null,null,null,null,null,null,null,null,null,null,null,null,null,null,null,null,null,null,null,null,null,null,null,null,null,null,null,null,null,null,"","","","","","","","","","","",""]
[9,null,null,null,null,null,null,null,null,null,null,null,null,null,null,null,null,null,null,null,null,null,null,null,null,null,null,null,null,null,null,null,null,null,null,null,null,null,null,null,null,null,null,null,null,null,null,null,null,null,null,null,null,null,"","","","","","","","","","","",""]
[10,null,null,null,null,null,null,null,null,null,null,null,null,null,null,null,null,null,null,null,null,null,null,null,null,null,null,null,null,null,null,null,null,null,null,null,null,null,null,null,null,null,null,null,null,null,null,null,null,null,null,null,null,null,"","","","","","","","","","","",""]
[11,null,null,null,null,null,null,null,null,null,null,null,null,null,null,null,null,null,null,null,null,null,null,null,null,null,null,null,null,null,null,null,null,null,null,null,null,null,null,null,null,null,null,null,null,null,null,null,null,null,null,null,null,null,"","","","","","","","","","","",""]
[12,null,null,null,null,null,null,null,null,null,null,null,null,null,null,null,null,null,null,null,null,null,null,null,null,null,null,null,null,null,null,null,null,null,null,null,null,null,null,null,null,null,null,null,null,null,null,null,null,null,null,null,null,null,"","","","","","","","","","","",""]
[{"$f":"+A17+1","v":13},null,null,null,null,null,null,null,null,null,null,null,null,null,null,null,null,null,null,null,null,null,null,null,null,null,null,null,null,null,null,null,null,null,null,null,null,null,null,null,null,null,null,null,null,null,null,null,null,null,null,null,null,null,"","","","","","","","","","","",""]
[14]
[15]
[16]
["CYCLE TIME",null,{"$f":"IF(SUM(C6:C21)=0,\"\",SUM(C6:C21))","v":""},"","","","","","","","","","","","","","",{"$f":"SUM(R6:R21)","v":0},{"$f":"SUM(S6:S21)","v":0},null,null,null,null,null,null,null,null,null,null,null,null,null,null,null,null,null,null,null,null,null,null,null,{"$f":"ROUND(F22,0)","v":{"$error":"#VALUE!"}}]
[]
[]
["Irregular Work (example : Take new polybox, etc)",null,null,null,null,null,null,null,null,null,null,null,null,null,null,null,null,null,null,{"$f":"COUNTA(B:B)","v":3}]
["NO","Irregular Work","Time",null,null,null,null,null,null,null,null,null,null,null,null,null,null,"Average Time","Piece","Time\n(sec/pc)"]
[null,null,1,2,3,4,5,6,7,8,9,10,11,12,13,14,15]
[1]
[{"$f":"+A28+1","v":2}]
[{"$f":"+A29+1","v":3}]
[{"$f":"+A30+1","v":4}]
[{"$f":"+A31+1","v":5}]
[null,null,null,null,null,null,null,null,null,null,null,null,null,null,null,null,null,null,null,{"$f":"SUM(T28:T32)","v":0}]
[]
[]
[]
[]
[]
[]
[]
[]
[]
[]
[]
[]
[]
[]
[]
[]
[]
[]
[]
[]
[]
[]
[]
[]
[]
[]
[]
[]
[]
[]
[]
[]
[]
[]
[]
[]
[]
[]
[]
[]
[]
[]
[]
[]
[]
[]
[]
[]
[]
[]
[]
[]
[]
[]
[]
[]
[]
[]
[]
[]
[]
[]
[]
[]
[]
[]
[]
[]
[]
[]
[]
[]
[]
[]
[]
[]
[]
[]
[]
[]
[]
[]
[]
[]
[]
[]
[]
[]
[]
[]
[]
[]
[]
[]
[]
[]
[]
[]
[]
[]
[]
[]
[]
[]
[]
[]
[]
[]
[]
[]
[]
[]
[]
[]
[]
[]
[]
[]
[]
[]
[]
[]
[]
[]
[]
[]
[]
[]
[]
[]
[]
[]
[]
[]
[]
[]
[]
[]
[]
[]
[]
[]
[]
[]
[]
[]
[]
[]
[]
[]
[]
[]
[]
[]
[]
[]
[]
[]
[]
[]
[]
[]
[]
[]
[]
[]
[]
[]
[]
[]
[]
[]
[]
[]
[]
[]
[]
[]
[]
[]
[]
[]
[]
[]
[]
[]
[]
[]
[]
[]
[]
[]
[]
[]
[]
[]
[]
[]
[]
[]
[]
[]
[]
[]
[]
[]
[]
[]
[]
[]
[]
[]
[]
[]
[]
[]
[]
[]
[]
[]
[]
[]
[]
[]
[]
[]
[]
[]
[]
[]
[]
[]
[]
[]
[]
[]
[]
[]
[]
[]
[]
[]
[]
[]
[]
[]
[]
[]
[]
[]
[]
[]
[]
[]
[]
[]
[]
[]
[]
[]
[]
[]
[]
[]
[]
[]
[]
[]
[]
[]
[]
[]
[]
[]
[]
[]
[]
[]
[]
[]
[]
[]
[]
[]
[]
[]
[]
[]
[]
[]
[]
[]
[]
[]
[]
[]
[]
[]
[]
[]
[]
[]
[]
[]
[]
[]
[]
[]
[]
[]
[]
[]
[]
[]
[]
[]
[]
[]
[]
[]
[]
[]
[]
[]
[]
[]
[]
[]
[]
[]
[]
[]
[]
[]
[]
[]
[]
[]
[]
[]
[]
[]
[]
[]
[]
[]
[]
[]
[]
[]
[]
[]
[]
[]
[]
[]
[]
[]
[]
[]
[]
[]
[]
[]
[]
[]
[]
[]
[]
[]
[]
[]
[]
[]
[]
[]
[]
[]
[]
[]
[]
[]
[]
[]
[]
[]
[]
[]
[]
[]
[]
[]
[]
[]
[]
[]
[]
[]
[]
[]
[]
[]
[]
[]
[]
[]
[]
[]
[]
[]
[]
[]
[]
[]
[]
[]
[]
[]
[]
[]
[]
[]
[]
[]
[]
[]
[]
[]
[]
[]
[]
[]
[]
[]
[]
[]
[]
[]
[]
[]
[]
[]
[]
[]
[]
[]
[]
[]
[]
[]
[]
[]
[]
[]
[]
[]
[]
[]
[]
[]
[]
[]
[]
[]
[]
[]
[]
[]
[null,null,null,null,null,null,null,null,null,null,null,null,null,null,null,null,null,null,10]

{"sheet":"2","index":4,"n_rows":56,"n_cols":228,"rows_kept":56,"cut":false,"hidden":true,"merged":[[57,1,57,246],[51,6,53,6],[55,6,56,6],[45,6,47,6],[39,6,41,6],[2,157,2,186],[3,127,3,156],[3,157,3,186],[4,127,4,156],[4,157,4,186],[1,0,2,1],[1,2,2,6],[3,0,4,1],[3,2,4,6],[1,127,1,156],[55,0,56,3],[55,4,56,4],[46,0,48,0],[46,1,48,3],[46,4,48,4],[2,127,2,156],[1,227,1,246],[2,187,4,206],[2,207,4,226],[46,5,48,5],[48,6,50,6],[49,0,51,0],[49,1,51,3],[49,4,51,4],[49,5,51,5],[33,6,35,6],[52,0,54,0],[52,1,54,3],[52,4,54,4],[52,5,54,5],[40,0,42,0],[40,1,42,3],[40,4,42,4],[40,5,42,5],[42,6,44,6],[43,0,45,0],[43,1,45,3],[43,4,45,4],[43,5,45,5],[34,0,36,0],[34,1,36,3],[34,4,36,4],[34,5,36,5],[36,6,38,6],[37,0,39,0],[37,1,39,3],[37,4,39,4],[37,5,39,5],[22,5,24,5],[24,6,26,6],[25,0,27,0],[25,1,27,3],[25,4,27,4],[25,5,27,5],[27,6,29,6],[28,0,30,0],[28,1,30,3],[28,4,30,4],[28,5,30,5],[30,6,32,6],[31,0,33,0],[31,1,33,3],[31,4,33,4],[31,5,33,5],[16,0,18,0],[16,1,18,3],[16,4,18,4],[16,5,18,5],[18,6,20,6],[19,0,21,0],[19,1,21,3],[19,4,21,4],[19,5,21,5],[21,6,23,6],[22,0,24,0],[22,1,24,3],[22,4,24,4],[15,6,17,6],[1,207,1,226],[1,7,4,126],[1,187,1,206],[5,0,6,0],[5,1,6,3],[5,4,6,4],[5,5,6,5],[5,6,6,6],[5,7,5,246],[2,227,4,246],[1,157,1,186],[7,0,9,0],[7,1,9,3],[7,4,9,4],[7,5,9,5],[7,6,8,6],[9,6,11,6],[13,0,15,0],[13,1,15,3],[13,4,15,4],[13,5,15,5],[12,6,14,6],[10,0,12,0],[10,1,12,3],[10,4,12,4],[10,5,12,5]]}
[2,null,null,null,null,null,null,null,0.5]
["PART NO",null,null,null,null,null,null,"STANDARDIZED WORK COMBINATION TABLE SHEET",null,null,null,null,null,null,null,null,null,null,null,null,null,null,null,null,null,null,null,null,null,null,null,null,null,null,null,null,null,null,null,null,null,null,null,null,null,null,null,null,null,null,null,null,null,null,null,null,null,null,null,null,null,null,null,null,null,null,null,null,null,null,null,null,null,null,null,null,null,null,null,null,null,null,null,null,null,null,null,null,null,null,null,null,null,null,null,null,null,null,null,null,null,null,null,null,null,null,null,null,null,null,null,null,null,null,null,null,null,null,null,null,null,null,null,null,null,null,null,"DATE TAKEN",null,null,null,null,null,null,null,null,null,null,null,null,null,null,null,null,null,null,null,null,null,null,null,null,null,null,null,null,null,null,null,null,null,null,null,null,null,null,null,null,null,null,null,null,null,null,null,null,null,null,null,null,null,null,null,null,null,null,null,"APPROVED",null,null,null,null,null,null,null,null,null,null,null,null,null,null,null,null,null,null,null,"CHECKED",null,null,null,null,null,null,null,null,null,null,null,null,null,null,null,null,null,null,null,"PREPARED"]
[null,null,null,null,null,null,null,null,null,null,null,null,null,null,null,null,null,null,null,null,null,null,null,null,null,null,null,null,null,null,null,null,null,null,null,null,null,null,null,null,null,null,null,null,null,null,null,null,null,null,null,null,null,null,null,null,null,null,null,null,null,null,null,null,null,null,null,null,null,null,null,null,null,null,null,null,null,null,null,null,null,null,null,null,null,null,null,null,null,null,null,null,null,null,null,null,null,null,null,null,null,null,null,null,null,null,null,null,null,null,null,null,null,null,null,null,null,null,null,null,null,null,null,null,null,null,null,"PCS / DAY"]
["PROCESS",null,null,null,null,null,null,null,null,null,null,null,null,null,null,null,null,null,null,null,null,null,null,null,null,null,null,null,null,null,null,null,null,null,null,null,null,null,null,null,null,null,null,null,null,null,null,null,null,null,null,null,null,null,null,null,null,null,null,null,null,null,null,null,null,null,null,null,null,null,null,null,null,null,null,null,null,null,null,null,null,null,null,null,null,null,null,null,null,null,null,null,null,null,null,null,null,null,null,null,null,null,null,null,null,null,null,null,null,null,null,null,null,null,null,null,null,null,null,null,null,null,null,null,null,null,null,"LINE TAKT TIME"]
[null,null,null,null,null,null,null,null,null,null,null,null,null,null,null,null,null,null,null,null,null,null,null,null,null,null,null,null,null,null,null,null,null,null,null,null,null,null,null,null,null,null,null,null,null,null,null,null,null,null,null,null,null,null,null,null,null,null,null,null,null,null,null,null,null,null,null,null,null,null,null,null,null,null,null,null,null,null,null,null,null,null,null,null,null,null,null,null,null,null,null,null,null,null,null,null,null,null,null,null,null,null,null,null,null,null,null,null,null,null,null,null,null,null,null,null,null,null,null,null,null,null,null,null,null,null,null,"SECTION / LINE"]
["NO","WORK NAME",null,null,"MAN","AUTO","WALK"]
[]
[]
[]
[]
[]
[]
[]
[]
[]
[]
[]
[]
[]
[]
[]
[]
[]
[]
[]
[]
[]
[]
[]
[]
[]
[]
[]
[]
[]
[]
[]
[]
[]
[]
[]
[]
[]
[]
[]
[]
[]
[]
[]
[]
[]
[]
[]
[]
[]
["TOTAL",null,null,null,{"$f":"SUM(E8:E55)","v":0},"Wait",{"$f":"SUM(G8:G55)","v":0},"akhir"]

{"sheet":"TSS3","index":5,"n_rows":502,"n_cols":66,"rows_kept":502,"cut":false,"hidden":true,"merged":[[21,0,21,1],[25,0,26,0],[25,1,26,1],[25,2,25,16],[25,17,26,17],[25,18,26,18],[25,19,26,19],[3,20,4,20],[3,21,3,25],[3,26,4,26],[1,23,1,25],[2,14,2,16],[2,23,2,25],[3,0,4,0],[3,2,3,16],[3,17,4,17],[3,18,4,18],[3,19,4,19],[1,0,2,1],[1,2,2,5],[1,6,2,13],[1,14,1,16]]}
[null,null,{"$f":"COUNTA(B:B)-1","v":2}]
["PROCESS NAME",null,null,null,null,null,"TIME STUDY SHEET",null,null,null,null,null,null,null,"PART NO",null,null,null,"SECTION LINE",null,null,null,null,"DATE"]
[null,null,null,null,null,null,null,null,null,null,null,null,null,null,"TYPE",null,null,null,"TAKT TIME",null,null,null,null,"MEASURED BY"]
["NO","WORK NAME\nFor walk activity, please write :","Manual Time",null,null,null,null,null,null,null,null,null,null,null,null,null,null,"OPERATION TIME","ADJUSTMENT\n(Will be used for SWCT Line)","OPERATION","MACHINE NO","MACHINE TIME",null,null,null,null,"AUTO \n(MACHINE TIME)",null,null,null,{"$f":"SUM(AE6:AE100)","v":12.59},{"$f":"SUM(AF6:AF100)","v":9.7899999999999991},{"$f":"SUM(AG6:AG100)","v":9.57}]
[null,"Walk; Walk; walking; return; Return",1,2,3,4,5,6,7,8,9,10,11,12,13,14,15,null,null,null,null,1,2,3,4,5]
[1,null,null,null,null,null,null,null,null,null,null,null,null,null,null,null,null,null,null,null,null,null,null,null,null,null,null,null,null,null,2.0099999999999993,1.93,1.92,null,null,null,null,null,null,{"$f":"ROUND(C6,0)","v":0},0,0,0,null,null,null,null,null,null,null,null,null,null,null,{"$f":"IF(F6=\"\",\"\",CEILING(F6,0.5))","v":""},"","","","","","","","","","",""]
[{"$f":"+A6+1","v":2},null,null,null,null,null,null,null,null,null,null,null,null,null,null,null,null,null,null,null,null,null,null,null,null,null,null,null,null,null,2.75,2.0499999999999998,1.9500000000000002,null,null,null,null,null,null,0,0,0,0,null,null,null,null,null,null,null,null,null,null,null,"","","","","","","","","","","",""]
[3,null,null,null,null,null,null,null,null,null,null,null,null,null,null,null,null,null,null,null,null,null,null,null,null,null,null,null,null,null,1.9699999999999998,1.9500000000000002,1.9500000000000002,null,null,null,null,null,null,0,0,0,0,null,null,null,null,null,null,null,null,null,null,null,"","","","","","","","","","","",""]
[4,null,null,null,null,null,null,null,null,null,null,null,null,null,null,null,null,null,null,null,null,null,null,null,null,null,null,null,null,null,3.87,1.94,1.9100000000000001,null,null,null,null,null,null,0,0,0,0,null,null,null,null,null,null,null,null,null,null,null,"","","","","","","","","","","",""]
[5,null,null,null,null,null,null,null,null,null,null,null,null,null,null,null,null,null,null,null,null,null,null,null,null,null,null,null,null,null,1.9899999999999998,1.92,1.8399999999999999,null,null,null,null,null,null,0,0,0,0,null,null,null,null,null,null,null,null,null,null,null,"","","","","","","","","","","",""]
[6,null,null,null,null,null,null,null,null,null,null,null,null,null,null,null,null,null,null,null,null,null,null,null,null,null,null,null,null,null,null,null,null,null,null,null,null,null,null,null,null,null,null,null,null,null,null,null,null,null,null,null,null,null,"","","","","","","","","","","",""]
[7,null,null,null,null,null,null,null,null,null,null,null,null,null,null,null,null,null,null,null,null,null,null,null,null,null,null,null,null,null,null,null,null,null,null,null,null,null,null,null,null,null,null,null,null,null,null,null,null,null,null,null,null,null,"","","","","","","","","","","",""]
[8,null,null,null,null,null,null,null,null,null,null,null,null,null,null,null,null,null,null,null,null,null,null,null,null,null,null,null,null,null,null,null,null,null,null,null,null,null,null,null,null,null,null,null,null,null,null,null,null,null,null,null,null,null,"","","","","","","","","","","",""]
[9,null,null,null,null,null,null,null,null,null,null,null,null,null,null,null,null,null,null,null,null,null,null,null,null,null,null,null,null,null,null,null,null,null,null,null,null,null,null,null,null,null,null,null,null,null,null,null,null,null,null,null,null,null,"","","","","","","","","","","",""]
[10,null,null,null,null,null,null,null,null,null,null,null,null,null,null,null,null,null,null,null,null,null,null,null,null,null,null,null,null,null,null,null,null,null,null,null,null,null,null,null,null,null,null,null,null,null,null,null,null,null,null,null,null,null,"","","","","","","","","","","",""]
[11,null,null,null,null,null,null,null,null,null,null,null,null,null,null,null,null,null,null,null,null,null,null,null,null,null,null,null,null,null,null,null,null,null,null,null,null,null,null,null,null,null,null,null,null,null,null,null,null,null,null,null,null,null,"","","","","","","","","","","",""]
[12,null,null,null,null,null,null,null,null,null,null,null,null,null,null,null,null,null,null,null,null,null,null,null,null,null,null,null,null,null,null,null,null,null,null,null,null,null,null,null,null,null,null,null,null,null,null,null,null,null,null,null,null,null,"","","","","","","","","","","",""]
[{"$f":"+A17+1","v":13},null,null,null,null,null,null,null,null,null,null,null,null,null,null,null,null,null,null,null,null,null,null,null,null,null,null,null,null,null,null,null,null,null,null,null,null,null,null,null,null,null,null,null,null,null,null,null,null,null,null,null,null,null,"","","","","","","","","","","",""]
[14]
[15]
[16]
["CYCLE TIME",null,{"$f":"IF(SUM(C6:C21)=0,\"\",SUM(C6:C21))","v":""},"","","","","","","","","","","","","","",{"$f":"SUM(R6:R21)","v":0},{"$f":"SUM(S6:S21)","v":0},null,null,null,null,null,null,null,null,null,null,null,null,null,null,null,null,null,null,null,null,null,null,null,{"$f":"ROUND(F22,0)","v":{"$error":"#VALUE!"}}]
[]
[]
["Irregular Work (example : Take new polybox, etc)",null,null,null,null,null,null,null,null,null,null,null,null,null,null,null,null,null,null,{"$f":"COUNTA(B:B)","v":3}]
["NO","Irregular Work","Time",null,null,null,null,null,null,null,null,null,null,null,null,null,null,"Average Time","Piece","Time\n(sec/pc)"]
[null,null,1,2,3,4,5,6,7,8,9,10,11,12,13,14,15]
[1]
[{"$f":"+A28+1","v":2}]
[{"$f":"+A29+1","v":3}]
[{"$f":"+A30+1","v":4}]
[{"$f":"+A31+1","v":5}]
[null,null,null,null,null,null,null,null,null,null,null,null,null,null,null,null,null,null,null,{"$f":"SUM(T28:T32)","v":0}]
[]
[]
[]
[]
[]
[]
[]
[]
[]
[]
[]
[]
[]
[]
[]
[]
[]
[]
[]
[]
[]
[]
[]
[]
[]
[]
[]
[]
[]
[]
[]
[]
[]
[]
[]
[]
[]
[]
[]
[]
[]
[]
[]
[]
[]
[]
[]
[]
[]
[]
[]
[]
[]
[]
[]
[]
[]
[]
[]
[]
[]
[]
[]
[]
[]
[]
[]
[]
[]
[]
[]
[]
[]
[]
[]
[]
[]
[]
[]
[]
[]
[]
[]
[]
[]
[]
[]
[]
[]
[]
[]
[]
[]
[]
[]
[]
[]
[]
[]
[]
[]
[]
[]
[]
[]
[]
[]
[]
[]
[]
[]
[]
[]
[]
[]
[]
[]
[]
[]
[]
[]
[]
[]
[]
[]
[]
[]
[]
[]
[]
[]
[]
[]
[]
[]
[]
[]
[]
[]
[]
[]
[]
[]
[]
[]
[]
[]
[]
[]
[]
[]
[]
[]
[]
[]
[]
[]
[]
[]
[]
[]
[]
[]
[]
[]
[]
[]
[]
[]
[]
[]
[]
[]
[]
[]
[]
[]
[]
[]
[]
[]
[]
[]
[]
[]
[]
[]
[]
[]
[]
[]
[]
[]
[]
[]
[]
[]
[]
[]
[]
[]
[]
[]
[]
[]
[]
[]
[]
[]
[]
[]
[]
[]
[]
[]
[]
[]
[]
[]
[]
[]
[]
[]
[]
[]
[]
[]
[]
[]
[]
[]
[]
[]
[]
[]
[]
[]
[]
[]
[]
[]
[]
[]
[]
[]
[]
[]
[]
[]
[]
[]
[]
[]
[]
[]
[]
[]
[]
[]
[]
[]
[]
[]
[]
[]
[]
[]
[]
[]
[]
[]
[]
[]
[]
[]
[]
[]
[]
[]
[]
[]
[]
[]
[]
[]
[]
[]
[]
[]
[]
[]
[]
[]
[]
[]
[]
[]
[]
[]
[]
[]
[]
[]
[]
[]
[]
[]
[]
[]
[]
[]
[]
[]
[]
[]
[]
[]
[]
[]
[]
[]
[]
[]
[]
[]
[]
[]
[]
[]
[]
[]
[]
[]
[]
[]
[]
[]
[]
[]
[]
[]
[]
[]
[]
[]
[]
[]
[]
[]
[]
[]
[]
[]
[]
[]
[]
[]
[]
[]
[]
[]
[]
[]
[]
[]
[]
[]
[]
[]
[]
[]
[]
[]
[]
[]
[]
[]
[]
[]
[]
[]
[]
[]
[]
[]
[]
[]
[]
[]
[]
[]
[]
[]
[]
[]
[]
[]
[]
[]
[]
[]
[]
[]
[]
[]
[]
[]
[]
[]
[]
[]
[]
[]
[]
[]
[]
[]
[]
[]
[]
[]
[]
[]
[]
[]
[]
[]
[]
[]
[]
[]
[]
[]
[]
[]
[]
[]
[]
[]
[]
[]
[]
[]
[]
[]
[]
[]
[]
[]
[]
[]
[]
[]
[]
[]
[]
[]
[]
[]
[]
[]
[]
[]
[]
[]
[]
[]
[]
[null,null,null,null,null,null,null,null,null,null,null,null,null,null,null,null,null,null,10]

{"sheet":"3","index":6,"n_rows":56,"n_cols":228,"rows_kept":56,"cut":false,"hidden":true,"merged":[[1,0,2,1],[1,2,2,6],[3,0,4,1],[3,2,4,6],[1,127,1,156],[2,127,2,156],[3,127,3,156],[4,127,4,156],[1,7,4,126],[1,227,1,246],[2,187,4,206],[2,157,2,186],[3,157,3,186],[2,207,4,226],[2,227,4,246],[1,207,1,226],[1,187,1,206],[4,157,4,186],[1,157,1,186],[57,1,57,246],[51,6,53,6],[55,6,56,6],[52,0,54,0],[52,1,54,3],[52,4,54,4],[52,5,54,5],[55,0,56,3],[55,4,56,4],[46,0,48,0],[46,1,48,3],[46,4,48,4],[46,5,48,5],[48,6,50,6],[49,0,51,0],[49,1,51,3],[49,4,51,4],[49,5,51,5],[31,1,33,3],[31,4,33,4],[31,5,33,5],[33,6,35,6],[34,0,36,0],[34,1,36,3],[34,4,36,4],[34,5,36,5],[36,6,38,6],[37,0,39,0],[37,1,39,3],[37,4,39,4],[37,5,39,5],[39,6,41,6],[40,0,42,0],[40,1,42,3],[40,4,42,4],[40,5,42,5],[42,6,44,6],[43,0,45,0],[43,1,45,3],[43,4,45,4],[43,5,45,5],[45,6,47,6],[5,7,5,246],[7,0,9,0],[7,1,9,3],[7,4,9,4],[7,5,9,5],[7,6,8,6],[9,6,11,6],[13,0,15,0],[13,1,15,3],[13,4,15,4],[13,5,15,5],[12,6,14,6],[10,0,12,0],[10,1,12,3],[10,4,12,4],[10,5,12,5],[15,6,17,6],[5,0,6,0],[5,1,6,3],[5,4,6,4],[5,5,6,5],[5,6,6,6],[16,0,18,0],[16,1,18,3],[16,4,18,4],[16,5,18,5],[18,6,20,6],[19,0,21,0],[19,1,21,3],[19,4,21,4],[19,5,21,5],[21,6,23,6],[22,0,24,0],[22,1,24,3],[22,4,24,4],[22,5,24,5],[24,6,26,6],[25,0,27,0],[25,1,27,3],[25,4,27,4],[25,5,27,5],[27,6,29,6],[28,0,30,0],[28,1,30,3],[28,4,30,4],[28,5,30,5],[30,6,32,6],[31,0,33,0]]}
[2,null,null,null,null,null,null,null,0.5]
["PART NO",null,null,null,null,null,null,"STANDARDIZED WORK COMBINATION TABLE SHEET",null,null,null,null,null,null,null,null,null,null,null,null,null,null,null,null,null,null,null,null,null,null,null,null,null,null,null,null,null,null,null,null,null,null,null,null,null,null,null,null,null,null,null,null,null,null,null,null,null,null,null,null,null,null,null,null,null,null,null,null,null,null,null,null,null,null,null,null,null,null,null,null,null,null,null,null,null,null,null,null,null,null,null,null,null,null,null,null,null,null,null,null,null,null,null,null,null,null,null,null,null,null,null,null,null,null,null,null,null,null,null,null,null,null,null,null,null,null,null,"DATE TAKEN",null,null,null,null,null,null,null,null,null,null,null,null,null,null,null,null,null,null,null,null,null,null,null,null,null,null,null,null,null,null,null,null,null,null,null,null,null,null,null,null,null,null,null,null,null,null,null,null,null,null,null,null,null,null,null,null,null,null,null,"APPROVED",null,null,null,null,null,null,null,null,null,null,null,null,null,null,null,null,null,null,null,"CHECKED",null,null,null,null,null,null,null,null,null,null,null,null,null,null,null,null,null,null,null,"PREPARED"]
[null,null,null,null,null,null,null,null,null,null,null,null,null,null,null,null,null,null,null,null,null,null,null,null,null,null,null,null,null,null,null,null,null,null,null,null,null,null,null,null,null,null,null,null,null,null,null,null,null,null,null,null,null,null,null,null,null,null,null,null,null,null,null,null,null,null,null,null,null,null,null,null,null,null,null,null,null,null,null,null,null,null,null,null,null,null,null,null,null,null,null,null,null,null,null,null,null,null,null,null,null,null,null,null,null,null,null,null,null,null,null,null,null,null,null,null,null,null,null,null,null,null,null,null,null,null,null,"PCS / DAY"]
["PROCESS",null,null,null,null,null,null,null,null,null,null,null,null,null,null,null,null,null,null,null,null,null,null,null,null,null,null,null,null,null,null,null,null,null,null,null,null,null,null,null,null,null,null,null,null,null,null,null,null,null,null,null,null,null,null,null,null,null,null,null,null,null,null,null,null,null,null,null,null,null,null,null,null,null,null,null,null,null,null,null,null,null,null,null,null,null,null,null,null,null,null,null,null,null,null,null,null,null,null,null,null,null,null,null,null,null,null,null,null,null,null,null,null,null,null,null,null,null,null,null,null,null,null,null,null,null,null,"LINE TAKT TIME"]
[null,null,null,null,null,null,null,null,null,null,null,null,null,null,null,null,null,null,null,null,null,null,null,null,null,null,null,null,null,null,null,null,null,null,null,null,null,null,null,null,null,null,null,null,null,null,null,null,null,null,null,null,null,null,null,null,null,null,null,null,null,null,null,null,null,null,null,null,null,null,null,null,null,null,null,null,null,null,null,null,null,null,null,null,null,null,null,null,null,null,null,null,null,null,null,null,null,null,null,null,null,null,null,null,null,null,null,null,null,null,null,null,null,null,null,null,null,null,null,null,null,null,null,null,null,null,null,"SECTION / LINE"]
["NO","WORK NAME",null,null,"MAN","AUTO","WALK"]
[]
[]
[]
[]
[]
[]
[]
[]
[]
[]
[]
[]
[]
[]
[]
[]
[]
[]
[]
[]
[]
[]
[]
[]
[]
[]
[]
[]
[]
[]
[]
[]
[]
[]
[]
[]
[]
[]
[]
[]
[]
[]
[]
[]
[]
[]
[]
[]
[]
["TOTAL",null,null,null,{"$f":"SUM(E8:E55)","v":0},"Wait",{"$f":"SUM(G8:G55)","v":0},"akhir"]

{"sheet":"TSS4","index":7,"n_rows":502,"n_cols":66,"rows_kept":502,"cut":false,"hidden":true,"merged":[[21,0,21,1],[25,0,26,0],[25,1,26,1],[25,2,25,16],[25,17,26,17],[25,18,26,18],[25,19,26,19],[3,20,4,20],[3,21,3,25],[3,26,4,26],[1,23,1,25],[2,14,2,16],[2,23,2,25],[3,0,4,0],[3,2,3,16],[3,17,4,17],[3,18,4,18],[3,19,4,19],[1,0,2,1],[1,2,2,5],[1,6,2,13],[1,14,1,16]]}
[null,null,{"$f":"COUNTA(B:B)-1","v":2}]
["PROCESS NAME",null,null,null,null,null,"TIME STUDY SHEET",null,null,null,null,null,null,null,"PART NO",null,null,null,"SECTION LINE",null,null,null,null,"DATE"]
[null,null,null,null,null,null,null,null,null,null,null,null,null,null,"TYPE",null,null,null,"TAKT TIME",null,null,null,null,"MEASURED BY"]
["NO","WORK NAME\nFor walk activity, please write :","Manual Time",null,null,null,null,null,null,null,null,null,null,null,null,null,null,"OPERATION TIME","ADJUSTMENT\n(Will be used for SWCT Line)","OPERATION","MACHINE NO","MACHINE TIME",null,null,null,null,"AUTO \n(MACHINE TIME)",null,null,null,{"$f":"SUM(AE6:AE100)","v":12.59},{"$f":"SUM(AF6:AF100)","v":9.7899999999999991},{"$f":"SUM(AG6:AG100)","v":9.57}]
[null,"Walk; Walk; walking; return; Return",1,2,3,4,5,6,7,8,9,10,11,12,13,14,15,null,null,null,null,1,2,3,4,5]
[1,null,null,null,null,null,null,null,null,null,null,null,null,null,null,null,null,null,null,null,null,null,null,null,null,null,null,null,null,null,2.0099999999999993,1.93,1.92,null,null,null,null,null,null,{"$f":"ROUND(C6,0)","v":0},0,0,0,null,null,null,null,null,null,null,null,null,null,null,{"$f":"IF(F6=\"\",\"\",CEILING(F6,0.5))","v":""},"","","","","","","","","","",""]
[{"$f":"+A6+1","v":2},null,null,null,null,null,null,null,null,null,null,null,null,null,null,null,null,null,null,null,null,null,null,null,null,null,null,null,null,null,2.75,2.0499999999999998,1.9500000000000002,null,null,null,null,null,null,0,0,0,0,null,null,null,null,null,null,null,null,null,null,null,"","","","","","","","","","","",""]
[3,null,null,null,null,null,null,null,null,null,null,null,null,null,null,null,null,null,null,null,null,null,null,null,null,null,null,null,null,null,1.9699999999999998,1.9500000000000002,1.9500000000000002,null,null,null,null,null,null,0,0,0,0,null,null,null,null,null,null,null,null,null,null,null,"","","","","","","","","","","",""]
[4,null,null,null,null,null,null,null,null,null,null,null,null,null,null,null,null,null,null,null,null,null,null,null,null,null,null,null,null,null,3.87,1.94,1.9100000000000001,null,null,null,null,null,null,0,0,0,0,null,null,null,null,null,null,null,null,null,null,null,"","","","","","","","","","","",""]
[5,null,null,null,null,null,null,null,null,null,null,null,null,null,null,null,null,null,null,null,null,null,null,null,null,null,null,null,null,null,1.9899999999999998,1.92,1.8399999999999999,null,null,null,null,null,null,0,0,0,0,null,null,null,null,null,null,null,null,null,null,null,"","","","","","","","","","","",""]
[6,null,null,null,null,null,null,null,null,null,null,null,null,null,null,null,null,null,null,null,null,null,null,null,null,null,null,null,null,null,null,null,null,null,null,null,null,null,null,null,null,null,null,null,null,null,null,null,null,null,null,null,null,null,"","","","","","","","","","","",""]
[7,null,null,null,null,null,null,null,null,null,null,null,null,null,null,null,null,null,null,null,null,null,null,null,null,null,null,null,null,null,null,null,null,null,null,null,null,null,null,null,null,null,null,null,null,null,null,null,null,null,null,null,null,null,"","","","","","","","","","","",""]
[8,null,null,null,null,null,null,null,null,null,null,null,null,null,null,null,null,null,null,null,null,null,null,null,null,null,null,null,null,null,null,null,null,null,null,null,null,null,null,null,null,null,null,null,null,null,null,null,null,null,null,null,null,null,"","","","","","","","","","","",""]
[9,null,null,null,null,null,null,null,null,null,null,null,null,null,null,null,null,null,null,null,null,null,null,null,null,null,null,null,null,null,null,null,null,null,null,null,null,null,null,null,null,null,null,null,null,null,null,null,null,null,null,null,null,null,"","","","","","","","","","","",""]
[10,null,null,null,null,null,null,null,null,null,null,null,null,null,null,null,null,null,null,null,null,null,null,null,null,null,null,null,null,null,null,null,null,null,null,null,null,null,null,null,null,null,null,null,null,null,null,null,null,null,null,null,null,null,"","","","","","","","","","","",""]
[11,null,null,null,null,null,null,null,null,null,null,null,null,null,null,null,null,null,null,null,null,null,null,null,null,null,null,null,null,null,null,null,null,null,null,null,null,null,null,null,null,null,null,null,null,null,null,null,null,null,null,null,null,null,"","","","","","","","","","","",""]
[12,null,null,null,null,null,null,null,null,null,null,null,null,null,null,null,null,null,null,null,null,null,null,null,null,null,null,null,null,null,null,null,null,null,null,null,null,null,null,null,null,null,null,null,null,null,null,null,null,null,null,null,null,null,"","","","","","","","","","","",""]
[{"$f":"+A17+1","v":13},null,null,null,null,null,null,null,null,null,null,null,null,null,null,null,null,null,null,null,null,null,null,null,null,null,null,null,null,null,null,null,null,null,null,null,null,null,null,null,null,null,null,null,null,null,null,null,null,null,null,null,null,null,"","","","","","","","","","","",""]
[14]
[15]
[16]
["CYCLE TIME",null,{"$f":"IF(SUM(C6:C21)=0,\"\",SUM(C6:C21))","v":""},"","","","","","","","","","","","","","",{"$f":"SUM(R6:R21)","v":0},{"$f":"SUM(S6:S21)","v":0},null,null,null,null,null,null,null,null,null,null,null,null,null,null,null,null,null,null,null,null,null,null,null,{"$f":"ROUND(F22,0)","v":{"$error":"#VALUE!"}}]
[]
[]
["Irregular Work (example : Take new polybox, etc)",null,null,null,null,null,null,null,null,null,null,null,null,null,null,null,null,null,null,{"$f":"COUNTA(B:B)","v":3}]
["NO","Irregular Work","Time",null,null,null,null,null,null,null,null,null,null,null,null,null,null,"Average Time","Piece","Time\n(sec/pc)"]
[null,null,1,2,3,4,5,6,7,8,9,10,11,12,13,14,15]
[1]
[{"$f":"+A28+1","v":2}]
[{"$f":"+A29+1","v":3}]
[{"$f":"+A30+1","v":4}]
[{"$f":"+A31+1","v":5}]
[null,null,null,null,null,null,null,null,null,null,null,null,null,null,null,null,null,null,null,{"$f":"SUM(T28:T32)","v":0}]
[]
[]
[]
[]
[]
[]
[]
[]
[]
[]
[]
[]
[]
[]
[]
[]
[]
[]
[]
[]
[]
[]
[]
[]
[]
[]
[]
[]
[]
[]
[]
[]
[]
[]
[]
[]
[]
[]
[]
[]
[]
[]
[]
[]
[]
[]
[]
[]
[]
[]
[]
[]
[]
[]
[]
[]
[]
[]
[]
[]
[]
[]
[]
[]
[]
[]
[]
[]
[]
[]
[]
[]
[]
[]
[]
[]
[]
[]
[]
[]
[]
[]
[]
[]
[]
[]
[]
[]
[]
[]
[]
[]
[]
[]
[]
[]
[]
[]
[]
[]
[]
[]
[]
[]
[]
[]
[]
[]
[]
[]
[]
[]
[]
[]
[]
[]
[]
[]
[]
[]
[]
[]
[]
[]
[]
[]
[]
[]
[]
[]
[]
[]
[]
[]
[]
[]
[]
[]
[]
[]
[]
[]
[]
[]
[]
[]
[]
[]
[]
[]
[]
[]
[]
[]
[]
[]
[]
[]
[]
[]
[]
[]
[]
[]
[]
[]
[]
[]
[]
[]
[]
[]
[]
[]
[]
[]
[]
[]
[]
[]
[]
[]
[]
[]
[]
[]
[]
[]
[]
[]
[]
[]
[]
[]
[]
[]
[]
[]
[]
[]
[]
[]
[]
[]
[]
[]
[]
[]
[]
[]
[]
[]
[]
[]
[]
[]
[]
[]
[]
[]
[]
[]
[]
[]
[]
[]
[]
[]
[]
[]
[]
[]
[]
[]
[]
[]
[]
[]
[]
[]
[]
[]
[]
[]
[]
[]
[]
[]
[]
[]
[]
[]
[]
[]
[]
[]
[]
[]
[]
[]
[]
[]
[]
[]
[]
[]
[]
[]
[]
[]
[]
[]
[]
[]
[]
[]
[]
[]
[]
[]
[]
[]
[]
[]
[]
[]
[]
[]
[]
[]
[]
[]
[]
[]
[]
[]
[]
[]
[]
[]
[]
[]
[]
[]
[]
[]
[]
[]
[]
[]
[]
[]
[]
[]
[]
[]
[]
[]
[]
[]
[]
[]
[]
[]
[]
[]
[]
[]
[]
[]
[]
[]
[]
[]
[]
[]
[]
[]
[]
[]
[]
[]
[]
[]
[]
[]
[]
[]
[]
[]
[]
[]
[]
[]
[]
[]
[]
[]
[]
[]
[]
[]
[]
[]
[]
[]
[]
[]
[]
[]
[]
[]
[]
[]
[]
[]
[]
[]
[]
[]
[]
[]
[]
[]
[]
[]
[]
[]
[]
[]
[]
[]
[]
[]
[]
[]
[]
[]
[]
[]
[]
[]
[]
[]
[]
[]
[]
[]
[]
[]
[]
[]
[]
[]
[]
[]
[]
[]
[]
[]
[]
[]
[]
[]
[]
[]
[]
[]
[]
[]
[]
[]
[]
[]
[]
[]
[]
[]
[]
[]
[]
[]
[]
[]
[]
[]
[]
[]
[]
[]
[]
[]
[]
[]
[]
[]
[]
[]
[]
[]
[]
[]
[]
[]
[]
[]
[]
[]
[null,null,null,null,null,null,null,null,null,null,null,null,null,null,null,null,null,null,10]

{"sheet":"4","index":8,"n_rows":56,"n_cols":228,"rows_kept":56,"cut":false,"hidden":true,"merged":[[57,1,57,246],[51,6,53,6],[55,6,56,6],[45,6,47,6],[39,6,41,6],[2,157,2,186],[3,127,3,156],[3,157,3,186],[4,127,4,156],[4,157,4,186],[1,0,2,1],[1,2,2,6],[3,0,4,1],[3,2,4,6],[1,127,1,156],[55,0,56,3],[55,4,56,4],[46,0,48,0],[46,1,48,3],[46,4,48,4],[2,127,2,156],[1,227,1,246],[2,187,4,206],[2,207,4,226],[46,5,48,5],[48,6,50,6],[49,0,51,0],[49,1,51,3],[49,4,51,4],[49,5,51,5],[33,6,35,6],[52,0,54,0],[52,1,54,3],[52,4,54,4],[52,5,54,5],[40,0,42,0],[40,1,42,3],[40,4,42,4],[40,5,42,5],[42,6,44,6],[43,0,45,0],[43,1,45,3],[43,4,45,4],[43,5,45,5],[34,0,36,0],[34,1,36,3],[34,4,36,4],[34,5,36,5],[36,6,38,6],[37,0,39,0],[37,1,39,3],[37,4,39,4],[37,5,39,5],[22,5,24,5],[24,6,26,6],[25,0,27,0],[25,1,27,3],[25,4,27,4],[25,5,27,5],[27,6,29,6],[28,0,30,0],[28,1,30,3],[28,4,30,4],[28,5,30,5],[30,6,32,6],[31,0,33,0],[31,1,33,3],[31,4,33,4],[31,5,33,5],[16,0,18,0],[16,1,18,3],[16,4,18,4],[16,5,18,5],[18,6,20,6],[19,0,21,0],[19,1,21,3],[19,4,21,4],[19,5,21,5],[21,6,23,6],[22,0,24,0],[22,1,24,3],[22,4,24,4],[15,6,17,6],[1,207,1,226],[1,7,4,126],[1,187,1,206],[5,0,6,0],[5,1,6,3],[5,4,6,4],[5,5,6,5],[5,6,6,6],[5,7,5,246],[2,227,4,246],[1,157,1,186],[7,0,9,0],[7,1,9,3],[7,4,9,4],[7,5,9,5],[7,6,8,6],[9,6,11,6],[13,0,15,0],[13,1,15,3],[13,4,15,4],[13,5,15,5],[12,6,14,6],[10,0,12,0],[10,1,12,3],[10,4,12,4],[10,5,12,5]]}
[2,null,null,null,null,null,null,null,1]
["PART NO",null,null,null,null,null,null,"STANDARDIZED WORK COMBINATION TABLE SHEET",null,null,null,null,null,null,null,null,null,null,null,null,null,null,null,null,null,null,null,null,null,null,null,null,null,null,null,null,null,null,null,null,null,null,null,null,null,null,null,null,null,null,null,null,null,null,null,null,null,null,null,null,null,null,null,null,null,null,null,null,null,null,null,null,null,null,null,null,null,null,null,null,null,null,null,null,null,null,null,null,null,null,null,null,null,null,null,null,null,null,null,null,null,null,null,null,null,null,null,null,null,null,null,null,null,null,null,null,null,null,null,null,null,null,null,null,null,null,null,"DATE TAKEN",null,null,null,null,null,null,null,null,null,null,null,null,null,null,null,null,null,null,null,null,null,null,null,null,null,null,null,null,null,null,null,null,null,null,null,null,null,null,null,null,null,null,null,null,null,null,null,null,null,null,null,null,null,null,null,null,null,null,null,"APPROVED",null,null,null,null,null,null,null,null,null,null,null,null,null,null,null,null,null,null,null,"CHECKED",null,null,null,null,null,null,null,null,null,null,null,null,null,null,null,null,null,null,null,"PREPARED"]
[null,null,null,null,null,null,null,null,null,null,null,null,null,null,null,null,null,null,null,null,null,null,null,null,null,null,null,null,null,null,null,null,null,null,null,null,null,null,null,null,null,null,null,null,null,null,null,null,null,null,null,null,null,null,null,null,null,null,null,null,null,null,null,null,null,null,null,null,null,null,null,null,null,null,null,null,null,null,null,null,null,null,null,null,null,null,null,null,null,null,null,null,null,null,null,null,null,null,null,null,null,null,null,null,null,null,null,null,null,null,null,null,null,null,null,null,null,null,null,null,null,null,null,null,null,null,null,"PCS / DAY"]
["PROCESS",null,null,null,null,null,null,null,null,null,null,null,null,null,null,null,null,null,null,null,null,null,null,null,null,null,null,null,null,null,null,null,null,null,null,null,null,null,null,null,null,null,null,null,null,null,null,null,null,null,null,null,null,null,null,null,null,null,null,null,null,null,null,null,null,null,null,null,null,null,null,null,null,null,null,null,null,null,null,null,null,null,null,null,null,null,null,null,null,null,null,null,null,null,null,null,null,null,null,null,null,null,null,null,null,null,null,null,null,null,null,null,null,null,null,null,null,null,null,null,null,null,null,null,null,null,null,"LINE TAKT TIME"]
[null,null,null,null,null,null,null,null,null,null,null,null,null,null,null,null,null,null,null,null,null,null,null,null,null,null,null,null,null,null,null,null,null,null,null,null,null,null,null,null,null,null,null,null,null,null,null,null,null,null,null,null,null,null,null,null,null,null,null,null,null,null,null,null,null,null,null,null,null,null,null,null,null,null,null,null,null,null,null,null,null,null,null,null,null,null,null,null,null,null,null,null,null,null,null,null,null,null,null,null,null,null,null,null,null,null,null,null,null,null,null,null,null,null,null,null,null,null,null,null,null,null,null,null,null,null,null,"SECTION / LINE"]
["NO","WORK NAME",null,null,"MAN","AUTO","WALK"]
[]
[]
[]
[]
[]
[]
[]
[]
[]
[]
[]
[]
[]
[]
[]
[]
[]
[]
[]
[]
[]
[]
[]
[]
[]
[]
[]
[]
[]
[]
[]
[]
[]
[]
[]
[]
[]
[]
[]
[]
[]
[]
[]
[]
[]
[]
[]
[]
[]
["TOTAL",null,null,null,{"$f":"SUM(E8:E55)","v":0},"Wait",{"$f":"SUM(G8:G55)","v":0},"akhir"]

{"sheet":"TSS5","index":9,"n_rows":502,"n_cols":66,"rows_kept":502,"cut":false,"hidden":true,"merged":[[21,0,21,1],[25,0,26,0],[25,1,26,1],[25,2,25,16],[25,17,26,17],[25,18,26,18],[25,19,26,19],[3,20,4,20],[3,21,3,25],[3,26,4,26],[1,23,1,25],[2,14,2,16],[2,23,2,25],[3,0,4,0],[3,2,3,16],[3,17,4,17],[3,18,4,18],[3,19,4,19],[1,0,2,1],[1,2,2,5],[1,6,2,13],[1,14,1,16]]}
[null,null,{"$f":"COUNTA(B:B)-1","v":2}]
["PROCESS NAME",null,null,null,null,null,"TIME STUDY SHEET",null,null,null,null,null,null,null,"PART NO",null,null,null,"SECTION LINE",null,null,null,null,"DATE"]
[null,null,null,null,null,null,null,null,null,null,null,null,null,null,"TYPE",null,null,null,"TAKT TIME",null,null,null,null,"MEASURED BY"]
["NO","WORK NAME\nFor walk activity, please write :","Manual Time",null,null,null,null,null,null,null,null,null,null,null,null,null,null,"OPERATION TIME","ADJUSTMENT\n(Will be used for SWCT Line)","OPERATION","MACHINE NO","MACHINE TIME",null,null,null,null,"AUTO \n(MACHINE TIME)",null,null,null,{"$f":"SUM(AE6:AE100)","v":12.59},{"$f":"SUM(AF6:AF100)","v":9.7899999999999991},{"$f":"SUM(AG6:AG100)","v":9.57}]
[null,"Walk; Walk; walking; return; Return",1,2,3,4,5,6,7,8,9,10,11,12,13,14,15,null,null,null,null,1,2,3,4,5]
[1,null,null,null,null,null,null,null,null,null,null,null,null,null,null,null,null,null,null,null,null,null,null,null,null,null,null,null,null,null,2.0099999999999993,1.93,1.92,null,null,null,null,null,null,{"$f":"ROUND(C6,0)","v":0},0,0,0,null,null,null,null,null,null,null,null,null,null,null,{"$f":"IF(F6=\"\",\"\",CEILING(F6,0.5))","v":""},"","","","","","","","","","",""]
[{"$f":"+A6+1","v":2},null,null,null,null,null,null,null,null,null,null,null,null,null,null,null,null,null,null,null,null,null,null,null,null,null,null,null,null,null,2.75,2.0499999999999998,1.9500000000000002,null,null,null,null,null,null,0,0,0,0,null,null,null,null,null,null,null,null,null,null,null,"","","","","","","","","","","",""]
[3,null,null,null,null,null,null,null,null,null,null,null,null,null,null,null,null,null,null,null,null,null,null,null,null,null,null,null,null,null,1.9699999999999998,1.9500000000000002,1.9500000000000002,null,null,null,null,null,null,0,0,0,0,null,null,null,null,null,null,null,null,null,null,null,"","","","","","","","","","","",""]
[4,null,null,null,null,null,null,null,null,null,null,null,null,null,null,null,null,null,null,null,null,null,null,null,null,null,null,null,null,null,3.87,1.94,1.9100000000000001,null,null,null,null,null,null,0,0,0,0,null,null,null,null,null,null,null,null,null,null,null,"","","","","","","","","","","",""]
[5,null,null,null,null,null,null,null,null,null,null,null,null,null,null,null,null,null,null,null,null,null,null,null,null,null,null,null,null,null,1.9899999999999998,1.92,1.8399999999999999,null,null,null,null,null,null,0,0,0,0,null,null,null,null,null,null,null,null,null,null,null,"","","","","","","","","","","",""]
[6,null,null,null,null,null,null,null,null,null,null,null,null,null,null,null,null,null,null,null,null,null,null,null,null,null,null,null,null,null,null,null,null,null,null,null,null,null,null,null,null,null,null,null,null,null,null,null,null,null,null,null,null,null,"","","","","","","","","","","",""]
[7,null,null,null,null,null,null,null,null,null,null,null,null,null,null,null,null,null,null,null,null,null,null,null,null,null,null,null,null,null,null,null,null,null,null,null,null,null,null,null,null,null,null,null,null,null,null,null,null,null,null,null,null,null,"","","","","","","","","","","",""]
[8,null,null,null,null,null,null,null,null,null,null,null,null,null,null,null,null,null,null,null,null,null,null,null,null,null,null,null,null,null,null,null,null,null,null,null,null,null,null,null,null,null,null,null,null,null,null,null,null,null,null,null,null,null,"","","","","","","","","","","",""]
[9,null,null,null,null,null,null,null,null,null,null,null,null,null,null,null,null,null,null,null,null,null,null,null,null,null,null,null,null,null,null,null,null,null,null,null,null,null,null,null,null,null,null,null,null,null,null,null,null,null,null,null,null,null,"","","","","","","","","","","",""]
[10,null,null,null,null,null,null,null,null,null,null,null,null,null,null,null,null,null,null,null,null,null,null,null,null,null,null,null,null,null,null,null,null,null,null,null,null,null,null,null,null,null,null,null,null,null,null,null,null,null,null,null,null,null,"","","","","","","","","","","",""]
[11,null,null,null,null,null,null,null,null,null,null,null,null,null,null,null,null,null,null,null,null,null,null,null,null,null,null,null,null,null,null,null,null,null,null,null,null,null,null,null,null,null,null,null,null,null,null,null,null,null,null,null,null,null,"","","","","","","","","","","",""]
[12,null,null,null,null,null,null,null,null,null,null,null,null,null,null,null,null,null,null,null,null,null,null,null,null,null,null,null,null,null,null,null,null,null,null,null,null,null,null,null,null,null,null,null,null,null,null,null,null,null,null,null,null,null,"","","","","","","","","","","",""]
[{"$f":"+A17+1","v":13},null,null,null,null,null,null,null,null,null,null,null,null,null,null,null,null,null,null,null,null,null,null,null,null,null,null,null,null,null,null,null,null,null,null,null,null,null,null,null,null,null,null,null,null,null,null,null,null,null,null,null,null,null,"","","","","","","","","","","",""]
[14]
[15]
[16]
["CYCLE TIME",null,{"$f":"IF(SUM(C6:C21)=0,\"\",SUM(C6:C21))","v":""},"","","","","","","","","","","","","","",{"$f":"SUM(R6:R21)","v":0},{"$f":"SUM(S6:S21)","v":0},null,null,null,null,null,null,null,null,null,null,null,null,null,null,null,null,null,null,null,null,null,null,null,{"$f":"ROUND(F22,0)","v":{"$error":"#VALUE!"}}]
[]
[]
["Irregular Work (example : Take new polybox, etc)",null,null,null,null,null,null,null,null,null,null,null,null,null,null,null,null,null,null,{"$f":"COUNTA(B:B)","v":3}]
["NO","Irregular Work","Time",null,null,null,null,null,null,null,null,null,null,null,null,null,null,"Average Time","Piece","Time\n(sec/pc)"]
[null,null,1,2,3,4,5,6,7,8,9,10,11,12,13,14,15]
[1]
[{"$f":"+A28+1","v":2}]
[{"$f":"+A29+1","v":3}]
[{"$f":"+A30+1","v":4}]
[{"$f":"+A31+1","v":5}]
[null,null,null,null,null,null,null,null,null,null,null,null,null,null,null,null,null,null,null,{"$f":"SUM(T28:T32)","v":0}]
[]
[]
[]
[]
[]
[]
[]
[]
[]
[]
[]
[]
[]
[]
[]
[]
[]
[]
[]
[]
[]
[]
[]
[]
[]
[]
[]
[]
[]
[]
[]
[]
[]
[]
[]
[]
[]
[]
[]
[]
[]
[]
[]
[]
[]
[]
[]
[]
[]
[]
[]
[]
[]
[]
[]
[]
[]
[]
[]
[]
[]
[]
[]
[]
[]
[]
[]
[]
[]
[]
[]
[]
[]
[]
[]
[]
[]
[]
[]
[]
[]
[]
[]
[]
[]
[]
[]
[]
[]
[]
[]
[]
[]
[]
[]
[]
[]
[]
[]
[]
[]
[]
[]
[]
[]
[]
[]
[]
[]
[]
[]
[]
[]
[]
[]
[]
[]
[]
[]
[]
[]
[]
[]
[]
[]
[]
[]
[]
[]
[]
[]
[]
[]
[]
[]
[]
[]
[]
[]
[]
[]
[]
[]
[]
[]
[]
[]
[]
[]
[]
[]
[]
[]
[]
[]
[]
[]
[]
[]
[]
[]
[]
[]
[]
[]
[]
[]
[]
[]
[]
[]
[]
[]
[]
[]
[]
[]
[]
[]
[]
[]
[]
[]
[]
[]
[]
[]
[]
[]
[]
[]
[]
[]
[]
[]
[]
[]
[]
[]
[]
[]
[]
[]
[]
[]
[]
[]
[]
[]
[]
[]
[]
[]
[]
[]
[]
[]
[]
[]
[]
[]
[]
[]
[]
[]
[]
[]
[]
[]
[]
[]
[]
[]
[]
[]
[]
[]
[]
[]
[]
[]
[]
[]
[]
[]
[]
[]
[]
[]
[]
[]
[]
[]
[]
[]
[]
[]
[]
[]
[]
[]
[]
[]
[]
[]
[]
[]
[]
[]
[]
[]
[]
[]
[]
[]
[]
[]
[]
[]
[]
[]
[]
[]
[]
[]
[]
[]
[]
[]
[]
[]
[]
[]
[]
[]
[]
[]
[]
[]
[]
[]
[]
[]
[]
[]
[]
[]
[]
[]
[]
[]
[]
[]
[]
[]
[]
[]
[]
[]
[]
[]
[]
[]
[]
[]
[]
[]
[]
[]
[]
[]
[]
[]
[]
[]
[]
[]
[]
[]
[]
[]
[]
[]
[]
[]
[]
[]
[]
[]
[]
[]
[]
[]
[]
[]
[]
[]
[]
[]
[]
[]
[]
[]
[]
[]
[]
[]
[]
[]
[]
[]
[]
[]
[]
[]
[]
[]
[]
[]
[]
[]
[]
[]
[]
[]
[]
[]
[]
[]
[]
[]
[]
[]
[]
[]
[]
[]
[]
[]
[]
[]
[]
[]
[]
[]
[]
[]
[]
[]
[]
[]
[]
[]
[]
[]
[]
[]
[]
[]
[]
[]
[]
[]
[]
[]
[]
[]
[]
[]
[]
[]
[]
[]
[]
[]
[]
[]
[]
[]
[]
[]
[]
[]
[]
[]
[]
[]
[]
[]
[]
[]
[]
[]
[]
[]
[]
[]
[]
[]
[]
[]
[]
[]
[]
[]
[]
[]
[]
[null,null,null,null,null,null,null,null,null,null,null,null,null,null,null,null,null,null,10]

{"sheet":"5","index":10,"n_rows":56,"n_cols":228,"rows_kept":56,"cut":false,"hidden":true,"merged":[[1,0,2,1],[1,2,2,6],[3,0,4,1],[3,2,4,6],[1,127,1,156],[2,127,2,156],[3,127,3,156],[4,127,4,156],[1,7,4,126],[1,227,1,246],[2,187,4,206],[2,157,2,186],[3,157,3,186],[2,207,4,226],[2,227,4,246],[1,207,1,226],[1,187,1,206],[4,157,4,186],[1,157,1,186],[57,1,57,246],[51,6,53,6],[55,6,56,6],[52,0,54,0],[52,1,54,3],[52,4,54,4],[52,5,54,5],[55,0,56,3],[55,4,56,4],[46,0,48,0],[46,1,48,3],[46,4,48,4],[46,5,48,5],[48,6,50,6],[49,0,51,0],[49,1,51,3],[49,4,51,4],[49,5,51,5],[31,1,33,3],[31,4,33,4],[31,5,33,5],[33,6,35,6],[34,0,36,0],[34,1,36,3],[34,4,36,4],[34,5,36,5],[36,6,38,6],[37,0,39,0],[37,1,39,3],[37,4,39,4],[37,5,39,5],[39,6,41,6],[40,0,42,0],[40,1,42,3],[40,4,42,4],[40,5,42,5],[42,6,44,6],[43,0,45,0],[43,1,45,3],[43,4,45,4],[43,5,45,5],[45,6,47,6],[5,7,5,246],[7,0,9,0],[7,1,9,3],[7,4,9,4],[7,5,9,5],[7,6,8,6],[9,6,11,6],[13,0,15,0],[13,1,15,3],[13,4,15,4],[13,5,15,5],[12,6,14,6],[10,0,12,0],[10,1,12,3],[10,4,12,4],[10,5,12,5],[15,6,17,6],[5,0,6,0],[5,1,6,3],[5,4,6,4],[5,5,6,5],[5,6,6,6],[16,0,18,0],[16,1,18,3],[16,4,18,4],[16,5,18,5],[18,6,20,6],[19,0,21,0],[19,1,21,3],[19,4,21,4],[19,5,21,5],[21,6,23,6],[22,0,24,0],[22,1,24,3],[22,4,24,4],[22,5,24,5],[24,6,26,6],[25,0,27,0],[25,1,27,3],[25,4,27,4],[25,5,27,5],[27,6,29,6],[28,0,30,0],[28,1,30,3],[28,4,30,4],[28,5,30,5],[30,6,32,6],[31,0,33,0]]}
[2,null,null,null,null,null,null,null,0.5]
["PART NO",null,null,null,null,null,null,"STANDARDIZED WORK COMBINATION TABLE SHEET",null,null,null,null,null,null,null,null,null,null,null,null,null,null,null,null,null,null,null,null,null,null,null,null,null,null,null,null,null,null,null,null,null,null,null,null,null,null,null,null,null,null,null,null,null,null,null,null,null,null,null,null,null,null,null,null,null,null,null,null,null,null,null,null,null,null,null,null,null,null,null,null,null,null,null,null,null,null,null,null,null,null,null,null,null,null,null,null,null,null,null,null,null,null,null,null,null,null,null,null,null,null,null,null,null,null,null,null,null,null,null,null,null,null,null,null,null,null,null,"DATE TAKEN",null,null,null,null,null,null,null,null,null,null,null,null,null,null,null,null,null,null,null,null,null,null,null,null,null,null,null,null,null,null,null,null,null,null,null,null,null,null,null,null,null,null,null,null,null,null,null,null,null,null,null,null,null,null,null,null,null,null,null,"APPROVED",null,null,null,null,null,null,null,null,null,null,null,null,null,null,null,null,null,null,null,"CHECKED",null,null,null,null,null,null,null,null,null,null,null,null,null,null,null,null,null,null,null,"PREPARED"]
[null,null,null,null,null,null,null,null,null,null,null,null,null,null,null,null,null,null,null,null,null,null,null,null,null,null,null,null,null,null,null,null,null,null,null,null,null,null,null,null,null,null,null,null,null,null,null,null,null,null,null,null,null,null,null,null,null,null,null,null,null,null,null,null,null,null,null,null,null,null,null,null,null,null,null,null,null,null,null,null,null,null,null,null,null,null,null,null,null,null,null,null,null,null,null,null,null,null,null,null,null,null,null,null,null,null,null,null,null,null,null,null,null,null,null,null,null,null,null,null,null,null,null,null,null,null,null,"PCS / DAY"]
["PROCESS",null,null,null,null,null,null,null,null,null,null,null,null,null,null,null,null,null,null,null,null,null,null,null,null,null,null,null,null,null,null,null,null,null,null,null,null,null,null,null,null,null,null,null,null,null,null,null,null,null,null,null,null,null,null,null,null,null,null,null,null,null,null,null,null,null,null,null,null,null,null,null,null,null,null,null,null,null,null,null,null,null,null,null,null,null,null,null,null,null,null,null,null,null,null,null,null,null,null,null,null,null,null,null,null,null,null,null,null,null,null,null,null,null,null,null,null,null,null,null,null,null,null,null,null,null,null,"LINE TAKT TIME"]
[null,null,null,null,null,null,null,null,null,null,null,null,null,null,null,null,null,null,null,null,null,null,null,null,null,null,null,null,null,null,null,null,null,null,null,null,null,null,null,null,null,null,null,null,null,null,null,null,null,null,null,null,null,null,null,null,null,null,null,null,null,null,null,null,null,null,null,null,null,null,null,null,null,null,null,null,null,null,null,null,null,null,null,null,null,null,null,null,null,null,null,null,null,null,null,null,null,null,null,null,null,null,null,null,null,null,null,null,null,null,null,null,null,null,null,null,null,null,null,null,null,null,null,null,null,null,null,"SECTION / LINE"]
["NO","WORK NAME",null,null,"MAN","AUTO","WALK"]
[]
[]
[]
[]
[]
[]
[]
[]
[]
[]
[]
[]
[]
[]
[]
[]
[]
[]
[]
[]
[]
[]
[]
[]
[]
[]
[]
[]
[]
[]
[]
[]
[]
[]
[]
[]
[]
[]
[]
[]
[]
[]
[]
[]
[]
[]
[]
[]
[]
["TOTAL",null,null,null,{"$f":"SUM(E8:E55)","v":0},"Wait",{"$f":"SUM(G8:G55)","v":0},"akhir"]

{"sheet":"TSS6","index":11,"n_rows":502,"n_cols":66,"rows_kept":502,"cut":false,"hidden":true,"merged":[[3,21,3,25],[3,26,4,26],[21,0,21,1],[25,0,26,0],[25,1,26,1],[25,2,25,16],[25,17,26,17],[25,18,26,18],[25,19,26,19],[3,0,4,0],[3,2,3,16],[3,17,4,17],[3,18,4,18],[3,19,4,19],[3,20,4,20],[1,0,2,1],[1,2,2,5],[1,6,2,13],[1,14,1,16],[1,23,1,25],[2,14,2,16],[2,23,2,25]]}
[null,null,{"$f":"COUNTA(B:B)-1","v":2}]
["PROCESS NAME",null,null,null,null,null,"TIME STUDY SHEET",null,null,null,null,null,null,null,"PART NO",null,null,null,"SECTION LINE",null,null,null,null,"DATE"]
[null,null,null,null,null,null,null,null,null,null,null,null,null,null,"TYPE",null,null,null,"TAKT TIME",null,null,null,null,"MEASURED BY"]
["NO","WORK NAME\nFor walk activity, please write :","Manual Time",null,null,null,null,null,null,null,null,null,null,null,null,null,null,"OPERATION TIME","ADJUSTMENT\n(Will be used for SWCT Line)","OPERATION","MACHINE NO","MACHINE TIME",null,null,null,null,"AUTO \n(MACHINE TIME)",null,null,null,{"$f":"SUM(AE6:AE100)","v":12.59},{"$f":"SUM(AF6:AF100)","v":9.7899999999999991},{"$f":"SUM(AG6:AG100)","v":9.57}]
[null,"Walk; Walk; walking; return; Return",1,2,3,4,5,6,7,8,9,10,11,12,13,14,15,null,null,null,null,1,2,3,4,5]
[1,null,null,null,null,null,null,null,null,null,null,null,null,null,null,null,null,null,null,null,null,null,null,null,null,null,null,null,null,null,2.0099999999999993,1.93,1.92,null,null,null,null,null,null,{"$f":"ROUND(C6,0)","v":0},0,0,0,null,null,null,null,null,null,null,null,null,null,null,{"$f":"IF(F6=\"\",\"\",CEILING(F6,0.5))","v":""},"","","","","","","","","","",""]
[{"$f":"+A6+1","v":2},null,null,null,null,null,null,null,null,null,null,null,null,null,null,null,null,null,null,null,null,null,null,null,null,null,null,null,null,null,2.75,2.0499999999999998,1.9500000000000002,null,null,null,null,null,null,0,0,0,0,null,null,null,null,null,null,null,null,null,null,null,"","","","","","","","","","","",""]
[3,null,null,null,null,null,null,null,null,null,null,null,null,null,null,null,null,null,null,null,null,null,null,null,null,null,null,null,null,null,1.9699999999999998,1.9500000000000002,1.9500000000000002,null,null,null,null,null,null,0,0,0,0,null,null,null,null,null,null,null,null,null,null,null,"","","","","","","","","","","",""]
[4,null,null,null,null,null,null,null,null,null,null,null,null,null,null,null,null,null,null,null,null,null,null,null,null,null,null,null,null,null,3.87,1.94,1.9100000000000001,null,null,null,null,null,null,0,0,0,0,null,null,null,null,null,null,null,null,null,null,null,"","","","","","","","","","","",""]
[5,null,null,null,null,null,null,null,null,null,null,null,null,null,null,null,null,null,null,null,null,null,null,null,null,null,null,null,null,null,1.9899999999999998,1.92,1.8399999999999999,null,null,null,null,null,null,0,0,0,0,null,null,null,null,null,null,null,null,null,null,null,"","","","","","","","","","","",""]
[6,null,null,null,null,null,null,null,null,null,null,null,null,null,null,null,null,null,null,null,null,null,null,null,null,null,null,null,null,null,null,null,null,null,null,null,null,null,null,null,null,null,null,null,null,null,null,null,null,null,null,null,null,null,"","","","","","","","","","","",""]
[7,null,null,null,null,null,null,null,null,null,null,null,null,null,null,null,null,null,null,null,null,null,null,null,null,null,null,null,null,null,null,null,null,null,null,null,null,null,null,null,null,null,null,null,null,null,null,null,null,null,null,null,null,null,"","","","","","","","","","","",""]
[8,null,null,null,null,null,null,null,null,null,null,null,null,null,null,null,null,null,null,null,null,null,null,null,null,null,null,null,null,null,null,null,null,null,null,null,null,null,null,null,null,null,null,null,null,null,null,null,null,null,null,null,null,null,"","","","","","","","","","","",""]
[9,null,null,null,null,null,null,null,null,null,null,null,null,null,null,null,null,null,null,null,null,null,null,null,null,null,null,null,null,null,null,null,null,null,null,null,null,null,null,null,null,null,null,null,null,null,null,null,null,null,null,null,null,null,"","","","","","","","","","","",""]
[10,null,null,null,null,null,null,null,null,null,null,null,null,null,null,null,null,null,null,null,null,null,null,null,null,null,null,null,null,null,null,null,null,null,null,null,null,null,null,null,null,null,null,null,null,null,null,null,null,null,null,null,null,null,"","","","","","","","","","","",""]
[11,null,null,null,null,null,null,null,null,null,null,null,null,null,null,null,null,null,null,null,null,null,null,null,null,null,null,null,null,null,null,null,null,null,null,null,null,null,null,null,null,null,null,null,null,null,null,null,null,null,null,null,null,null,"","","","","","","","","","","",""]
[12,null,null,null,null,null,null,null,null,null,null,null,null,null,null,null,null,null,null,null,null,null,null,null,null,null,null,null,null,null,null,null,null,null,null,null,null,null,null,null,null,null,null,null,null,null,null,null,null,null,null,null,null,null,"","","","","","","","","","","",""]
[{"$f":"+A17+1","v":13},null,null,null,null,null,null,null,null,null,null,null,null,null,null,null,null,null,null,null,null,null,null,null,null,null,null,null,null,null,null,null,null,null,null,null,null,null,null,null,null,null,null,null,null,null,null,null,null,null,null,null,null,null,"","","","","","","","","","","",""]
[14]
[15]
[16]
["CYCLE TIME",null,{"$f":"IF(SUM(C6:C21)=0,\"\",SUM(C6:C21))","v":""},"","","","","","","","","","","","","","",{"$f":"SUM(R6:R21)","v":0},{"$f":"SUM(S6:S21)","v":0},null,null,null,null,null,null,null,null,null,null,null,null,null,null,null,null,null,null,null,null,null,null,null,{"$f":"ROUND(F22,0)","v":{"$error":"#VALUE!"}}]
[]
[]
["Irregular Work (example : Take new polybox, etc)",null,null,null,null,null,null,null,null,null,null,null,null,null,null,null,null,null,null,{"$f":"COUNTA(B:B)","v":3}]
["NO","Irregular Work","Time",null,null,null,null,null,null,null,null,null,null,null,null,null,null,"Average Time","Piece","Time\n(sec/pc)"]
[null,null,1,2,3,4,5,6,7,8,9,10,11,12,13,14,15]
[1]
[{"$f":"+A28+1","v":2}]
[{"$f":"+A29+1","v":3}]
[{"$f":"+A30+1","v":4}]
[{"$f":"+A31+1","v":5}]
[null,null,null,null,null,null,null,null,null,null,null,null,null,null,null,null,null,null,null,{"$f":"SUM(T28:T32)","v":0}]
[]
[]
[]
[]
[]
[]
[]
[]
[]
[]
[]
[]
[]
[]
[]
[]
[]
[]
[]
[]
[]
[]
[]
[]
[]
[]
[]
[]
[]
[]
[]
[]
[]
[]
[]
[]
[]
[]
[]
[]
[]
[]
[]
[]
[]
[]
[]
[]
[]
[]
[]
[]
[]
[]
[]
[]
[]
[]
[]
[]
[]
[]
[]
[]
[]
[]
[]
[]
[]
[]
[]
[]
[]
[]
[]
[]
[]
[]
[]
[]
[]
[]
[]
[]
[]
[]
[]
[]
[]
[]
[]
[]
[]
[]
[]
[]
[]
[]
[]
[]
[]
[]
[]
[]
[]
[]
[]
[]
[]
[]
[]
[]
[]
[]
[]
[]
[]
[]
[]
[]
[]
[]
[]
[]
[]
[]
[]
[]
[]
[]
[]
[]
[]
[]
[]
[]
[]
[]
[]
[]
[]
[]
[]
[]
[]
[]
[]
[]
[]
[]
[]
[]
[]
[]
[]
[]
[]
[]
[]
[]
[]
[]
[]
[]
[]
[]
[]
[]
[]
[]
[]
[]
[]
[]
[]
[]
[]
[]
[]
[]
[]
[]
[]
[]
[]
[]
[]
[]
[]
[]
[]
[]
[]
[]
[]
[]
[]
[]
[]
[]
[]
[]
[]
[]
[]
[]
[]
[]
[]
[]
[]
[]
[]
[]
[]
[]
[]
[]
[]
[]
[]
[]
[]
[]
[]
[]
[]
[]
[]
[]
[]
[]
[]
[]
[]
[]
[]
[]
[]
[]
[]
[]
[]
[]
[]
[]
[]
[]
[]
[]
[]
[]
[]
[]
[]
[]
[]
[]
[]
[]
[]
[]
[]
[]
[]
[]
[]
[]
[]
[]
[]
[]
[]
[]
[]
[]
[]
[]
[]
[]
[]
[]
[]
[]
[]
[]
[]
[]
[]
[]
[]
[]
[]
[]
[]
[]
[]
[]
[]
[]
[]
[]
[]
[]
[]
[]
[]
[]
[]
[]
[]
[]
[]
[]
[]
[]
[]
[]
[]
[]
[]
[]
[]
[]
[]
[]
[]
[]
[]
[]
[]
[]
[]
[]
[]
[]
[]
[]
[]
[]
[]
[]
[]
[]
[]
[]
[]
[]
[]
[]
[]
[]
[]
[]
[]
[]
[]
[]
[]
[]
[]
[]
[]
[]
[]
[]
[]
[]
[]
[]
[]
[]
[]
[]
[]
[]
[]
[]
[]
[]
[]
[]
[]
[]
[]
[]
[]
[]
[]
[]
[]
[]
[]
[]
[]
[]
[]
[]
[]
[]
[]
[]
[]
[]
[]
[]
[]
[]
[]
[]
[]
[]
[]
[]
[]
[]
[]
[]
[]
[]
[]
[]
[]
[]
[]
[]
[]
[]
[]
[]
[]
[]
[]
[]
[]
[]
[]
[]
[]
[]
[]
[]
[]
[]
[]
[]
[]
[]
[]
[]
[]
[]
[]
[]
[]
[]
[]
[]
[]
[]
[]
[]
[]
[]
[]
[]
[]
[]
[null,null,null,null,null,null,null,null,null,null,null,null,null,null,null,null,null,null,10]

{"sheet":"6","index":12,"n_rows":56,"n_cols":228,"rows_kept":56,"cut":false,"hidden":true,"merged":[[55,0,56,3],[55,4,56,4],[55,6,56,6],[57,1,57,246],[48,6,50,6],[49,0,51,0],[49,1,51,3],[49,4,51,4],[49,5,51,5],[51,6,53,6],[52,0,54,0],[52,1,54,3],[52,4,54,4],[52,5,54,5],[34,1,36,3],[34,4,36,4],[34,5,36,5],[36,6,38,6],[37,0,39,0],[37,1,39,3],[37,4,39,4],[37,5,39,5],[39,6,41,6],[40,0,42,0],[40,1,42,3],[40,4,42,4],[40,5,42,5],[42,6,44,6],[43,0,45,0],[43,1,45,3],[43,4,45,4],[43,5,45,5],[45,6,47,6],[46,0,48,0],[46,1,48,3],[46,4,48,4],[46,5,48,5],[19,4,21,4],[19,5,21,5],[21,6,23,6],[22,0,24,0],[22,1,24,3],[22,4,24,4],[22,5,24,5],[24,6,26,6],[25,0,27,0],[25,1,27,3],[25,4,27,4],[25,5,27,5],[27,6,29,6],[28,0,30,0],[28,1,30,3],[28,4,30,4],[28,5,30,5],[30,6,32,6],[31,0,33,0],[31,1,33,3],[31,4,33,4],[31,5,33,5],[33,6,35,6],[34,0,36,0],[3,2,4,6],[7,0,9,0],[7,1,9,3],[7,4,9,4],[7,5,9,5],[7,6,8,6],[9,6,11,6],[10,0,12,0],[10,1,12,3],[10,4,12,4],[10,5,12,5],[12,6,14,6],[13,0,15,0],[13,1,15,3],[13,4,15,4],[13,5,15,5],[15,6,17,6],[16,0,18,0],[16,1,18,3],[16,4,18,4],[16,5,18,5],[18,6,20,6],[19,0,21,0],[19,1,21,3],[4,157,4,186],[5,0,6,0],[5,1,6,3],[5,4,6,4],[5,5,6,5],[5,6,6,6],[5,7,5,246],[1,207,1,226],[1,227,1,246],[2,127,2,156],[2,157,2,186],[2,187,4,206],[2,207,4,226],[2,227,4,246],[3,127,3,156],[3,157,3,186],[4,127,4,156],[1,0,2,1],[1,2,2,6],[1,7,4,126],[1,127,1,156],[1,157,1,186],[1,187,1,206],[3,0,4,1]]}
[2,null,null,null,null,null,null,null,0.5]
["PART NO",null,null,null,null,null,null,"STANDARDIZED WORK COMBINATION TABLE SHEET",null,null,null,null,null,null,null,null,null,null,null,null,null,null,null,null,null,null,null,null,null,null,null,null,null,null,null,null,null,null,null,null,null,null,null,null,null,null,null,null,null,null,null,null,null,null,null,null,null,null,null,null,null,null,null,null,null,null,null,null,null,null,null,null,null,null,null,null,null,null,null,null,null,null,null,null,null,null,null,null,null,null,null,null,null,null,null,null,null,null,null,null,null,null,null,null,null,null,null,null,null,null,null,null,null,null,null,null,null,null,null,null,null,null,null,null,null,null,null,"DATE TAKEN",null,null,null,null,null,null,null,null,null,null,null,null,null,null,null,null,null,null,null,null,null,null,null,null,null,null,null,null,null,null,null,null,null,null,null,null,null,null,null,null,null,null,null,null,null,null,null,null,null,null,null,null,null,null,null,null,null,null,null,"APPROVED",null,null,null,null,null,null,null,null,null,null,null,null,null,null,null,null,null,null,null,"CHECKED",null,null,null,null,null,null,null,null,null,null,null,null,null,null,null,null,null,null,null,"PREPARED"]
[null,null,null,null,null,null,null,null,null,null,null,null,null,null,null,null,null,null,null,null,null,null,null,null,null,null,null,null,null,null,null,null,null,null,null,null,null,null,null,null,null,null,null,null,null,null,null,null,null,null,null,null,null,null,null,null,null,null,null,null,null,null,null,null,null,null,null,null,null,null,null,null,null,null,null,null,null,null,null,null,null,null,null,null,null,null,null,null,null,null,null,null,null,null,null,null,null,null,null,null,null,null,null,null,null,null,null,null,null,null,null,null,null,null,null,null,null,null,null,null,null,null,null,null,null,null,null,"PCS / DAY"]
["PROCESS",null,null,null,null,null,null,null,null,null,null,null,null,null,null,null,null,null,null,null,null,null,null,null,null,null,null,null,null,null,null,null,null,null,null,null,null,null,null,null,null,null,null,null,null,null,null,null,null,null,null,null,null,null,null,null,null,null,null,null,null,null,null,null,null,null,null,null,null,null,null,null,null,null,null,null,null,null,null,null,null,null,null,null,null,null,null,null,null,null,null,null,null,null,null,null,null,null,null,null,null,null,null,null,null,null,null,null,null,null,null,null,null,null,null,null,null,null,null,null,null,null,null,null,null,null,null,"LINE TAKT TIME"]
[null,null,null,null,null,null,null,null,null,null,null,null,null,null,null,null,null,null,null,null,null,null,null,null,null,null,null,null,null,null,null,null,null,null,null,null,null,null,null,null,null,null,null,null,null,null,null,null,null,null,null,null,null,null,null,null,null,null,null,null,null,null,null,null,null,null,null,null,null,null,null,null,null,null,null,null,null,null,null,null,null,null,null,null,null,null,null,null,null,null,null,null,null,null,null,null,null,null,null,null,null,null,null,null,null,null,null,null,null,null,null,null,null,null,null,null,null,null,null,null,null,null,null,null,null,null,null,"SECTION / LINE"]
["NO","WORK NAME",null,null,"MAN","AUTO","WALK"]
[]
[]
[]
[]
[]
[]
[]
[]
[]
[]
[]
[]
[]
[]
[]
[]
[]
[]
[]
[]
[]
[]
[]
[]
[]
[]
[]
[]
[]
[]
[]
[]
[]
[]
[]
[]
[]
[]
[]
[]
[]
[]
[]
[]
[]
[]
[]
[]
[]
["TOTAL",null,null,null,{"$f":"SUM(E8:E55)","v":0},"Wait",{"$f":"SUM(G8:G55)","v":0},"akhir"]

{"sheet":"TSS7","index":13,"n_rows":502,"n_cols":66,"rows_kept":502,"cut":false,"hidden":true,"merged":[[3,21,3,25],[3,26,4,26],[21,0,21,1],[25,0,26,0],[25,1,26,1],[25,2,25,16],[25,17,26,17],[25,18,26,18],[25,19,26,19],[3,0,4,0],[3,2,3,16],[3,17,4,17],[3,18,4,18],[3,19,4,19],[3,20,4,20],[1,0,2,1],[1,2,2,5],[1,6,2,13],[1,14,1,16],[1,23,1,25],[2,14,2,16],[2,23,2,25]]}
[null,null,{"$f":"COUNTA(B:B)-1","v":2}]
["PROCESS NAME",null,null,null,null,null,"TIME STUDY SHEET",null,null,null,null,null,null,null,"PART NO",null,null,null,"SECTION LINE",null,null,null,null,"DATE"]
[null,null,null,null,null,null,null,null,null,null,null,null,null,null,"TYPE",null,null,null,"TAKT TIME",null,null,null,null,"MEASURED BY"]
["NO","WORK NAME\nFor walk activity, please write :","Manual Time",null,null,null,null,null,null,null,null,null,null,null,null,null,null,"OPERATION TIME","ADJUSTMENT\n(Will be used for SWCT Line)","OPERATION","MACHINE NO","MACHINE TIME",null,null,null,null,"AUTO \n(MACHINE TIME)",null,null,null,{"$f":"SUM(AE6:AE100)","v":12.59},{"$f":"SUM(AF6:AF100)","v":9.7899999999999991},{"$f":"SUM(AG6:AG100)","v":9.57}]
[null,"Walk; Walk; walking; return; Return",1,2,3,4,5,6,7,8,9,10,11,12,13,14,15,null,null,null,null,1,2,3,4,5]
[1,null,null,null,null,null,null,null,null,null,null,null,null,null,null,null,null,null,null,null,null,null,null,null,null,null,null,null,null,null,2.0099999999999993,1.93,1.92,null,null,null,null,null,null,{"$f":"ROUND(C6,0)","v":0},0,0,0,null,null,null,null,null,null,null,null,null,null,null,{"$f":"IF(F6=\"\",\"\",CEILING(F6,0.5))","v":""},"","","","","","","","","","",""]
[{"$f":"+A6+1","v":2},null,null,null,null,null,null,null,null,null,null,null,null,null,null,null,null,null,null,null,null,null,null,null,null,null,null,null,null,null,2.75,2.0499999999999998,1.9500000000000002,null,null,null,null,null,null,0,0,0,0,null,null,null,null,null,null,null,null,null,null,null,"","","","","","","","","","","",""]
[3,null,null,null,null,null,null,null,null,null,null,null,null,null,null,null,null,null,null,null,null,null,null,null,null,null,null,null,null,null,1.9699999999999998,1.9500000000000002,1.9500000000000002,null,null,null,null,null,null,0,0,0,0,null,null,null,null,null,null,null,null,null,null,null,"","","","","","","","","","","",""]
[4,null,null,null,null,null,null,null,null,null,null,null,null,null,null,null,null,null,null,null,null,null,null,null,null,null,null,null,null,null,3.87,1.94,1.9100000000000001,null,null,null,null,null,null,0,0,0,0,null,null,null,null,null,null,null,null,null,null,null,"","","","","","","","","","","",""]
[5,null,null,null,null,null,null,null,null,null,null,null,null,null,null,null,null,null,null,null,null,null,null,null,null,null,null,null,null,null,1.9899999999999998,1.92,1.8399999999999999,null,null,null,null,null,null,0,0,0,0,null,null,null,null,null,null,null,null,null,null,null,"","","","","","","","","","","",""]
[6,null,null,null,null,null,null,null,null,null,null,null,null,null,null,null,null,null,null,null,null,null,null,null,null,null,null,null,null,null,null,null,null,null,null,null,null,null,null,null,null,null,null,null,null,null,null,null,null,null,null,null,null,null,"","","","","","","","","","","",""]
[7,null,null,null,null,null,null,null,null,null,null,null,null,null,null,null,null,null,null,null,null,null,null,null,null,null,null,null,null,null,null,null,null,null,null,null,null,null,null,null,null,null,null,null,null,null,null,null,null,null,null,null,null,null,"","","","","","","","","","","",""]
[8,null,null,null,null,null,null,null,null,null,null,null,null,null,null,null,null,null,null,null,null,null,null,null,null,null,null,null,null,null,null,null,null,null,null,null,null,null,null,null,null,null,null,null,null,null,null,null,null,null,null,null,null,null,"","","","","","","","","","","",""]
[9,null,null,null,null,null,null,null,null,null,null,null,null,null,null,null,null,null,null,null,null,null,null,null,null,null,null,null,null,null,null,null,null,null,null,null,null,null,null,null,null,null,null,null,null,null,null,null,null,null,null,null,null,null,"","","","","","","","","","","",""]
[10,null,null,null,null,null,null,null,null,null,null,null,null,null,null,null,null,null,null,null,null,null,null,null,null,null,null,null,null,null,null,null,null,null,null,null,null,null,null,null,null,null,null,null,null,null,null,null,null,null,null,null,null,null,"","","","","","","","","","","",""]
[11,null,null,null,null,null,null,null,null,null,null,null,null,null,null,null,null,null,null,null,null,null,null,null,null,null,null,null,null,null,null,null,null,null,null,null,null,null,null,null,null,null,null,null,null,null,null,null,null,null,null,null,null,null,"","","","","","","","","","","",""]
[12,null,null,null,null,null,null,null,null,null,null,null,null,null,null,null,null,null,null,null,null,null,null,null,null,null,null,null,null,null,null,null,null,null,null,null,null,null,null,null,null,null,null,null,null,null,null,null,null,null,null,null,null,null,"","","","","","","","","","","",""]
[{"$f":"+A17+1","v":13},null,null,null,null,null,null,null,null,null,null,null,null,null,null,null,null,null,null,null,null,null,null,null,null,null,null,null,null,null,null,null,null,null,null,null,null,null,null,null,null,null,null,null,null,null,null,null,null,null,null,null,null,null,"","","","","","","","","","","",""]
[14]
[15]
[16]
["CYCLE TIME",null,{"$f":"IF(SUM(C6:C21)=0,\"\",SUM(C6:C21))","v":""},"","","","","","","","","","","","","","",{"$f":"SUM(R6:R21)","v":0},{"$f":"SUM(S6:S21)","v":0},null,null,null,null,null,null,null,null,null,null,null,null,null,null,null,null,null,null,null,null,null,null,null,{"$f":"ROUND(F22,0)","v":{"$error":"#VALUE!"}}]
[]
[]
["Irregular Work (example : Take new polybox, etc)",null,null,null,null,null,null,null,null,null,null,null,null,null,null,null,null,null,null,{"$f":"COUNTA(B:B)","v":3}]
["NO","Irregular Work","Time",null,null,null,null,null,null,null,null,null,null,null,null,null,null,"Average Time","Piece","Time\n(sec/pc)"]
[null,null,1,2,3,4,5,6,7,8,9,10,11,12,13,14,15]
[1]
[{"$f":"+A28+1","v":2}]
[{"$f":"+A29+1","v":3}]
[{"$f":"+A30+1","v":4}]
[{"$f":"+A31+1","v":5}]
[null,null,null,null,null,null,null,null,null,null,null,null,null,null,null,null,null,null,null,{"$f":"SUM(T28:T32)","v":0}]
[]
[]
[]
[]
[]
[]
[]
[]
[]
[]
[]
[]
[]
[]
[]
[]
[]
[]
[]
[]
[]
[]
[]
[]
[]
[]
[]
[]
[]
[]
[]
[]
[]
[]
[]
[]
[]
[]
[]
[]
[]
[]
[]
[]
[]
[]
[]
[]
[]
[]
[]
[]
[]
[]
[]
[]
[]
[]
[]
[]
[]
[]
[]
[]
[]
[]
[]
[]
[]
[]
[]
[]
[]
[]
[]
[]
[]
[]
[]
[]
[]
[]
[]
[]
[]
[]
[]
[]
[]
[]
[]
[]
[]
[]
[]
[]
[]
[]
[]
[]
[]
[]
[]
[]
[]
[]
[]
[]
[]
[]
[]
[]
[]
[]
[]
[]
[]
[]
[]
[]
[]
[]
[]
[]
[]
[]
[]
[]
[]
[]
[]
[]
[]
[]
[]
[]
[]
[]
[]
[]
[]
[]
[]
[]
[]
[]
[]
[]
[]
[]
[]
[]
[]
[]
[]
[]
[]
[]
[]
[]
[]
[]
[]
[]
[]
[]
[]
[]
[]
[]
[]
[]
[]
[]
[]
[]
[]
[]
[]
[]
[]
[]
[]
[]
[]
[]
[]
[]
[]
[]
[]
[]
[]
[]
[]
[]
[]
[]
[]
[]
[]
[]
[]
[]
[]
[]
[]
[]
[]
[]
[]
[]
[]
[]
[]
[]
[]
[]
[]
[]
[]
[]
[]
[]
[]
[]
[]
[]
[]
[]
[]
[]
[]
[]
[]
[]
[]
[]
[]
[]
[]
[]
[]
[]
[]
[]
[]
[]
[]
[]
[]
[]
[]
[]
[]
[]
[]
[]
[]
[]
[]
[]
[]
[]
[]
[]
[]
[]
[]
[]
[]
[]
[]
[]
[]
[]
[]
[]
[]
[]
[]
[]
[]
[]
[]
[]
[]
[]
[]
[]
[]
[]
[]
[]
[]
[]
[]
[]
[]
[]
[]
[]
[]
[]
[]
[]
[]
[]
[]
[]
[]
[]
[]
[]
[]
[]
[]
[]
[]
[]
[]
[]
[]
[]
[]
[]
[]
[]
[]
[]
[]
[]
[]
[]
[]
[]
[]
[]
[]
[]
[]
[]
[]
[]
[]
[]
[]
[]
[]
[]
[]
[]
[]
[]
[]
[]
[]
[]
[]
[]
[]
[]
[]
[]
[]
[]
[]
[]
[]
[]
[]
[]
[]
[]
[]
[]
[]
[]
[]
[]
[]
[]
[]
[]
[]
[]
[]
[]
[]
[]
[]
[]
[]
[]
[]
[]
[]
[]
[]
[]
[]
[]
[]
[]
[]
[]
[]
[]
[]
[]
[]
[]
[]
[]
[]
[]
[]
[]
[]
[]
[]
[]
[]
[]
[]
[]
[]
[]
[]
[]
[]
[]
[]
[]
[]
[]
[]
[]
[]
[]
[]
[]
[]
[]
[]
[]
[]
[]
[]
[]
[]
[]
[]
[]
[]
[]
[]
[]
[]
[]
[]
[]
[]
[]
[]
[]
[]
[]
[null,null,null,null,null,null,null,null,null,null,null,null,null,null,null,null,null,null,10]

{"sheet":"7","index":14,"n_rows":56,"n_cols":228,"rows_kept":56,"cut":false,"hidden":true,"merged":[[55,0,56,3],[55,4,56,4],[55,6,56,6],[57,1,57,246],[48,6,50,6],[49,0,51,0],[49,1,51,3],[49,4,51,4],[49,5,51,5],[51,6,53,6],[52,0,54,0],[52,1,54,3],[52,4,54,4],[52,5,54,5],[34,1,36,3],[34,4,36,4],[34,5,36,5],[36,6,38,6],[37,0,39,0],[37,1,39,3],[37,4,39,4],[37,5,39,5],[39,6,41,6],[40,0,42,0],[40,1,42,3],[40,4,42,4],[40,5,42,5],[42,6,44,6],[43,0,45,0],[43,1,45,3],[43,4,45,4],[43,5,45,5],[45,6,47,6],[46,0,48,0],[46,1,48,3],[46,4,48,4],[46,5,48,5],[19,4,21,4],[19,5,21,5],[21,6,23,6],[22,0,24,0],[22,1,24,3],[22,4,24,4],[22,5,24,5],[24,6,26,6],[25,0,27,0],[25,1,27,3],[25,4,27,4],[25,5,27,5],[27,6,29,6],[28,0,30,0],[28,1,30,3],[28,4,30,4],[28,5,30,5],[30,6,32,6],[31,0,33,0],[31,1,33,3],[31,4,33,4],[31,5,33,5],[33,6,35,6],[34,0,36,0],[3,2,4,6],[7,0,9,0],[7,1,9,3],[7,4,9,4],[7,5,9,5],[7,6,8,6],[9,6,11,6],[10,0,12,0],[10,1,12,3],[10,4,12,4],[10,5,12,5],[12,6,14,6],[13,0,15,0],[13,1,15,3],[13,4,15,4],[13,5,15,5],[15,6,17,6],[16,0,18,0],[16,1,18,3],[16,4,18,4],[16,5,18,5],[18,6,20,6],[19,0,21,0],[19,1,21,3],[4,157,4,186],[5,0,6,0],[5,1,6,3],[5,4,6,4],[5,5,6,5],[5,6,6,6],[5,7,5,246],[1,207,1,226],[1,227,1,246],[2,127,2,156],[2,157,2,186],[2,187,4,206],[2,207,4,226],[2,227,4,246],[3,127,3,156],[3,157,3,186],[4,127,4,156],[1,0,2,1],[1,2,2,6],[1,7,4,126],[1,127,1,156],[1,157,1,186],[1,187,1,206],[3,0,4,1]]}
[2,null,null,null,null,null,null,null,0.5]
["PART NO",null,null,null,null,null,null,"STANDARDIZED WORK COMBINATION TABLE SHEET",null,null,null,null,null,null,null,null,null,null,null,null,null,null,null,null,null,null,null,null,null,null,null,null,null,null,null,null,null,null,null,null,null,null,null,null,null,null,null,null,null,null,null,null,null,null,null,null,null,null,null,null,null,null,null,null,null,null,null,null,null,null,null,null,null,null,null,null,null,null,null,null,null,null,null,null,null,null,null,null,null,null,null,null,null,null,null,null,null,null,null,null,null,null,null,null,null,null,null,null,null,null,null,null,null,null,null,null,null,null,null,null,null,null,null,null,null,null,null,"DATE TAKEN",null,null,null,null,null,null,null,null,null,null,null,null,null,null,null,null,null,null,null,null,null,null,null,null,null,null,null,null,null,null,null,null,null,null,null,null,null,null,null,null,null,null,null,null,null,null,null,null,null,null,null,null,null,null,null,null,null,null,null,"APPROVED",null,null,null,null,null,null,null,null,null,null,null,null,null,null,null,null,null,null,null,"CHECKED",null,null,null,null,null,null,null,null,null,null,null,null,null,null,null,null,null,null,null,"PREPARED"]
[null,null,null,null,null,null,null,null,null,null,null,null,null,null,null,null,null,null,null,null,null,null,null,null,null,null,null,null,null,null,null,null,null,null,null,null,null,null,null,null,null,null,null,null,null,null,null,null,null,null,null,null,null,null,null,null,null,null,null,null,null,null,null,null,null,null,null,null,null,null,null,null,null,null,null,null,null,null,null,null,null,null,null,null,null,null,null,null,null,null,null,null,null,null,null,null,null,null,null,null,null,null,null,null,null,null,null,null,null,null,null,null,null,null,null,null,null,null,null,null,null,null,null,null,null,null,null,"PCS / DAY"]
["PROCESS",null,null,null,null,null,null,null,null,null,null,null,null,null,null,null,null,null,null,null,null,null,null,null,null,null,null,null,null,null,null,null,null,null,null,null,null,null,null,null,null,null,null,null,null,null,null,null,null,null,null,null,null,null,null,null,null,null,null,null,null,null,null,null,null,null,null,null,null,null,null,null,null,null,null,null,null,null,null,null,null,null,null,null,null,null,null,null,null,null,null,null,null,null,null,null,null,null,null,null,null,null,null,null,null,null,null,null,null,null,null,null,null,null,null,null,null,null,null,null,null,null,null,null,null,null,null,"LINE TAKT TIME"]
[null,null,null,null,null,null,null,null,null,null,null,null,null,null,null,null,null,null,null,null,null,null,null,null,null,null,null,null,null,null,null,null,null,null,null,null,null,null,null,null,null,null,null,null,null,null,null,null,null,null,null,null,null,null,null,null,null,null,null,null,null,null,null,null,null,null,null,null,null,null,null,null,null,null,null,null,null,null,null,null,null,null,null,null,null,null,null,null,null,null,null,null,null,null,null,null,null,null,null,null,null,null,null,null,null,null,null,null,null,null,null,null,null,null,null,null,null,null,null,null,null,null,null,null,null,null,null,"SECTION / LINE"]
["NO","WORK NAME",null,null,"MAN","AUTO","WALK"]
[]
[]
[]
[]
[]
[]
[]
[]
[]
[]
[]
[]
[]
[]
[]
[]
[]
[]
[]
[]
[]
[]
[]
[]
[]
[]
[]
[]
[]
[]
[]
[]
[]
[]
[]
[]
[]
[]
[]
[]
[]
[]
[]
[]
[]
[]
[]
[]
[]
["TOTAL",null,null,null,{"$f":"SUM(E8:E55)","v":0},"Wait",{"$f":"SUM(G8:G55)","v":0},"akhir"]

{"sheet":"TSS8","index":15,"n_rows":502,"n_cols":66,"rows_kept":502,"cut":false,"hidden":true,"merged":[[3,21,3,25],[3,26,4,26],[21,0,21,1],[25,0,26,0],[25,1,26,1],[25,2,25,16],[25,17,26,17],[25,18,26,18],[25,19,26,19],[3,0,4,0],[3,2,3,16],[3,17,4,17],[3,18,4,18],[3,19,4,19],[3,20,4,20],[1,0,2,1],[1,2,2,5],[1,6,2,13],[1,14,1,16],[1,23,1,25],[2,14,2,16],[2,23,2,25]]}
[null,null,{"$f":"COUNTA(B:B)-1","v":2}]
["PROCESS NAME",null,null,null,null,null,"TIME STUDY SHEET",null,null,null,null,null,null,null,"PART NO",null,null,null,"SECTION LINE",null,null,null,null,"DATE"]
[null,null,null,null,null,null,null,null,null,null,null,null,null,null,"TYPE",null,null,null,"TAKT TIME",null,null,null,null,"MEASURED BY"]
["NO","WORK NAME\nFor walk activity, please write :","Manual Time",null,null,null,null,null,null,null,null,null,null,null,null,null,null,"OPERATION TIME","ADJUSTMENT\n(Will be used for SWCT Line)","OPERATION","MACHINE NO","MACHINE TIME",null,null,null,null,"AUTO \n(MACHINE TIME)",null,null,null,{"$f":"SUM(AE6:AE100)","v":12.59},{"$f":"SUM(AF6:AF100)","v":9.7899999999999991},{"$f":"SUM(AG6:AG100)","v":9.57}]
[null,"Walk; Walk; walking; return; Return",1,2,3,4,5,6,7,8,9,10,11,12,13,14,15,null,null,null,null,1,2,3,4,5]
[1,null,null,null,null,null,null,null,null,null,null,null,null,null,null,null,null,null,null,null,null,null,null,null,null,null,null,null,null,null,2.0099999999999993,1.93,1.92,null,null,null,null,null,null,{"$f":"ROUND(C6,0)","v":0},0,0,0,null,null,null,null,null,null,null,null,null,null,null,{"$f":"IF(F6=\"\",\"\",CEILING(F6,0.5))","v":""},"","","","","","","","","","",""]
[{"$f":"+A6+1","v":2},null,null,null,null,null,null,null,null,null,null,null,null,null,null,null,null,null,null,null,null,null,null,null,null,null,null,null,null,null,2.75,2.0499999999999998,1.9500000000000002,null,null,null,null,null,null,0,0,0,0,null,null,null,null,null,null,null,null,null,null,null,"","","","","","","","","","","",""]
[3,null,null,null,null,null,null,null,null,null,null,null,null,null,null,null,null,null,null,null,null,null,null,null,null,null,null,null,null,null,1.9699999999999998,1.9500000000000002,1.9500000000000002,null,null,null,null,null,null,0,0,0,0,null,null,null,null,null,null,null,null,null,null,null,"","","","","","","","","","","",""]
[4,null,null,null,null,null,null,null,null,null,null,null,null,null,null,null,null,null,null,null,null,null,null,null,null,null,null,null,null,null,3.87,1.94,1.9100000000000001,null,null,null,null,null,null,0,0,0,0,null,null,null,null,null,null,null,null,null,null,null,"","","","","","","","","","","",""]
[5,null,null,null,null,null,null,null,null,null,null,null,null,null,null,null,null,null,null,null,null,null,null,null,null,null,null,null,null,null,1.9899999999999998,1.92,1.8399999999999999,null,null,null,null,null,null,0,0,0,0,null,null,null,null,null,null,null,null,null,null,null,"","","","","","","","","","","",""]
[6,null,null,null,null,null,null,null,null,null,null,null,null,null,null,null,null,null,null,null,null,null,null,null,null,null,null,null,null,null,null,null,null,null,null,null,null,null,null,null,null,null,null,null,null,null,null,null,null,null,null,null,null,null,"","","","","","","","","","","",""]
[7,null,null,null,null,null,null,null,null,null,null,null,null,null,null,null,null,null,null,null,null,null,null,null,null,null,null,null,null,null,null,null,null,null,null,null,null,null,null,null,null,null,null,null,null,null,null,null,null,null,null,null,null,null,"","","","","","","","","","","",""]
[8,null,null,null,null,null,null,null,null,null,null,null,null,null,null,null,null,null,null,null,null,null,null,null,null,null,null,null,null,null,null,null,null,null,null,null,null,null,null,null,null,null,null,null,null,null,null,null,null,null,null,null,null,null,"","","","","","","","","","","",""]
[9,null,null,null,null,null,null,null,null,null,null,null,null,null,null,null,null,null,null,null,null,null,null,null,null,null,null,null,null,null,null,null,null,null,null,null,null,null,null,null,null,null,null,null,null,null,null,null,null,null,null,null,null,null,"","","","","","","","","","","",""]
[10,null,null,null,null,null,null,null,null,null,null,null,null,null,null,null,null,null,null,null,null,null,null,null,null,null,null,null,null,null,null,null,null,null,null,null,null,null,null,null,null,null,null,null,null,null,null,null,null,null,null,null,null,null,"","","","","","","","","","","",""]
[11,null,null,null,null,null,null,null,null,null,null,null,null,null,null,null,null,null,null,null,null,null,null,null,null,null,null,null,null,null,null,null,null,null,null,null,null,null,null,null,null,null,null,null,null,null,null,null,null,null,null,null,null,null,"","","","","","","","","","","",""]
[12,null,null,null,null,null,null,null,null,null,null,null,null,null,null,null,null,null,null,null,null,null,null,null,null,null,null,null,null,null,null,null,null,null,null,null,null,null,null,null,null,null,null,null,null,null,null,null,null,null,null,null,null,null,"","","","","","","","","","","",""]
[{"$f":"+A17+1","v":13},null,null,null,null,null,null,null,null,null,null,null,null,null,null,null,null,null,null,null,null,null,null,null,null,null,null,null,null,null,null,null,null,null,null,null,null,null,null,null,null,null,null,null,null,null,null,null,null,null,null,null,null,null,"","","","","","","","","","","",""]
[14]
[15]
[16]
["CYCLE TIME",null,{"$f":"IF(SUM(C6:C21)=0,\"\",SUM(C6:C21))","v":""},"","","","","","","","","","","","","","",{"$f":"SUM(R6:R21)","v":0},{"$f":"SUM(S6:S21)","v":0},null,null,null,null,null,null,null,null,null,null,null,null,null,null,null,null,null,null,null,null,null,null,null,{"$f":"ROUND(F22,0)","v":{"$error":"#VALUE!"}}]
[]
[]
["Irregular Work (example : Take new polybox, etc)",null,null,null,null,null,null,null,null,null,null,null,null,null,null,null,null,null,null,{"$f":"COUNTA(B:B)","v":3}]
["NO","Irregular Work","Time",null,null,null,null,null,null,null,null,null,null,null,null,null,null,"Average Time","Piece","Time\n(sec/pc)"]
[null,null,1,2,3,4,5,6,7,8,9,10,11,12,13,14,15]
[1]
[{"$f":"+A28+1","v":2}]
[{"$f":"+A29+1","v":3}]
[{"$f":"+A30+1","v":4}]
[{"$f":"+A31+1","v":5}]
[null,null,null,null,null,null,null,null,null,null,null,null,null,null,null,null,null,null,null,{"$f":"SUM(T28:T32)","v":0}]
[]
[]
[]
[]
[]
[]
[]
[]
[]
[]
[]
[]
[]
[]
[]
[]
[]
[]
[]
[]
[]
[]
[]
[]
[]
[]
[]
[]
[]
[]
[]
[]
[]
[]
[]
[]
[]
[]
[]
[]
[]
[]
[]
[]
[]
[]
[]
[]
[]
[]
[]
[]
[]
[]
[]
[]
[]
[]
[]
[]
[]
[]
[]
[]
[]
[]
[]
[]
[]
[]
[]
[]
[]
[]
[]
[]
[]
[]
[]
[]
[]
[]
[]
[]
[]
[]
[]
[]
[]
[]
[]
[]
[]
[]
[]
[]
[]
[]
[]
[]
[]
[]
[]
[]
[]
[]
[]
[]
[]
[]
[]
[]
[]
[]
[]
[]
[]
[]
[]
[]
[]
[]
[]
[]
[]
[]
[]
[]
[]
[]
[]
[]
[]
[]
[]
[]
[]
[]
[]
[]
[]
[]
[]
[]
[]
[]
[]
[]
[]
[]
[]
[]
[]
[]
[]
[]
[]
[]
[]
[]
[]
[]
[]
[]
[]
[]
[]
[]
[]
[]
[]
[]
[]
[]
[]
[]
[]
[]
[]
[]
[]
[]
[]
[]
[]
[]
[]
[]
[]
[]
[]
[]
[]
[]
[]
[]
[]
[]
[]
[]
[]
[]
[]
[]
[]
[]
[]
[]
[]
[]
[]
[]
[]
[]
[]
[]
[]
[]
[]
[]
[]
[]
[]
[]
[]
[]
[]
[]
[]
[]
[]
[]
[]
[]
[]
[]
[]
[]
[]
[]
[]
[]
[]
[]
[]
[]
[]
[]
[]
[]
[]
[]
[]
[]
[]
[]
[]
[]
[]
[]
[]
[]
[]
[]
[]
[]
[]
[]
[]
[]
[]
[]
[]
[]
[]
[]
[]
[]
[]
[]
[]
[]
[]
[]
[]
[]
[]
[]
[]
[]
[]
[]
[]
[]
[]
[]
[]
[]
[]
[]
[]
[]
[]
[]
[]
[]
[]
[]
[]
[]
[]
[]
[]
[]
[]
[]
[]
[]
[]
[]
[]
[]
[]
[]
[]
[]
[]
[]
[]
[]
[]
[]
[]
[]
[]
[]
[]
[]
[]
[]
[]
[]
[]
[]
[]
[]
[]
[]
[]
[]
[]
[]
[]
[]
[]
[]
[]
[]
[]
[]
[]
[]
[]
[]
[]
[]
[]
[]
[]
[]
[]
[]
[]
[]
[]
[]
[]
[]
[]
[]
[]
[]
[]
[]
[]
[]
[]
[]
[]
[]
[]
[]
[]
[]
[]
[]
[]
[]
[]
[]
[]
[]
[]
[]
[]
[]
[]
[]
[]
[]
[]
[]
[]
[]
[]
[]
[]
[]
[]
[]
[]
[]
[]
[]
[]
[]
[]
[]
[]
[]
[]
[]
[]
[]
[]
[]
[]
[]
[]
[]
[]
[]
[]
[]
[]
[]
[]
[]
[]
[]
[]
[]
[]
[]
[]
[]
[]
[]
[]
[]
[]
[]
[]
[]
[]
[]
[]
[]
[null,null,null,null,null,null,null,null,null,null,null,null,null,null,null,null,null,null,10]

{"sheet":"8","index":16,"n_rows":56,"n_cols":228,"rows_kept":56,"cut":false,"hidden":true,"merged":[[55,0,56,3],[55,4,56,4],[55,6,56,6],[57,1,57,246],[48,6,50,6],[49,0,51,0],[49,1,51,3],[49,4,51,4],[49,5,51,5],[51,6,53,6],[52,0,54,0],[52,1,54,3],[52,4,54,4],[52,5,54,5],[34,1,36,3],[34,4,36,4],[34,5,36,5],[36,6,38,6],[37,0,39,0],[37,1,39,3],[37,4,39,4],[37,5,39,5],[39,6,41,6],[40,0,42,0],[40,1,42,3],[40,4,42,4],[40,5,42,5],[42,6,44,6],[43,0,45,0],[43,1,45,3],[43,4,45,4],[43,5,45,5],[45,6,47,6],[46,0,48,0],[46,1,48,3],[46,4,48,4],[46,5,48,5],[19,4,21,4],[19,5,21,5],[21,6,23,6],[22,0,24,0],[22,1,24,3],[22,4,24,4],[22,5,24,5],[24,6,26,6],[25,0,27,0],[25,1,27,3],[25,4,27,4],[25,5,27,5],[27,6,29,6],[28,0,30,0],[28,1,30,3],[28,4,30,4],[28,5,30,5],[30,6,32,6],[31,0,33,0],[31,1,33,3],[31,4,33,4],[31,5,33,5],[33,6,35,6],[34,0,36,0],[3,2,4,6],[7,0,9,0],[7,1,9,3],[7,4,9,4],[7,5,9,5],[7,6,8,6],[9,6,11,6],[10,0,12,0],[10,1,12,3],[10,4,12,4],[10,5,12,5],[12,6,14,6],[13,0,15,0],[13,1,15,3],[13,4,15,4],[13,5,15,5],[15,6,17,6],[16,0,18,0],[16,1,18,3],[16,4,18,4],[16,5,18,5],[18,6,20,6],[19,0,21,0],[19,1,21,3],[4,157,4,186],[5,0,6,0],[5,1,6,3],[5,4,6,4],[5,5,6,5],[5,6,6,6],[5,7,5,246],[1,207,1,226],[1,227,1,246],[2,127,2,156],[2,157,2,186],[2,187,4,206],[2,207,4,226],[2,227,4,246],[3,127,3,156],[3,157,3,186],[4,127,4,156],[1,0,2,1],[1,2,2,6],[1,7,4,126],[1,127,1,156],[1,157,1,186],[1,187,1,206],[3,0,4,1]]}
[2,null,null,null,null,null,null,null,0.5]
["PART NO",null,null,null,null,null,null,"STANDARDIZED WORK COMBINATION TABLE SHEET",null,null,null,null,null,null,null,null,null,null,null,null,null,null,null,null,null,null,null,null,null,null,null,null,null,null,null,null,null,null,null,null,null,null,null,null,null,null,null,null,null,null,null,null,null,null,null,null,null,null,null,null,null,null,null,null,null,null,null,null,null,null,null,null,null,null,null,null,null,null,null,null,null,null,null,null,null,null,null,null,null,null,null,null,null,null,null,null,null,null,null,null,null,null,null,null,null,null,null,null,null,null,null,null,null,null,null,null,null,null,null,null,null,null,null,null,null,null,null,"DATE TAKEN",null,null,null,null,null,null,null,null,null,null,null,null,null,null,null,null,null,null,null,null,null,null,null,null,null,null,null,null,null,null,null,null,null,null,null,null,null,null,null,null,null,null,null,null,null,null,null,null,null,null,null,null,null,null,null,null,null,null,null,"APPROVED",null,null,null,null,null,null,null,null,null,null,null,null,null,null,null,null,null,null,null,"CHECKED",null,null,null,null,null,null,null,null,null,null,null,null,null,null,null,null,null,null,null,"PREPARED"]
[null,null,null,null,null,null,null,null,null,null,null,null,null,null,null,null,null,null,null,null,null,null,null,null,null,null,null,null,null,null,null,null,null,null,null,null,null,null,null,null,null,null,null,null,null,null,null,null,null,null,null,null,null,null,null,null,null,null,null,null,null,null,null,null,null,null,null,null,null,null,null,null,null,null,null,null,null,null,null,null,null,null,null,null,null,null,null,null,null,null,null,null,null,null,null,null,null,null,null,null,null,null,null,null,null,null,null,null,null,null,null,null,null,null,null,null,null,null,null,null,null,null,null,null,null,null,null,"PCS / DAY"]
["PROCESS",null,null,null,null,null,null,null,null,null,null,null,null,null,null,null,null,null,null,null,null,null,null,null,null,null,null,null,null,null,null,null,null,null,null,null,null,null,null,null,null,null,null,null,null,null,null,null,null,null,null,null,null,null,null,null,null,null,null,null,null,null,null,null,null,null,null,null,null,null,null,null,null,null,null,null,null,null,null,null,null,null,null,null,null,null,null,null,null,null,null,null,null,null,null,null,null,null,null,null,null,null,null,null,null,null,null,null,null,null,null,null,null,null,null,null,null,null,null,null,null,null,null,null,null,null,null,"LINE TAKT TIME"]
[null,null,null,null,null,null,null,null,null,null,null,null,null,null,null,null,null,null,null,null,null,null,null,null,null,null,null,null,null,null,null,null,null,null,null,null,null,null,null,null,null,null,null,null,null,null,null,null,null,null,null,null,null,null,null,null,null,null,null,null,null,null,null,null,null,null,null,null,null,null,null,null,null,null,null,null,null,null,null,null,null,null,null,null,null,null,null,null,null,null,null,null,null,null,null,null,null,null,null,null,null,null,null,null,null,null,null,null,null,null,null,null,null,null,null,null,null,null,null,null,null,null,null,null,null,null,null,"SECTION / LINE"]
["NO","WORK NAME",null,null,"MAN","AUTO","WALK"]
[]
[]
[]
[]
[]
[]
[]
[]
[]
[]
[]
[]
[]
[]
[]
[]
[]
[]
[]
[]
[]
[]
[]
[]
[]
[]
[]
[]
[]
[]
[]
[]
[]
[]
[]
[]
[]
[]
[]
[]
[]
[]
[]
[]
[]
[]
[]
[]
[]
["TOTAL",null,null,null,{"$f":"SUM(E8:E55)","v":0},"Wait",{"$f":"SUM(G8:G55)","v":0},"akhir"]

{"sheet":"PCS","index":17,"n_rows":28,"n_cols":32,"rows_kept":28,"cut":false,"hidden":false,"merged":[[4,31,4,33],[5,1,6,1],[5,2,6,9],[5,10,6,11],[5,12,5,17],[5,18,5,21],[5,25,6,28],[1,25,1,27],[1,28,1,30],[1,31,1,33],[2,6,3,7],[2,8,3,9],[2,17,2,19],[3,17,3,19],[1,1,2,2],[1,3,2,5],[1,8,1,9],[1,10,4,16],[1,17,1,19],[3,1,4,2],[3,3,4,5],[4,6,4,7],[4,8,4,9],[1,6,1,7],[6,12,6,13],[6,14,6,15],[6,16,6,17],[6,18,6,19],[6,20,6,21],[5,22,6,24],[4,17,4,19],[4,25,4,27],[4,28,4,30],[7,25,7,33],[8,2,8,9],[8,10,8,11],[8,12,8,13],[8,14,8,15],[8,16,8,17],[8,18,8,19],[8,20,8,21],[8,22,8,24],[8,25,8,33],[7,22,7,24],[7,2,7,9],[7,10,7,11],[7,12,7,13],[7,14,7,15],[7,16,7,17],[7,18,7,19],[7,20,7,21],[9,20,9,21],[9,22,9,24],[9,25,9,33],[10,2,10,9],[10,10,10,11],[10,12,10,13],[10,14,10,15],[10,16,10,17],[10,18,10,19],[10,20,10,21],[9,2,9,9],[9,10,9,11],[9,12,9,13],[9,14,9,15],[9,16,9,17],[9,18,9,19],[10,22,10,24],[10,25,10,33],[11,2,11,9],[11,10,11,11],[11,12,11,13],[11,14,11,15],[11,16,11,17],[11,18,11,19],[11,20,11,21],[11,22,11,24],[11,25,11,33],[12,2,12,9],[12,10,12,11],[12,12,12,13],[12,14,12,15],[12,16,12,17],[12,18,12,19],[12,20,12,21],[12,22,12,24],[12,25,12,33],[13,20,13,21],[13,22,13,24],[13,25,13,33],[14,2,14,9],[14,10,14,11],[14,12,14,13],[14,14,14,15],[14,16,14,17],[14,18,14,19],[14,20,14,21],[13,2,13,9],[13,10,13,11],[13,12,13,13],[13,14,13,15],[13,16,13,17],[13,18,13,19],[15,25,15,33],[16,2,16,9],[16,10,16,11],[16,12,16,13],[16,14,16,15],[16,16,16,17],[16,22,16,24],[16,25,16,33],[14,22,14,24],[14,25,14,33],[15,2,15,9],[15,10,15,11],[15,12,15,13],[15,14,15,15],[15,16,15,17],[15,18,15,19],[15,20,15,21],[15,22,15,24],[17,25,17,33],[18,2,18,9],[18,10,18,11],[18,12,18,13],[18,14,18,15],[18,16,18,17],[18,22,18,24],[18,25,18,33],[17,2,17,9],[17,10,17,11],[17,12,17,13],[17,14,17,15],[17,16,17,17],[17,22,17,24],[19,25,19,33],[20,2,20,9],[20,10,20,11],[20,12,20,13],[20,14,20,15],[20,16,20,17],[20,22,20,24],[20,25,20,33],[19,2,19,9],[19,10,19,11],[19,12,19,13],[19,14,19,15],[19,16,19,17],[19,22,19,24],[21,25,21,33],[22,2,22,9],[22,10,22,11],[22,12,22,13],[22,14,22,15],[22,16,22,17],[22,22,22,24],[22,25,22,33],[21,2,21,9],[21,10,21,11],[21,12,21,13],[21,14,21,15],[21,16,21,17],[21,22,21,24],[23,25,23,33],[26,2,26,9],[26,10,26,11],[26,12,26,13],[26,14,26,15],[26,16,26,17],[26,22,26,24],[26,25,26,33],[23,2,23,9],[23,10,23,11],[23,12,23,13],[23,14,23,15],[23,16,23,17],[23,22,23,24],[27,23,28,23],[27,24,28,24],[27,17,28,17],[27,18,28,18],[27,19,28,19],[27,20,28,20],[27,21,28,21],[27,22,28,22],[27,1,28,9],[27,10,28,11],[27,12,28,13],[27,14,28,14],[27,15,28,15],[27,16,28,16]]}
[{"$f":"COUNTA(B:B)-3","v":0}]
[null,"TYPE",null,null,null,null,"SECTION",null,"LINE",null,"PRODUCTION CAPACITY SHEET",null,null,null,null,null,null,"PART NO",null,null,": ",null,null,null,null,"APPROVED",null,null,"CHECKED",null,null,"PREPARED"]
[null,null,null,null,null,null,null,null,null,null,null,null,null,null,null,null,null,"PART NAME",null,null,":"]
[null,"NO. OF UNITS",null,null,null,null,null,null,null,null,null,null,null,null,null,null,null,"DOC. NO.",null,null,": "]
[null,null,null,null,null,null,"PAGE",null,null,null,null,null,null,null,null,null,null,"DATE",null,null,":"]
[null,"NO","OPERATION",null,null,null,null,null,null,null,"MACHINE NO",null,"BASIC TIME",null,null,null,null,null,"TOOLS",null,null,null,"PROCESSING CAPACITY\n()"]
[null,null,null,null,null,null,null,null,null,null,null,null,"MANUAL",null,"AUTO",null,"TIME TO COMPLETE",null,"NO CHANGED",null,"TIME TAKEN"]
[]
[]
[]
[]
[]
[]
[]
[]
[]
[]
[]
[]
[]
[]
[]
[]
[]
[]
[null,null,null,null,null,null,null,null,null,null,"TOTAL"]
[]
[null,null,null,null,null,null,null,null,null,null,"TOTAL",null,{"$f":"SUM(M8:N27)","v":0}]

{"sheet":"Stopwatch","index":18,"n_rows":111,"n_cols":9,"rows_kept":111,"cut":false,"hidden":true,"merged":[]}
[null,null,null,"00:04,441","Trigger stop watch",null,null,{"$f":"COUNTA(D:D)-4","v":1}]
[]
["sekarang",{"$f":"NOW()","v":43036.788215972221}]
["Start","Stop","Selisih"]
[42715.439160648151,{"$f":"NOW()","v":43036.788215972221},{"$f":"B5-A5","v":321.34905532406992},"untuk total",null,"00:00:00"]
[42715.439212152778,{"$f":"NOW()","v":43036.788215972221},{"$f":"B6-A6","v":321.34900381944317},"untuk tiap lap"]
[]
[]
[]
[null,null,null,"Clear Time","Time"]
[null,null,null,"00:00:04.450",{"$f":"IF(D11=\"\",\"\",D11*3600*24)","v":4.4500000000000011},null,-4.659536743156778E-5,"Ambil polybox kosong","irregular"]
[null,null,null,null,"",null,3.1459314572204597,"Ambil template","irregular"]
[null,null,null,null,"",null,-2.9498092651358832E-4,"a","manual"]
[null,null,null,null,"",null,2.5162179713897705,"b","manual"]
[null,null,null,null,"",null,5.4909766095367427,"c","manual"]
[null,null,null,null,"",null,8.2503792950958257,"ambil box kosong","irregular"]
[null,null,null,null,"",null,11.385990404904176,"d","manual"]
[null,null,null,null,"",null,13.741076190463257,"e","manual"]
[null,null,null,null,"",null,17.726833714440918,"f","manual"]
[null,null,null,null,"",null,22.847540395095827,"a","manual"]
[null,null,null,null,"",null,25.73693978555908,"b","manual"]
[null,null,null,null,"",null,28.870000839233398,"c","manual"]
[null,null,null,null,"",null,4.4163323525878901,101,"mesin"]
[null,null,null,null,"",null,-2.949904632569833E-4,"ambil","manual"]
[null,null,null,null,"",null,2.2551490237060543,"test","manual"]
[null,null,null,null,"",null,4.9280321855590818,"ambil box","irregular"]
[null,null,null,null,"",null,7.0628946523162845,"歩く","manual"]
[null,null,null,null,"",null,10.263572904632568,"unload1","manual"]
[null,null,null,null,"",null,13.667617357220458,"歩く","manual"]
[null,null,null,null,"",null,16.230659614169312,"unload 2","manual"]
[null,null,null,null,"",null,18.891274428610231,"fds","manual"]
[null,null,null,null,"",null,21.176268761853027,"selesao","manual"]
[null,null,null,null,""]
[null,null,null,null,""]
[null,null,null,null,""]
[null,null,null,null,""]
[null,null,null,null,""]
[null,null,null,null,""]
[null,null,null,null,""]
[null,null,null,null,""]
[null,null,null,null,""]
[null,null,null,null,""]
[null,null,null,null,""]
[null,null,null,null,""]
[null,null,null,null,""]
[null,null,null,null,""]
[null,null,null,null,""]
[null,null,null,null,""]
[null,null,null,null,""]
[null,null,null,null,""]
[null,null,null,null,""]
[null,null,null,null,""]
[null,null,null,null,""]
[null,null,null,null,""]
[null,null,null,null,""]
[null,null,null,null,""]
[null,null,null,null,""]
[null,null,null,null,""]
[null,null,null,null,""]
[null,null,null,null,""]
[null,null,null,null,""]
[null,null,null,null,""]
[null,null,null,null,""]
[null,null,null,null,""]
[null,null,null,null,""]
[null,null,null,null,""]
[null,null,null,null,""]
[null,null,null,null,""]
[null,null,null,null,""]
[null,null,null,null,""]
[null,null,null,null,""]
[null,null,null,null,""]
[null,null,null,null,""]
[null,null,null,null,""]
[null,null,null,null,""]
[null,null,null,null,{"$f":"IF(D76=\"\",\"\",D76*3600*24)","v":""}]
[null,null,null,null,""]
[null,null,null,null,""]
[null,null,null,null,""]
[null,null,null,null,""]
[null,null,null,null,""]
[null,null,null,null,""]
[null,null,null,null,""]
[null,null,null,null,""]
[null,null,null,null,""]
[null,null,null,null,""]
[null,null,null,null,""]
[null,null,null,null,""]
[null,null,null,null,""]
[null,null,null,null,""]
[null,null,null,null,""]
[null,null,null,null,""]
[null,null,null,null,""]
[null,null,null,null,""]
[null,null,null,null,""]
[null,null,null,null,""]
[null,null,null,null,""]
[null,null,null,null,""]
[null,null,null,null,""]
[null,null,null,null,""]
[null,null,null,null,""]
[null,null,null,null,""]
[null,null,null,null,""]
[null,null,null,null,""]
[null,null,null,null,""]
[null,null,null,null,""]
[null,null,null,null,""]
[null,null,null,null,""]
[null,null,null,null,""]
[null,null,null,null,""]
[null,null,null,null,""]

{"sheet":"Yamazumi1","index":19,"n_rows":55,"n_cols":6,"rows_kept":55,"cut":false,"hidden":true,"merged":[]}
[]
[]
[]
[]
[]
[]
[]
[]
[]
[]
[]
[]
[]
[]
[]
[]
[]
[]
[]
[]
[]
[]
[]
[]
[]
[]
[]
[]
[]
[]
[]
[]
[]
[]
[]
[]
[]
[]
[]
[]
[]
[null,"Please input data for Yamazumi Chart"]
[null,"You can change data below (Only in Yellow Cell)"]
[null,"Qty/Cycle",null,1]
[null,"Cycle Time",null,{"$f":"('1'!E56+'1'!F57+'1'!G56)/D44","v":0},{"$f":"D45","v":0}]
[null,"Irregular Work",null,{"$f":"'TSS1'!T43","v":0}]
[null,"Fluctuation",null,null,{"$f":"(E50-E51)/D44","v":0}]
[null,null,null,null,{"$f":"D46+D49","v":0}]
[null,"Changeover (sec/pc)",null,0]
[null,"Max",null,null,{"$f":"(MAX('TSS1'!C22:Q22))/D44","v":0}]
[null,"Min",null,null,{"$f":"(MIN('TSS1'!C22:Q22))/D44","v":0}]
[null,"Average Fluctuation",null,null,{"$f":"(E47/2)+E45+E48","v":0}]
[null,"Actual Cycle Time (sec/pc)",null,0]
[null,"Takt Time",{"$f":"D54","v":0},0,{"$f":"D54","v":0},{"$f":"E54","v":0}]
[null,null,null,"Operator"]

{"sheet":"Yamazumi2","index":20,"n_rows":55,"n_cols":9,"rows_kept":55,"cut":false,"hidden":true,"merged":[]}
[]
[]
[]
[]
[]
[]
[]
[]
[]
[]
[]
[]
[]
[]
[]
[]
[]
[]
[]
[]
[]
[]
[]
[]
[]
[]
[]
[]
[]
[]
[]
[]
[]
[]
[]
[]
[]
[]
[]
[]
[]
[null,"Please input data for Yamazumi Chart"]
[null,"You can change data below (Only in Yellow Cell)"]
[null,"Qty/Cycle",null,1,null,null,1]
[null,"Cycle Time",null,{"$f":"('1'!E56+'1'!F57+'1'!G56)/D44","v":0},{"$f":"D45","v":0},null,{"$f":"('2'!E56+'2'!F57+'2'!G56)/G44","v":0},{"$f":"G45","v":0}]
[null,"Irregular Work",null,{"$f":"'TSS1'!T43","v":0},null,null,{"$f":"'TSS2'!T37","v":0}]
[null,"Fluctuation",null,null,{"$f":"(E50-E51)/D44","v":0},null,null,{"$f":"(H50-H51)/G44","v":0}]
[null,null,null,null,{"$f":"D46+D49","v":0},null,null,{"$f":"G46+G49","v":0}]
[null,"Changeover (sec/pc)",null,0,null,null,0]
[null,"Max",null,null,{"$f":"(MAX('TSS1'!C22:Q22))/D44","v":0},null,null,{"$f":"(MAX('TSS2'!C22:Q22))/G44","v":0}]
[null,"Min",null,null,{"$f":"(MIN('TSS1'!C22:Q22))/D44","v":0},null,null,{"$f":"(MIN('TSS2'!C22:Q22))/G44","v":0}]
[null,"Average Fluctuation",null,null,{"$f":"(E47/2)+E45+E48","v":0},null,null,{"$f":"(H47/2)+H45+H48","v":0}]
[null,"Actual Cycle Time (sec/pc)",null,0,null,null,0]
[null,"Takt Time",{"$f":"D54","v":0},0,{"$f":"D54","v":0},{"$f":"E54","v":0},{"$f":"F54","v":0},{"$f":"G54","v":0},{"$f":"H54","v":0}]
[null,null,null,"Operator1",null,null,"Operator2"]

{"sheet":"Yamazumi3","index":21,"n_rows":55,"n_cols":12,"rows_kept":55,"cut":false,"hidden":true,"merged":[]}
[]
[]
[]
[]
[]
[]
[]
[]
[]
[]
[]
[]
[]
[]
[]
[]
[]
[]
[]
[]
[]
[]
[]
[]
[]
[]
[]
[]
[]
[]
[]
[]
[]
[]
[]
[]
[]
[]
[]
[]
[]
[null,"Please input data for Yamazumi Chart"]
[null,"You can change data below (Only in Yellow Cell)"]
[null,"Qty/Cycle",null,1,null,null,1,null,null,1]
[null,"Cycle Time",null,{"$f":"('1'!E56+'1'!F57+'1'!G56)/D44","v":0},{"$f":"D45","v":0},null,{"$f":"('2'!E56+'2'!F57+'2'!G56)/G44","v":0},{"$f":"G45","v":0},null,{"$f":"('3'!E56+'3'!F57+'3'!G56)/J44","v":0},{"$f":"J45","v":0}]
[null,"Irregular Work",null,{"$f":"'TSS1'!T43","v":0},null,null,{"$f":"'TSS2'!T37","v":0},null,null,{"$f":"'TSS3'!T37","v":0}]
[null,"Fluctuation",null,null,{"$f":"(E50-E51)/D44","v":0},null,null,{"$f":"(H50-H51)/G44","v":0},null,null,{"$f":"(K50-K51)/J44","v":0}]
[null,null,null,null,{"$f":"D46+D49","v":0},null,null,{"$f":"G46+G49","v":0},null,null,{"$f":"J46+J49","v":0}]
[null,"Changeover (sec/pc)",null,0,null,null,0,null,null,0]
[null,"Max",null,null,{"$f":"(MAX('TSS1'!C22:Q22))/D44","v":0},null,null,{"$f":"(MAX('TSS2'!C22:Q22))/G44","v":0},null,null,{"$f":"(MAX('TSS3'!C22:Q22))/J44","v":0}]
[null,"Min",null,null,{"$f":"(MIN('TSS1'!C22:Q22))/D44","v":0},null,null,{"$f":"(MIN('TSS2'!C22:Q22))/G44","v":0},null,null,{"$f":"(MIN('TSS3'!C22:Q22))/J44","v":0}]
[null,"Average Fluctuation",null,null,{"$f":"(E47/2)+E45+E48","v":0},null,null,{"$f":"(H47/2)+H45+H48","v":0},null,null,{"$f":"(K47/2)+K45+K48","v":0}]
[null,"Actual Cycle Time (sec/pc)",null,0,null,null,0,null,null,0]
[null,"Takt Time",{"$f":"D54","v":0},0,{"$f":"D54","v":0},{"$f":"E54","v":0},0,{"$f":"G54","v":0},{"$f":"H54","v":0},0,{"$f":"J54","v":0},{"$f":"K54","v":0}]
[null,null,null,"Operator1",null,null,"Operator2",null,null,"Operator3"]

{"sheet":"Yamazumi4","index":22,"n_rows":55,"n_cols":15,"rows_kept":55,"cut":false,"hidden":true,"merged":[]}
[]
[]
[]
[]
[]
[]
[]
[]
[]
[]
[]
[]
[]
[]
[]
[]
[]
[]
[]
[]
[]
[]
[]
[]
[]
[]
[]
[]
[]
[]
[]
[]
[]
[]
[]
[]
[]
[]
[]
[]
[]
[null,"Please input data for Yamazumi Chart"]
[null,"You can change data below (Only in Yellow Cell)"]
[null,"Qty/Cycle",null,1,null,null,1,null,null,1,null,null,1]
[null,"Cycle Time",null,{"$f":"('1'!E56+'1'!F57+'1'!G56)/D44","v":0},{"$f":"D45","v":0},null,{"$f":"('2'!E56+'2'!F57+'2'!G56)/G44","v":0},{"$f":"G45","v":0},null,{"$f":"('3'!E56+'3'!F57+'3'!G56)/J44","v":0},{"$f":"J45","v":0},null,{"$f":"('4'!E56+'4'!F57+'4'!G56)/M44","v":0},{"$f":"M45","v":0}]
[null,"Irregular Work",null,{"$f":"'TSS1'!T43","v":0},null,null,{"$f":"'TSS2'!T37","v":0},null,null,{"$f":"'TSS3'!T37","v":0},null,null,{"$f":"'TSS4'!T37","v":0}]
[null,"Fluctuation",null,null,{"$f":"(E50-E51)/D44","v":0},null,null,{"$f":"(H50-H51)/G44","v":0},null,null,{"$f":"(K50-K51)/J44","v":0},null,null,{"$f":"(N50-N51)/M44","v":0}]
[null,null,null,null,{"$f":"D46+D49","v":0},null,null,{"$f":"G46+G49","v":0},null,null,{"$f":"J46+J49","v":0},null,null,{"$f":"M46+M49","v":0}]
[null,"Changeover (sec/pc)",null,0,null,null,0,null,null,0,null,null,0]
[null,"Max",null,null,{"$f":"(MAX('TSS1'!C22:Q22))/D44","v":0},null,null,{"$f":"(MAX('TSS2'!C22:Q22))/G44","v":0},null,null,{"$f":"(MAX('TSS3'!C22:Q22))/J44","v":0},null,null,{"$f":"(MAX('TSS4'!C22:Q22))/J44","v":0}]
[null,"Min",null,null,{"$f":"(MIN('TSS1'!C22:Q22))/D44","v":0},null,null,{"$f":"(MIN('TSS2'!C22:Q22))/G44","v":0},null,null,{"$f":"(MIN('TSS3'!C22:Q22))/J44","v":0},null,null,{"$f":"(MIN('TSS4'!C22:Q22))/J44","v":0}]
[null,"Average Fluctuation",null,null,{"$f":"(E47/2)+E45+E48","v":0},null,null,{"$f":"(H47/2)+H45+H48","v":0},null,null,{"$f":"(K47/2)+K45+K48","v":0},null,null,{"$f":"(N47/2)+N45+N48","v":0}]
[null,"Actual Cycle Time (sec/pc)",null,0,null,null,0,null,null,0,null,null,0]
[null,"Takt Time",{"$f":"D54","v":0},0,{"$f":"D54","v":0},{"$f":"E54","v":0},0,{"$f":"G54","v":0},{"$f":"H54","v":0},0,{"$f":"J54","v":0},{"$f":"K54","v":0},0,{"$f":"M54","v":0},{"$f":"N54","v":0}]
[null,null,null,"Operator1",null,null,"Operator2",null,null,"Operator3",null,null,"Operator4"]

{"sheet":"Yamazumi5","index":23,"n_rows":55,"n_cols":18,"rows_kept":55,"cut":false,"hidden":true,"merged":[]}
[]
[]
[]
[]
[]
[]
[]
[]
[]
[]
[]
[]
[]
[]
[]
[]
[]
[]
[]
[]
[]
[]
[]
[]
[]
[]
[]
[]
[]
[]
[]
[]
[]
[]
[]
[]
[]
[]
[]
[]
[]
[null,"Please input data for Yamazumi Chart"]
[null,"You can change data below (Only in Yellow Cell)"]
[null,"Qty/Cycle",null,1,null,null,1,null,null,1,null,null,1,null,null,1]
[null,"Cycle Time",null,{"$f":"('1'!E56+'1'!F57+'1'!G56)/D44","v":0},{"$f":"D45","v":0},null,{"$f":"('2'!E56+'2'!F57+'2'!G56)/G44","v":0},{"$f":"G45","v":0},null,{"$f":"('3'!E56+'3'!F57+'3'!G56)/J44","v":0},{"$f":"J45","v":0},null,{"$f":"('4'!E56+'4'!F57+'4'!G56)/M44","v":0},{"$f":"M45","v":0},null,{"$f":"('5'!E56+'5'!F57+'5'!G56)/P44","v":0},{"$f":"P45","v":0}]
[null,"Irregular Work",null,{"$f":"'TSS1'!T43","v":0},null,null,{"$f":"'TSS2'!T37","v":0},null,null,{"$f":"'TSS3'!T37","v":0},null,null,{"$f":"'TSS4'!T37","v":0},null,null,{"$f":"'TSS5'!T37","v":0}]
[null,"Fluctuation",null,null,{"$f":"(E50-E51)/D44","v":0},null,null,{"$f":"(H50-H51)/G44","v":0},null,null,{"$f":"(K50-K51)/J44","v":0},null,null,{"$f":"(N50-N51)/M44","v":0},null,null,{"$f":"(Q50-Q51)/P44","v":0}]
[null,null,null,null,{"$f":"D46+D49","v":0},null,null,{"$f":"G46+G49","v":0},null,null,{"$f":"J46+J49","v":0},null,null,{"$f":"M46+M49","v":0},null,null,{"$f":"P46+P49","v":0}]
[null,"Changeover (sec/pc)",null,0,null,null,0,null,null,0,null,null,0,null,null,0]
[null,"Max",null,null,{"$f":"(MAX('TSS1'!C22:Q22))/D44","v":0},null,null,{"$f":"(MAX('TSS2'!C22:Q22))/G44","v":0},null,null,{"$f":"(MAX('TSS3'!C22:Q22))/J44","v":0},null,null,{"$f":"(MAX('TSS4'!C22:Q22))/M44","v":0},null,null,{"$f":"(MAX('TSS5'!C22:Q22))/P44","v":0}]
[null,"Min",null,null,{"$f":"(MIN('TSS1'!C22:Q22))/D44","v":0},null,null,{"$f":"(MIN('TSS2'!C22:Q22))/G44","v":0},null,null,{"$f":"(MIN('TSS3'!C22:Q22))/J44","v":0},null,null,{"$f":"(MIN('TSS4'!C22:Q22))/M44","v":0},null,null,{"$f":"(MIN('TSS5'!C21:Q21))/P44","v":0}]
[null,"Average Fluctuation",null,null,{"$f":"(E47/2)+E45+E48","v":0},null,null,{"$f":"(H47/2)+H45+H48","v":0},null,null,{"$f":"(K47/2)+K45+K48","v":0},null,null,{"$f":"(N47/2)+N45+N48","v":0},null,null,{"$f":"(Q47/2)+Q45+Q48","v":0}]
[null,"Actual Cycle Time (sec/pc)",null,0,null,null,0,null,null,0,null,null,0,null,null,0]
[null,"Takt Time",{"$f":"D54","v":0},0,{"$f":"D54","v":0},{"$f":"E54","v":0},0,{"$f":"G54","v":0},{"$f":"H54","v":0},0,{"$f":"J54","v":0},0,0,0,0,0,0,0]
[null,null,null,"Operator1",null,null,"Operator2",null,null,"Operator3",null,null,"Operator4",null,null,"Operator5"]

{"sheet":"Yamazumi6","index":24,"n_rows":55,"n_cols":21,"rows_kept":55,"cut":false,"hidden":true,"merged":[]}
[]
[]
[]
[]
[]
[]
[]
[]
[]
[]
[]
[]
[]
[]
[]
[]
[]
[]
[]
[]
[]
[]
[]
[]
[]
[]
[]
[]
[]
[]
[]
[]
[]
[]
[]
[]
[]
[]
[]
[]
[]
[null,"Please input data for Yamazumi Chart"]
[null,"You can change data below (Only in Yellow Cell)"]
[null,"Qty/Cycle",null,1,null,null,1,null,null,1,null,null,1,null,null,1,null,null,1]
[null,"Cycle Time",null,{"$f":"('1'!E56+'1'!F57+'1'!G56)/D44","v":0},{"$f":"D45","v":0},null,{"$f":"('2'!E56+'2'!F57+'2'!G56)/G44","v":0},{"$f":"G45","v":0},null,{"$f":"('3'!E56+'3'!F57+'3'!G56)/J44","v":0},{"$f":"J45","v":0},null,{"$f":"('4'!E56+'4'!F57+'4'!G56)/M44","v":0},{"$f":"M45","v":0},null,{"$f":"('5'!E56+'5'!F57+'5'!G56)/P44","v":0},{"$f":"P45","v":0},null,{"$f":"('6'!E56+'6'!F57+'6'!G56)/S44","v":0},{"$f":"S45","v":0}]
[null,"Irregular Work",null,{"$f":"'TSS1'!T43","v":0},null,null,{"$f":"'TSS2'!T37","v":0},null,null,{"$f":"'TSS3'!T37","v":0},null,null,{"$f":"'TSS4'!T37","v":0},null,null,{"$f":"'TSS5'!T37","v":0},null,null,{"$f":"'TSS6'!T37","v":0}]
[null,"Fluctuation",null,null,{"$f":"(E50-E51)/D44","v":0},null,null,{"$f":"(H50-H51)/G44","v":0},null,null,{"$f":"(K50-K51)/J44","v":0},null,null,{"$f":"(N50-N51)/M44","v":0},null,null,{"$f":"(Q50-Q51)/P44","v":0},null,null,{"$f":"(T50-T51)/S44","v":0}]
[null,null,null,null,{"$f":"D46+D49","v":0},null,null,{"$f":"G46+G49","v":0},null,null,{"$f":"J46+J49","v":0},null,null,{"$f":"M46+M49","v":0},null,null,{"$f":"P46+P49","v":0},null,null,{"$f":"S46+S49","v":0}]
[null,"Changeover (sec/pc)",null,0,null,null,0,null,null,0,null,null,0,null,null,0,null,null,0]
[null,"Max",null,null,{"$f":"(MAX('TSS1'!C22:Q22))/D44","v":0},null,null,{"$f":"(MAX('TSS2'!C22:Q22))/G44","v":0},null,null,{"$f":"(MAX('TSS3'!C22:Q22))/J44","v":0},null,null,{"$f":"(MAX('TSS4'!C22:Q22))/M44","v":0},null,null,{"$f":"(MAX('TSS5'!C22:Q22))/M44","v":0},null,null,{"$f":"(MAX('TSS6'!C22:Q22))/S44","v":0}]
[null,"Min",null,null,{"$f":"(MIN('TSS1'!C22:Q22))/D44","v":0},null,null,{"$f":"(MIN('TSS2'!C22:Q22))/G44","v":0},null,null,{"$f":"(MIN('TSS3'!C22:Q22))/J44","v":0},null,null,{"$f":"(MIN('TSS4'!C22:Q22))/M44","v":0},null,null,{"$f":"(MIN('TSS5'!C22:Q22))/M44","v":0},null,null,{"$f":"(MIN('TSS6'!C21:Q21))/S44","v":0}]
[null,"Average Fluctuation",null,null,{"$f":"(E47/2)+E45+E48","v":0},null,null,{"$f":"(H47/2)+H45+H48","v":0},null,null,{"$f":"(K47/2)+K45+K48","v":0},null,null,{"$f":"(N47/2)+N45+N48","v":0},null,null,{"$f":"(Q47/2)+Q45+Q48","v":0},null,null,{"$f":"(T47/2)+T45+T48","v":0}]
[null,"Actual Cycle Time (sec/pc)",null,0,null,null,0,null,null,0,null,null,0,null,null,0,null,null,0]
[null,"Takt Time",{"$f":"D54","v":0},0,{"$f":"D54","v":0},{"$f":"E54","v":0},0,{"$f":"G54","v":0},{"$f":"H54","v":0},0,{"$f":"J54","v":0},0,0,0,0,0,{"$f":"P54","v":0},0,0,0,0]
[null,null,null,"Operator1",null,null,"Operator2",null,null,"Operator3",null,null,"Operator4",null,null,"Operator5",null,null,"Operator6"]

{"sheet":"Yamazumi7","index":25,"n_rows":55,"n_cols":24,"rows_kept":55,"cut":false,"hidden":true,"merged":[]}
[]
[]
[]
[]
[]
[]
[]
[]
[]
[]
[]
[]
[]
[]
[]
[]
[]
[]
[]
[]
[]
[]
[]
[]
[]
[]
[]
[]
[]
[]
[]
[]
[]
[]
[]
[]
[]
[]
[]
[]
[]
[null,"Please input data for Yamazumi Chart"]
[null,"You can change data below (Only in Yellow Cell)"]
[null,"Qty/Cycle",null,1,null,null,1,null,null,1,null,null,1,null,null,1,null,null,1,null,null,1]
[null,"Cycle Time",null,{"$f":"('1'!E56+'1'!F57+'1'!G56)/D44","v":0},{"$f":"D45","v":0},null,{"$f":"('2'!E56+'2'!F57+'2'!G56)/G44","v":0},{"$f":"G45","v":0},null,{"$f":"('3'!E56+'3'!F57+'3'!G56)/J44","v":0},{"$f":"J45","v":0},null,{"$f":"('4'!E56+'4'!F57+'4'!G56)/M44","v":0},{"$f":"M45","v":0},null,{"$f":"('5'!E56+'5'!F57+'5'!G56)/P44","v":0},{"$f":"P45","v":0},null,{"$f":"('6'!E56+'6'!F57+'6'!G56)/P44","v":0},{"$f":"S45","v":0},null,{"$f":"('7'!E56+'7'!F57+'7'!G56)/V44","v":0},{"$f":"V45","v":0}]
[null,"Irregular Work",null,{"$f":"'TSS1'!T43","v":0},null,null,{"$f":"'TSS2'!T37","v":0},null,null,{"$f":"'TSS3'!T37","v":0},null,null,{"$f":"'TSS4'!T37","v":0},null,null,{"$f":"'TSS5'!T37","v":0},null,null,{"$f":"'TSS6'!T37","v":0},null,null,{"$f":"'TSS7'!T37","v":0}]
[null,"Fluctuation",null,null,{"$f":"(E50-E51)/D44","v":0},null,null,{"$f":"(H50-H51)/G44","v":0},null,null,{"$f":"(K50-K51)/J44","v":0},null,null,{"$f":"(N50-N51)/M44","v":0},null,null,{"$f":"(Q50-Q51)/P44","v":0},null,null,{"$f":"(T50-T51)/S44","v":0},null,null,{"$f":"(W50-W51)/V44","v":0}]
[null,null,null,null,{"$f":"D46+D49","v":0},null,null,{"$f":"G46+G49","v":0},null,null,{"$f":"J46+J49","v":0},null,null,{"$f":"M46+M49","v":0},null,null,{"$f":"P46+P49","v":0},null,null,{"$f":"S46+S49","v":0},null,null,{"$f":"V46+V49","v":0}]
[null,"Changeover (sec/pc)",null,0,null,null,0,null,null,0,null,null,0,null,null,0,null,null,0,null,null,0]
[null,"Max",null,null,{"$f":"(MAX('TSS1'!C22:Q22))/D44","v":0},null,null,{"$f":"(MAX('TSS2'!C22:Q22))/G44","v":0},null,null,{"$f":"(MAX('TSS3'!C22:Q22))/J44","v":0},null,null,{"$f":"(MAX('TSS4'!C22:Q22))/M44","v":0},null,null,{"$f":"(MAX('TSS5'!F22:T22))/P44","v":0},null,null,{"$f":"(MAX('TSS6'!I22:W22))/S44","v":0},null,null,{"$f":"(MAX('TSS7'!C22:Q22))/V44","v":0}]
[null,"Min",null,null,{"$f":"(MIN('TSS1'!C22:Q22))/D44","v":0},null,null,{"$f":"(MIN('TSS2'!C22:Q22))/G44","v":0},null,null,{"$f":"(MIN('TSS3'!C22:Q22))/J44","v":0},null,null,{"$f":"(MIN('TSS4'!C22:Q22))/M44","v":0},null,null,{"$f":"(MIN('TSS5'!F22:T22))/P44","v":0},null,null,{"$f":"(MIN('TSS6'!I22:W22))/S44","v":0},null,null,{"$f":"(MIN('TSS7'!C21:Q21))/V44","v":0}]
[null,"Average Fluctuation",null,null,{"$f":"(E47/2)+E45+E48","v":0},null,null,{"$f":"(H47/2)+H45+H48","v":0},null,null,{"$f":"(K47/2)+K45+K48","v":0},null,null,{"$f":"(N47/2)+N45+N48","v":0},null,null,{"$f":"(Q47/2)+Q45+Q48","v":0},null,null,{"$f":"(T47/2)+T45+T48","v":0},null,null,{"$f":"(W47/2)+W45+W48","v":0}]
[null,"Actual Cycle Time (sec/pc)",null,0,null,null,0,null,null,0,null,null,0,null,null,0,null,null,0,null,null,0]
[null,"Takt Time",{"$f":"D54","v":0},0,{"$f":"D54","v":0},{"$f":"E54","v":0},0,{"$f":"G54","v":0},{"$f":"H54","v":0},0,{"$f":"J54","v":0},0,0,0,0,0,{"$f":"P54","v":0},0,0,{"$f":"S54","v":0},0,0,0,0]
[null,null,null,"Operator1",null,null,"Operator2",null,null,"Operator3",null,null,"Operator4",null,null,"Operator5",null,null,"Operator6",null,null,"Operator7"]

{"sheet":"Yamazumi8","index":26,"n_rows":55,"n_cols":27,"rows_kept":55,"cut":false,"hidden":true,"merged":[]}
[]
[]
[]
[]
[]
[]
[]
[]
[]
[]
[]
[]
[]
[]
[]
[]
[]
[]
[]
[]
[]
[]
[]
[]
[]
[]
[]
[]
[]
[]
[]
[]
[]
[]
[]
[]
[]
[]
[]
[]
[]
[null,"Please input data for Yamazumi Chart"]
[null,"You can change data below (Only in Yellow Cell)"]
[null,"Qty/Cycle",null,1,null,null,1,null,null,1,null,null,1,null,null,1,null,null,1,null,null,1,null,null,1]
[null,"Cycle Time",null,{"$f":"('1'!E56+'1'!F57+'1'!G56)/D44","v":0},{"$f":"D45","v":0},null,{"$f":"('2'!E56+'2'!F57+'2'!G56)/G44","v":0},{"$f":"G45","v":0},null,{"$f":"('3'!E56+'3'!F57+'3'!G56)/J44","v":0},{"$f":"J45","v":0},null,{"$f":"('4'!E56+'4'!F57+'4'!G56)/M44","v":0},{"$f":"M45","v":0},null,{"$f":"('5'!E56+'5'!F57+'5'!G56)/P44","v":0},{"$f":"P45","v":0},null,{"$f":"('6'!E56+'6'!F57+'6'!G56)/P44","v":0},{"$f":"S45","v":0},null,{"$f":"('7'!E56+'7'!F57+'7'!G56)/P44","v":0},{"$f":"V45","v":0},null,{"$f":"('8'!E58+'8'!F57+'8'!G56)/Y44","v":0},{"$f":"Y45","v":0}]
[null,"Irregular Work",null,{"$f":"'TSS1'!T43","v":0},null,null,{"$f":"'TSS2'!T37","v":0},null,null,{"$f":"'TSS3'!T37","v":0},null,null,{"$f":"'TSS4'!T37","v":0},null,null,{"$f":"'TSS5'!T37","v":0},null,null,{"$f":"'TSS6'!T37","v":0},null,null,{"$f":"'TSS7'!T37","v":0},null,null,{"$f":"'TSS7'!T37","v":0}]
[null,"Fluctuation",null,null,{"$f":"(E50-E51)/D44","v":0},null,null,{"$f":"(H50-H51)/G44","v":0},null,null,{"$f":"(K50-K51)/J44","v":0},null,null,{"$f":"(N50-N51)/M44","v":0},null,null,{"$f":"(Q50-Q51)/P44","v":0},null,null,{"$f":"(T50-T51)/S44","v":0},null,null,{"$f":"(W50-W51)/V44","v":0},null,null,{"$f":"(Z50-Z51)/Y44","v":0}]
[null,null,null,null,{"$f":"D46+D49","v":0},null,null,{"$f":"G46+G49","v":0},null,null,{"$f":"J46+J49","v":0},null,null,{"$f":"M46+M49","v":0},null,null,{"$f":"P46+P49","v":0},null,null,{"$f":"S46+S49","v":0},null,null,{"$f":"V46+V49","v":0},null,null,{"$f":"Y46+Y49","v":0}]
[null,"Changeover (sec/pc)",null,0,null,null,0,null,null,0,null,null,0,null,null,0,null,null,0,null,null,0,null,null,0]
[null,"Max",null,null,{"$f":"(MAX('TSS1'!C22:Q22))/D44","v":0},null,null,{"$f":"(MAX('TSS2'!C22:Q22))/G44","v":0},null,null,{"$f":"(MAX('TSS3'!C22:Q22))/J44","v":0},null,null,{"$f":"(MAX('TSS4'!C22:Q22))/M44","v":0},null,null,{"$f":"(MAX('TSS5'!F22:T22))/P44","v":0},null,null,{"$f":"(MAX('TSS6'!I22:W22))/S44","v":0},null,null,{"$f":"(MAX('TSS7'!I22:W22))/S44","v":0},null,null,{"$f":"(MAX('TSS8'!C22:Q22))/Y44","v":0}]
[null,"Min",null,null,{"$f":"(MIN('TSS1'!C22:Q22))/D44","v":0},null,null,{"$f":"(MIN('TSS2'!C22:Q22))/G44","v":0},null,null,{"$f":"(MIN('TSS3'!C22:Q22))/J44","v":0},null,null,{"$f":"(MIN('TSS4'!C22:Q22))/M44","v":0},null,null,{"$f":"(MIN('TSS5'!F22:T22))/P44","v":0},null,null,{"$f":"(MIN('TSS6'!I22:W22))/S44","v":0},null,null,{"$f":"(MIN('TSS7'!I22:W22))/S44","v":0},null,null,{"$f":"(MIN('TSS8'!C21:Q21))/Y44","v":0}]
[null,"Average Fluctuation",null,null,{"$f":"(E47/2)+E45+E48","v":0},null,null,{"$f":"(H47/2)+H45+H48","v":0},null,null,{"$f":"(K47/2)+K45+K48","v":0},null,null,{"$f":"(N47/2)+N45+N48","v":0},null,null,{"$f":"(Q47/2)+Q45+Q48","v":0},null,null,{"$f":"(T47/2)+T45+T48","v":0},null,null,{"$f":"(W47/2)+W45+W48","v":0},null,null,{"$f":"(Z47/2)+Z45+Z48","v":0}]
[null,"Actual Cycle Time (sec/pc)",null,0,null,null,0,null,null,0,null,null,0,null,null,0,null,null,0,null,null,0,null,null,0]
[null,"Takt Time",{"$f":"D54","v":0},0,{"$f":"D54","v":0},{"$f":"E54","v":0},0,{"$f":"G54","v":0},{"$f":"H54","v":0},0,{"$f":"J54","v":0},0,0,0,0,0,{"$f":"P54","v":0},0,0,{"$f":"S54","v":0},0,0,{"$f":"V54","v":0},0,0,0,0]
[null,null,null,"Operator1",null,null,"Operator2",null,null,"Operator3",null,null,"Operator4",null,null,"Operator5",null,null,"Operator6",null,null,"Operator7",null,null,"Operator8"]

{"sheet":"Help","index":27,"n_rows":38,"n_cols":12,"rows_kept":38,"cut":false,"hidden":true,"merged":[]}
[{"$f":"lang!B23","v":"Welcome"},{"$f":"lang!B10","v":"Dear user,\n      \n       Welcome to use \"Standardized Work Analyze Tool\" . This is an Application with Ms.Excel based program using MS-VBA (macro).\nThis program useful for create Standardized Work Combination Table & Yamazumi Chart and analyze it so You can decide Your Improvement.\n\nWith Stopwatch feature, you can observe cycle time time with stopwatch built in  directly and then create Standardized Work Combination Table and Yamazumi Chart  Automatically\nNo need stopwatch and paper form again, just take your notebook to production line and directly create Standardized Work Combination Table.\nData result create quickly, so you can do kaizen (improvement) faster.\n\nWe hope this Program will help you to do your improvement on Your Production Line Faster, \nfor improve this Program please send your suggestion at yaseralie@gmail.com\n\nNever Give Up!\n\nSincerely\nYaser Ali Husen\n"},null,null,null,null,null,"Walk","Walk","walking","return","Return"]
[{"$f":"lang!B24","v":"Start Program"},{"$f":"lang!B11","v":"For starting program\nClick Start button in Sheet Menu then Menu Toolbar and Navigation form will appear in top and right your screen"},null,null,null,null,null,{"$f":"lang!B42","v":"Welcome,\nThank You for using This Program. This Program is useful for creating\nStandardized Work Combination Table,\nProduction Capacity Sheet,\nYamazumi Chart.\nAnd Analyze it for your Improvement.\nWe hope this Program will help you to do your production improvement Faster."}]
[{"$f":"lang!B25","v":"Navigation"},{"$f":"lang!B12","v":"With Navigation Form, You can select any Sheet of Time Study Sheet and Standardized Work Combination Table Sheet.\n- \"Define Walk\" to setup words that mean \"Walking activity\" in order Program can recognize \"Walk\" When Insert data from Time Study Sheet Form\n- Add row in Standardized Work Combination Table Form form by click \"Insert Row\" \n- Delete row in Standardized Work Combination Table Form form by click \"Delete Row\"\n\nClick \"Print\" button to print a page"},null,null,null,null,null,{"$f":"lang!B43","v":"Thank You for Purchase this Program.\nNow This Program is Full version and valid forever.\nPlease save and make backup on this computer.\n\nPlease do not copy or move this Program to another computer.\nThis Program is registered only for 1 computer, and could not be copied for another user.\n\nSincerely,\nYaser Ali Husen"}]
[{"$f":"lang!B26","v":"Menu Toolbar"},{"$f":"lang!B13","v":"Menu Toolbar is main tool in this program\nIn this toolbar, There is many tool you can use it such as acces Stopwatch, Create Standardized Work Combination Table and acces Yamazumi Chart\n\nCapacity this Program is for 5 Operators, Please Click \"+/-\" to add/remove form"}]
[{"$f":"lang!B27","v":"Stopwatch"},{"$f":"lang!B14","v":"Stopwatch feature is a tool for observe cycle time directly on Your Production Line\nBefore you use stopwatch, please select a Time Study Sheet and determine each Workname\n\nResult will input in to Time Study Sheet Form Automatically\nThere is 2 type o Stopwatch (For Manual Work and For Machine Time & Irregular Work)\n\nUse Keyboard Control to control Stopwatch use Your Keyboard such as Space for Lap, S key for Start/Stop."}]
[{"$f":"lang!B28","v":"Video Capture"},{"$f":"lang!B15","v":"Video capture\nVideo Capture function is a tool to observe the cycle time of the video\nBefore you use video capture please select a Time Study Sheet and determine each Workname"}]
[{"$f":"lang!B29","v":"TSS Form"},{"$f":"lang!B16","v":"Time Study Sheet Form is a Form  to save your observation data\nYou can insert row manually if row is not enough for your Workname\n\nFill TSS Form First before you use Stopwatch function\n\nAfter calculate value for Your result data, do adjustment if neccesary"}]
[{"$f":"lang!B30","v":"SWCT Form"},{"$f":"lang!B17","v":"SWCT Form is form to draw SWCT Chart\nYou can fill work name and its value manually or automatically using \"Insert Data\" button\n\nIf row is not enough for Your Work name, please insert row or delete row use button in Navigation Form (not allow to add or remove row manually)\nYou can change the Header Format according Your Company Format, Header Area is Range(\"A2:IL4\")"}]
[{"$f":"lang!B31","v":"Create SWCT"},{"$f":"lang!B18","v":"To create Standardized Work Combination Table :\n- After you Observe time and input in to Time Study Sheet, Click \"Insert\" button, Program will insert data from TSS Form in to SWCT Form.\nWalk activity will recognize as Walk time\n- Click \"Draw SWCT\" button, Program will draw SWCT Chart accordance with your data, and determine waiting if there is waiting\n'- Click \"Takt Time\" button to determine takt time\n\n*You can fill work name and its value manually (without insert from Time Study Sheet)"}]
[{"$f":"lang!B32","v":"Production Capacity Form"},{"$f":"lang!B19","v":"Production Capacity is useful to calculate capacity each machine based on Machine Cycle Time (MCT).\nMCT is Hand Work (manual unload-load) + Machine Time (Auto)\n\nClick \"Prod. Cap Sheet\" button in Toolbar to starting calculate Production Capacity Sheet (PCS)\nData for PCS is obtained from Time Study Sheet Form All Operator\n\n*You can change Header format according Your Company Format"}]
[{"$f":"lang!B33","v":"Yamazumi Form"},{"$f":"lang!B20","v":"Yamazumi Chart is useful for analyze Job Balancing between operators\nData yamazumi is obtained from TSS Form & SWCT Form\n\nFor Takt time, Dandori (Type Change) and Actual Cycle Time, please input manually"}]
[{"$f":"lang!B34","v":"Save Result"},{"$f":"lang!B21","v":"After Finish, You can save as the result and file become Non macro Excel File"}]
[{"$f":"lang!B35","v":"Activate Program"},{"$f":"lang!B22","v":"For first time, this program is a trial version for 30 days. To get a Full Version please click \"Activate\" button.\nFill activation form and Input Activation Code.\n\nThis Program is registered only for 1 computer, and could not be copied for another user.\nIf You move or copy to another computer the license will not be valid anymore"}]
[]
[]
[]
[]
[]
[]
[]
[]
[]
[]
[]
[]
[]
["Username","Guest (Unregistered User)"]
["kode 1"]
["kode2",7069598]
["komputer","DESKTOP-DVPH6MA"]
["officecode","{90160000-000F-0000-0000-0000000FF1CE}"]
["tanggal","2017-10-21T21:20:26.790"]
["Status","Trial 30 days"]
["jumlah form",1]
["Status (Trial / Full)",{"$f":"IF(B33=B37,lang!B6,lang!B52)","v":"Trial 30 days"}]
[]
[null,"Trial 30 days"]
[null,"Full Version"]

{"sheet":"lang","index":28,"n_rows":344,"n_cols":19,"rows_kept":344,"cut":false,"hidden":true,"merged":[]}
["Nama","English","English","French","Indonesia","Japanese"]
["first using","First time,Please click Start Button! (This Program is registered only for this Computer, could not be copied or moved to another Computer)","First time,Please click Start Button! (This Program is registered only for this Computer, could not be copied or moved to another Computer)","Première utilisation, Cliquez sur le bouton Démarrer! (Ce programme est enregistré uniquement pour cet ordinateur, il ne peut-être copié ou déplacé vers une autre machine)","Penggunaan pertama kali, Silahkan klik tombol Start (Aplikasi ini hanya untuk 1 komputer, tidak bisa disalin atau dipindah ke komputer yang lain)","初めて、スタートボタンをクリックしてください！\n"]
["created","Created by Yaser Ali Husen (yaseralie@gmail.com)","Created by Yaser Ali Husen (yaseralie@gmail.com)","Créé par Yaser Ali Husen (yaseralie@gmail.com)","Dibuat oleh Yaser Ali Husen (yaseralie@gmail.com)","作成者はYaser Ali Husen(yaseralie@gmail.com)"]
["copyright","Forbidden to remove the name of the creator of this software!!","Forbidden to remove the name of the creator of this software!!","Interdit de supprimer le nom du créateur de ce logiciel!!","Dilarang untuk menghapus nama pembuat aplikasi ini!!","このソフトウェアの作成者の名前を削除することは禁じられています!!"]
["copyright","Copyright by Yaser Ali Husen","Copyright by Yaser Ali Husen","Droit d'auteur Yaser Ali Husen","Hak Cipta oleh Yaser Ali Husen","著作権Yaser Ali Husen"]
["version 30","Trial 30 days","Trial 30 days","Version d'essai de 30 jours","Trial 30 hari","30日間の試用版",null,null,null,null,null,null,null,null,null,null,null,0,0]
["period","Trial period of this application until: ","Trial period of this application until: ","La période d'essai de cette application est valide jusqu'au: ","Periode trial berlaku hingga :","このプログラムの試用期間：",null,null,null,null,null,null,null,null,null,null,null,0,0]
["period","30 days from today","30 days from today","Il reste 30 jours à partir d'aujourd'hui","30 hari dari sekarang","今日から30日",null,null,null,null,null,null,null,null,null,null,null,0,0]
["welcome","Welcome, Status is Trial 30 days, please activate to get full version","Welcome, Status is Trial 30 days, please activate to get full version","Bienvenue, Statut de première instance est de 30 jours","Selamat datang, Status trial 30 hari, silahkan melakukan aktivasi untuk mendapatkan Versi penuh","ようこそ、ステータスは30日間の試用版です。完全版をアクティブするするにしてください",null,null,null,null,null,null,null,null,null,null,null,0,0]
["welcome","Dear user,\n      \n       Welcome to use \"Standardized Work Analyze Tool\" . This is an Application with Ms.Excel based program using MS-VBA (macro).\nThis program useful for create Standardized Work Combination Table & Yamazumi Chart and analyze it so You can decide Your Improvement.\n\nWith Stopwatch feature, you can observe cycle time time with stopwatch built in  directly and then create Standardized Work Combination Table and Yamazumi Chart  Automatically\nNo need stopwatch and paper form again, just take your notebook to production line and directly create Standardized Work Combination Table.\nData result create quickly, so you can do kaizen (improvement) faster.\n\nWe hope this Program will help you to do your improvement on Your Production Line Faster, \nfor improve this Program please send your suggestion at yaseralie@gmail.com\n\nNever Give Up!\n\nSincerely\nYaser Ali Husen\n","Dear user,\n      \n       Welcome to use \"Standardized Work Analyze Tool\" . This is an Application with Ms.Excel based program using MS-VBA (macro).\nThis program useful for create Standardized Work Combination Table & Yamazumi Chart and analyze it so You can decide Your Improvement.\n\nWith Stopwatch feature, you can observe cycle time time with stopwatch built in  directly and then create Standardized Work Combination Table and Yamazumi Chart  Automatically\nNo need stopwatch and paper form again, just take your notebook to production line and directly create Standardized Work Combination Table.\nData result create quickly, so you can do kaizen (improvement) faster.\n\nWe hope this Program will help you to do your improvement on Your Production Line Faster, \nfor improve this Program please send your suggestion at yaseralie@gmail.com\n\nNever Give Up!\n\nSincerely\nYaser Ali Husen\n","Bienvenue, Statut de première instance est de 30 jours","Salam,\n\n     Selamat datang, selamat menggunakan \"Standardized Work Analyze Tool\". Ini adalah aplikasi Ms.Excel dengan tambahan MS-VBA (macro).\nProgram ini berguna untuk membantu pembuatan Tabel Standar Kerja Kombinasi dan Yamazumi Chart dan menganalisa hasilnya dan Anda dapat memutuskan rencana perbaikan.\n\nDengan fitur stopwatch, Anda dapat observasi cycle time dengan fitur stopwatch secara langsung dan membuat TSKK dan yamazumi secara otomatis.\nTidak perlu penggunaan stopwatch dan kertas, hanya bawa laptop ke lini produksi dan secara langsung membuat TSKK.\nMenghasilkan data secara cepat, sehingga perbaikan memnjadi lebih cepat\n\nKami harap program ini dapat membantu perbaikan di lini produksi Anda.\nUntuk perbaikan dan pengambangan aplikasi ini silahkan kirim saran dan kritik Anda ke yaseralie@gmail.com\n\nNever Give Up!\n\nSalam hangat,\nYaser Ali Husen","親愛なるユーザー、\n      \n       ようこ\"そ標準作業分析ツール\"を使用します。 これは、MS-VBA（マクロ）を使用したMs.Excelベースのプログラムによるアプリケーションです。\nこのプログラムは、標準作業組合せ表,工程別能力表,山積表を作成できます。\n\nストップウォッチ機能により、サイクルタイムの時間を直接観測し、標準作業組合表と山積表を自動的に作成することができます。\nストップウォッチや紙のフォームは必要ありません。\nコンピュータを生産ラインに持っていき、標準作業組合せ表を直接作成できます。\n\nこのプログラムがあなたの生産ラインをより速く改善するのに役立つことを願っています。\nこのプログラムを改善するには、yaseralie@gmail.comまでご連絡ください。\n\nネバーギブアップ！\n\nよろしく\nYaser Ali Husen",null,null,null,null,null,null,null,null,null,null,null,0,0]
["Start Program","For starting program\nClick Start button in Sheet Menu then Menu Toolbar and Navigation form will appear in top and right your screen","For starting program\nClick Start button in Sheet Menu then Menu Toolbar and Navigation form will appear in top and right your screen","Démarrage\n\nPour démarrer le programme\n\nCliquez sur le bouton \"Démarrer\" dans la feuille \"Menu\". Les barres de Menu et de Navigation apparaitront au sommet et à droite de votre écran.\n","Untuk menjalankan aplikasi\nKlik tombol Mulai di Sheet Menu kemudian Toolbar dan Form Navigasi akan muncul di atas dan sisi kanan layar","開始プログラム\nシートメニューの[スタート]ボタンをクリックし、メニューツールバーとナビゲーションフォームが画面の右上と右に表示されます",null,null,null,null,null,null,null,null,null,null,null,0,0]
["Navigation Form","With Navigation Form, You can select any Sheet of Time Study Sheet and Standardized Work Combination Table Sheet.\n- \"Define Walk\" to setup words that mean \"Walking activity\" in order Program can recognize \"Walk\" When Insert data from Time Study Sheet Form\n- Add row in Standardized Work Combination Table Form form by click \"Insert Row\" \n- Delete row in Standardized Work Combination Table Form form by click \"Delete Row\"\n\nClick \"Print\" button to print a page","With Navigation Form, You can select any Sheet of Time Study Sheet and Standardized Work Combination Table Sheet.\n- \"Define Walk\" to setup words that mean \"Walking activity\" in order Program can recognize \"Walk\" When Insert data from Time Study Sheet Form\n- Add row in Standardized Work Combination Table Form form by click \"Insert Row\" \n- Delete row in Standardized Work Combination Table Form form by click \"Delete Row\"\n\nClick \"Print\" button to print a page","Barre de Navigation\n\nA l'aide de la barre de Navigation vous pouvez choisir n'importe quelle fiche de chronométrage ou feuille de Table de Combinaison des Opérations.\n\nLe bouton \"Définir la marche\" permet de choisir les mots utilisés pour définir les activités de déplacement pour que le programme reconnaisse automatiquement ces activités et les place directement dans la bonne colonne de la Table de Combinaison des Opérations lors du clic sur le bouton \"Saisir les données\" de la barre de Menu.\n\nAjoutez une ligne dans la table de combinaison des Opérations en cliquant sur le bouton \"Ajouter une ligne\" \n\nEffacez une ligne dans la Table de Combinaison des Opérations en cliquant sur le bouton \"Effacer une ligne\".\n\nPour imprimer la page cliquez sur le bouton \"Imprimer\".","Dengan Form Navigasi, Anda dapat memilih sheet Time Study Sheet dan Sheet TSKK\n- \"Definisi Jalan\" untuk setting kata yang berarti aktivitas jalan agar aplikasi dapat mengenali jalan saat memasukkan data dari TSS\n- Tambahkan baris di TSKK dengan klik \"Tambah Baris\"\n- Kurangi baris di TSKK dengan klik \"Hapus Baris\"\n\nKlik \"Cetak\" untuk cetak halaman","ナビゲーションフォームを使用して、時間観測用紙と標準作業組合せ表を選択することができます。\n- \"歩行を定義\" ,あなたの言語に応じて時間観測用紙の歩行を定義してください。”歩行”定義したをタイプすると、プログラムはその単語が歩行活動であることを認識する\n- \"フォームの追加/削除\"\n標準作業組合せ表にフォームを追加/削除できます。\n\n\nページを印刷するには[印刷]ボタンをクリックしてください",null,null,null,null,null,null,null,null,null,null,null,0,0]
["Menu Toolbar","Menu Toolbar is main tool in this program\nIn this toolbar, There is many tool you can use it such as acces Stopwatch, Create Standardized Work Combination Table and acces Yamazumi Chart\n\nCapacity this Program is for 5 Operators, Please Click \"+/-\" to add/remove form","Menu Toolbar is main tool in this program\nIn this toolbar, There is many tool you can use it such as acces Stopwatch, Create Standardized Work Combination Table and acces Yamazumi Chart\n\nCapacity this Program is for 5 Operators, Please Click \"+/-\" to add/remove form","Barre de Menu.\n\nLa barre de Menu est l'outil principal de ce programme.\n\nAvec cette barre vous avez accès aux outils nécessaires tels que le Chronomètre, le créateur automatique de Table de Combinaison des Opérations ou du Graphe Yamazumi.\n\nCe programme est prévu pour au maximum 5 opérateurs. Utilisez le bouton \"Ajouter / enlever une fiche\" pour ajouter ou enlever une feuille.","Menu Toolbar adalah tool utama dari program ini.\nPada toolbar ini terdapat banyak fungsi seperti menampilkan stopwatch.\nMembuat TSKK dan Yamazumi.\n\nKapasitas program ini untuk 5 operator, silahkan klik \"+/-\" untuk menambahkan form","メニューツールバーはこのプログラムの主なツールです。\nこのツールバーには、ストップウォッチへのアクセス、標準作業組合せ表の作成、山積表へのアクセスなど、多くのツールがあります。\n\nこのプログラムは5人のオペレータのためのものです。フォームを追加/削除するには \"+/-\"をクリックしてください",null,null,null,null,null,null,null,null,null,null,null,0,0]
["Stopwatch","Stopwatch feature is a tool for observe cycle time directly on Your Production Line\nBefore you use stopwatch, please select a Time Study Sheet and determine each Workname\n\nResult will input in to Time Study Sheet Form Automatically\nThere is 2 type o Stopwatch (For Manual Work and For Machine Time & Irregular Work)\n\nUse Keyboard Control to control Stopwatch use Your Keyboard such as Space for Lap, S key for Start/Stop.","Stopwatch feature is a tool for observe cycle time directly on Your Production Line\nBefore you use stopwatch, please select a Time Study Sheet and determine each Workname\n\nResult will input in to Time Study Sheet Form Automatically\nThere is 2 type o Stopwatch (For Manual Work and For Machine Time & Irregular Work)\n\nUse Keyboard Control to control Stopwatch use Your Keyboard such as Space for Lap, S key for Start/Stop.","Chronomètre.\n\nLa fonction chronomètre est un outil pour observer les temps de cycle directement sur votre ligne de production.\nAvant d'utiliser le chronomètre, choisissez une fiche de chronométrage et inscrivez dedans chaque tâche en séquence.\n\nLes temps chronométrés seront automatiquement insérés dans la fiche de chronométrage.\nIl existe deux utilisations du chronomètre. Pour les tâches manuelles. Et pour les temps machine et fréquentiels.\nUtilisez les touches du clavier pour piloter votre chronomètre :\nBarre d'espace = prise de temps au vol (lap)\n\nS pour Démarrer / Arrêter le chronomètre.\n","Fitur stopwatch ada untuk mengobservasi cycle time secara langsung di lini produksi.\nSebelum menggunakan stopwatch, terlebih dahulu pilih TSS dan tentukan setiap nama pekerjaannya\n\nHasil akan ditulis pada form TSS secara otomatis\nAda 2 tipe stopwatch (untuk manual dan untuk mesin & perkarjaan irregular)\n\nGunakan tombol pada keyboard untuk kontrol stopwatch seperti spasi untuk Lap dan S untuk Start/Stop","ストップウオッチ機能は生産ラインのサイクルタイムを直接観察するためのツールです。\nストップウォッチを使用する前に、時間観測用紙を選択し、各作業名を入力。\n\n結果は自動的に時間観測用紙に入力されます。\nストップウォッチは2種類あります（手動作業、機械時間＆不規則作業用）\n\nキーボードコントロールを使用してストップウォッチを制御する。",null,null,null,null,null,null,null,null,null,null,null,0,0]
["Video Capture","Video capture\nVideo Capture function is a tool to observe the cycle time of the video\nBefore you use video capture please select a Time Study Sheet and determine each Workname","Video capture\nVideo Capture function is a tool to observe the cycle time of the video\nBefore you use video capture please select a Time Study Sheet and determine each Workname","Capture Vidéo\nLa fonction Capture Vidéo est un outil pour observer les temps de cycle de la vidéo\nAvant d'utiliser le chronomètre, choisissez une fiche de chronométrage et inscrivez dedans chaque tâche en séquence.","Video Capture\nVideo capture untuk observasi cycle time dari video yang telah diambil.\nSebelum menggunakan fitur Video Capture, pilih form TSS dan tentukan pekerjaannya","ビデオキャプチャ\nビデオキャプチャ機能は、ビデオのサイクル時間を観察するためのツールです。\nビデオキャプチャを使用する前に、時間観測用紙を選択し、各作業名を入力。",null,null,null,null,null,null,null,null,null,null,null,0,0]
["TSS Form","Time Study Sheet Form is a Form  to save your observation data\nYou can insert row manually if row is not enough for your Workname\n\nFill TSS Form First before you use Stopwatch function\n\nAfter calculate value for Your result data, do adjustment if neccesary","Time Study Sheet Form is a Form  to save your observation data\nYou can insert row manually if row is not enough for your Workname\n\nFill TSS Form First before you use Stopwatch function\n\nAfter calculate value for Your result data, do adjustment if neccesary","Fiche de Chronométrage / Fiche FC\n\nLa Fiche de Chronométrage vous sert à sauvegarder vos données observées.\nVous pouvez rajouter des lignes manuellement s'il n'y en a pas suffisamment pour vos observations.\n\nRemplissez la Fiche FC avant d'utiliser les fonctions Chronomètre.\n\nAprès le calcul automatique des données, vous pourrez choisir d'ajuster celles-ci si nécessaire. Votre choix sera retenu pour réaliser la Table de Combinaison des Opérations.\n","Form Time Study Sheet adalah form untuk menyimpan hasil obervasi.\nAnda dapat mensisipkan / menambahkan baris secara manual jika form tidak cukup\n\nIsi form TSS terlebih dahulu sebelum menggunakan fungsi stopwatch\n\nSetelah menantukan nilai dari hasil obervasi, silahkan melakukan adjustment jika perlu","時間観測用紙は、観測データを保存するフォームです。\n",null,null,null,null,null,null,null,null,null,null,null,0,0]
["SWCT Form","SWCT Form is form to draw SWCT Chart\nYou can fill work name and its value manually or automatically using \"Insert Data\" button\n\nIf row is not enough for Your Work name, please insert row or delete row use button in Navigation Form (not allow to add or remove row manually)\nYou can change the Header Format according Your Company Format, Header Area is Range(\"A2:IL4\")","SWCT Form is form to draw SWCT Chart\nYou can fill work name and its value manually or automatically using \"Insert Data\" button\n\nIf row is not enough for Your Work name, please insert row or delete row use button in Navigation Form (not allow to add or remove row manually)\nYou can change the Header Format according Your Company Format, Header Area is Range(\"A2:IL4\")","Fiche TCO\nLa fiche TCO est la fiche pour tracer la Table de Combinaison des Opérations.\nVous pouvez saisir les noms de tâches et leurs valeurs manuellement, ou automatiquement en utilisant le bouton \"Saisir les données\".\n\nS'il n'y a pas suffisamment de lignes pour vos tâches utilisez les boutons \"Ajouter une ligne\" ou \"Enlever une ligne\" de la barre de Navigation. L'ajout ou la soustraction manuelle de ligne n'est pas possible.\n\nVous pouvez modifier l'en-tête pour utiliser celui de votre entreprise. Les cases de l'En-tête vont de A2 à IL4. (\"A2:IL4\")","Form TSKK adalah untuk menggambarkan grafik dari TSKK\nAnda dapat mengisi nama pekerjaan dan nilai waktunya secara manual atau otomatis dengan menggunakan tombol \"Masukkan Data\"\n\nJika baris tidak cukup, silahkan sisipkan baris atau tambahkan baris dengan menggunakan tombol pada Form Navigasi (tidak diijinkan untuk menambahkan secara manual)\nAnda dapat mengganti Header dari format sesuai dengan Format Perusahaan Anda, Area yang bisa diubah adalah Range (\"A2:IL4\")","SWCTフォームはSWCTチャートを描画するフォームです。\n「データの挿入」ボタンを使用して、作業名とその値を手動または自動で入力することができます。\n\n作業名に行が足りない場合は、ナビゲーションフォームに行を挿入または削除する行を使用してください（手動で行を追加または削除することはできません）。\n",null,null,null,null,null,null,null,null,null,null,null,0,0]
["Create SWCT","To create Standardized Work Combination Table :\n- After you Observe time and input in to Time Study Sheet, Click \"Insert\" button, Program will insert data from TSS Form in to SWCT Form.\nWalk activity will recognize as Walk time\n- Click \"Draw SWCT\" button, Program will draw SWCT Chart accordance with your data, and determine waiting if there is waiting\n'- Click \"Takt Time\" button to determine takt time\n\n*You can fill work name and its value manually (without insert from Time Study Sheet)","To create Standardized Work Combination Table :\n- After you Observe time and input in to Time Study Sheet, Click \"Insert\" button, Program will insert data from TSS Form in to SWCT Form.\nWalk activity will recognize as Walk time\n- Click \"Draw SWCT\" button, Program will draw SWCT Chart accordance with your data, and determine waiting if there is waiting\n'- Click \"Takt Time\" button to determine takt time\n\n*You can fill work name and its value manually (without insert from Time Study Sheet)","Créer une TCO\n\nPour créer une Table de Combinaison des Opérations :\n- Après avoir observé les temps et sauvegardés ceux-ci dans la Fiche de Chronométrage, cliquez*sur \"Saisir les données\". Le programme transvasera les données de la Fiche de Chronométrage vers la Fiche TCO.\nLes activités de déplacement seront reconnues comme de la Marche.\n- Cliquez sur le bouton \"Dessiner la TCO\" et le programme dessinera le graphique selon vos données, et déterminera l'attente s'il y en a.\n- Cliquez sur le bouton \"Temps Takt\" pour définir le Temps Takt.\n\n*Vous pouvez remplir les tâches et leurs valeurs manuellement (sans utiliser la fonction de saisie automatique des données depuis la fiche de chronométrage).\n","Untuk membuat Tabel Standar Kerja Kombinasi :\n- Setelah melakukan obeservasi waktu dan input ke form TSS, klik \"Masukkan Data\". Program akan mengambil data dari TSS dan memasukkan ke form TSKK\nAktivitas jalan akan dikenali sebagai waktu berjalan\n- Klik \"Gambar TSKK\", program akan menggambarkan grafik TSKK secara otomatis sesuai data dan menentukan waktu tunggu jika ada waktu tunggu\n- Klik \"Takt Time\" untuk menentukan waktu takt time\n\n*Anda dapat mengisi Nama pekerjaan dan nilai waktunya secara manual (Tanpa mensisipkan dari form TSS)","標準作業組合せ表を作成するには：\n\n- 時間観測用紙を入力した後、 \"データ挿入\"ボタンをクリックしてください。\n歩行作業は歩行時間として認識されます。\n-「グラフ」ボタンをクリックして、\nプログラムは標準作業組合せ表のグラフをを描画する\n- 「タクトタイム」ボタンをクリックして,\nタクトタイムを決定する\n",null,null,null,null,null,null,null,null,null,null,null,0,0]
["Production Capacity Form","Production Capacity is useful to calculate capacity each machine based on Machine Cycle Time (MCT).\nMCT is Hand Work (manual unload-load) + Machine Time (Auto)\n\nClick \"Prod. Cap Sheet\" button in Toolbar to starting calculate Production Capacity Sheet (PCS)\nData for PCS is obtained from Time Study Sheet Form All Operator\n\n*You can change Header format according Your Company Format","Production Capacity is useful to calculate capacity each machine based on Machine Cycle Time (MCT).\nMCT is Hand Work (manual unload-load) + Machine Time (Auto)\n\nClick \"Prod. Cap Sheet\" button in Toolbar to starting calculate Production Capacity Sheet (PCS)\nData for PCS is obtained from Time Study Sheet Form All Operator\n\n*You can change Header format according Your Company Format","Fiche de Capacité de Production\n\nLa Fiche de Capacité de Production est utilisée pour calculer la capacité de chaque machine en fonction des Temps de Cycle Machine (TCM).\n\nLe TCM rassemble l'interaction manuelle (chargement et déchargement manuels) et le temps de production (temps automatique).\n\nSi vous cliquez sur le bouton \"Fiche de Capacité de Production\" dans la barre de Menu, la Fiche de Capacité de Production sera calculée automatiquement. Les données seront récupérées dans les Fiches de Chronométrage de chaque opérateur.\n\nVous pouvez modifier l'en-tête selon le format propre de votre entreprise.\n\n","Tabel Kapasitas Produksi berguna untuk menghitung kapasitas tiap mesin sesuai dengan Machine Cycle Time (MCT).\nMCT adalah Handwork (loading-unloading) + Machine Time (waktu mesin)\n\nKlik \"Tab.Kap.Produksi\" pada toolbar untuk mulai menghitung Tabel Kapasitas Produksi (TKP)\nData untuk TKP diperoleh dari form TSS semua operator\n\nAnda dapat mengubah Header sesuai dengan Format Perusahaan","工程別能力表は、マシンサイクルタイム（MCT）に基づいて各マシンのキャパシティを計算するのに便利です。\n\nMCTはハンドワーク（手動アンロードロード）+マシンタイム（Auto）。\n\n",null,null,null,null,null,null,null,null,null,null,null,0,0]
["Yamazumi Form","Yamazumi Chart is useful for analyze Job Balancing between operators\nData yamazumi is obtained from TSS Form & SWCT Form\n\nFor Takt time, Dandori (Type Change) and Actual Cycle Time, please input manually","Yamazumi Chart is useful for analyze Job Balancing between operators\nData yamazumi is obtained from TSS Form & SWCT Form\n\nFor Takt time, Dandori (Type Change) and Actual Cycle Time, please input manually","Graphe Yamazumi\n\nLe graphe Yamazumi est utilisé pour analyser l'équilibrage des tâches entre opérateurs.\nLes données pour le Yamazumi sont obtenues à partir des Fiches de Chronométrage et des Tables de Combinaison des Opérations.\n\nPour le Takt Time, le Dandori (changement de référence), et le Temps de cycle réel, entrez les données manuellement.\n","Yamazumi Chart berguna untuk menganalisa Job Balancing antar operatr\nData Yamazumi diperoleh dari form TSS dan form TSKK\n\nUntuk Takt Time, Dandori (ganti type) dan Aktual Cycle Time, silahkan input secara manual","山積表はオペレータ間のジョブバランシングの分析に役立ちます\n山積表のデータは時間観測用紙＆標準作業組合せ表から取得\nタクトタイム、段取りおよび実績のサイクルタイムを入力してください",null,null,null,null,null,null,null,null,null,null,null,0,0]
["Save Result","After Finish, You can save as the result and file become Non macro Excel File","After Finish, You can save as the result and file become Non macro Excel File","Sauvegarde\nQuand vous avez terminé, vous pouvez sauvegarder vos résultats et le fichier sans les macros Excel.\n","Setelah selesai, Anda dapat menyimpan hasil dengan format non macro","終了後、結果として保存することができます",null,null,null,null,null,null,null,null,null,null,null,0,0]
["Activate Program","For first time, this program is a trial version for 30 days. To get a Full Version please click \"Activate\" button.\nFill activation form and Input Activation Code.\n\nThis Program is registered only for 1 computer, and could not be copied for another user.\nIf You move or copy to another computer the license will not be valid anymore","For first time, this program is a trial version for 30 days. To get a Full Version please click \"Activate\" button.\nFill activation form and Input Activation Code.\n\nThis Program is registered only for 1 computer, and could not be copied for another user.\nIf You move or copy to another computer the license will not be valid anymore","Activation du programme\n\nCe programme est une version d'évaluation de 30 jours. Pour obtenir l'usage illimité cliquez sur le bouton \"Activer\".\nRemplissez la fiche d'activation avec les codes fournis après paiement.\n\nCe programme est valide pour un seul ordinateur et ne peut être copié pour un autre utilisateur. Si vous déplacez le programme ou le copiez vers un autre ordinateur la licence ne sera plus valide.\n","Untuk penggunaan pertama kali, program ini versi trial untuk 30 hari.\nUntuk mendapatkan Versi Full silahkan klik tombol \"Aktivasi\".\nIsi form aktivasi dan masukkan kode aktivasi\n\nProgram ini teregistrasi hanya untuk 1 komputer dan tidak dapat disalin atau dipindah untuk pengguna yang lain.\nJika dipindah atau disalin maka lisensi tidak akan berlaku.","\n初めての場合、このプログラムは30日間試用版です。 完全版を取得するには、[アクティベーション]ボタンをクリックしてください。\nアクティベーションコードを入力します。\n\n1台のコンピュータでのみ実行してください。別のコンピュータで使用する場合、ライセンスは有効ではありません",null,null,null,null,null,null,null,null,null,null,null,0,0]
["Help","Welcome","Welcome","Bienvenue","Selamat Datang","ようこそ",null,null,null,null,null,null,null,null,null,null,null,0,0]
["Help","Start Program","Start Program","Démarrage","Mulai Program","プログラム開始",null,null,null,null,null,null,null,null,null,null,null,0,0]
["Help","Navigation","Navigation","Navigation","Navigasi","ナビゲーション",null,null,null,null,null,null,null,null,null,null,null,0,0]
["Help","Menu Toolbar","Menu Toolbar","Barre de Menu.","Menu Toolbar","メニューツールバー",null,null,null,null,null,null,null,null,null,null,null,0,0]
["Help","Stopwatch","Stopwatch","Chronomètre","Stopwatch","ストップウォッチ",null,null,null,null,null,null,null,null,null,null,null,0,0]
["Help","Video Capture","Video Capture","Capture Vidéo","Video Capture","ビデオキャプチャ",null,null,null,null,null,null,null,null,null,null,null,0,0]
["Help","TSS Form","TSS Form","Fiche de Chronométrage","Form TSS","時間観測用紙",null,null,null,null,null,null,null,null,null,null,null,0,0]
["Help","SWCT Form","SWCT Form","Fiche TCO","Form TSKK","標準作業組合せ表",null,null,null,null,null,null,null,null,null,null,null,0,0]
["Help","Create SWCT","Create SWCT","Créer une TCO","Gambar TSKK","標準作業組合せ表の作成",null,null,null,null,null,null,null,null,null,null,null,0,0]
["Help","Production Capacity Form","Production Capacity Form","Fiche de Capacité de Production","Tabel Kapasitas Produksi","工程別能力表",null,null,null,null,null,null,null,null,null,null,null,0,0]
["Help","Yamazumi Form","Yamazumi Form","Graphe Yamazumi","Form Yamazumi","山積表",null,null,null,null,null,null,null,null,null,null,null,0,0]
["Help","Save Result","Save Result","Sauvegarde","Simpan Hasil","結果保存",null,null,null,null,null,null,null,null,null,null,null,0,0]
["Help","Activate Program","Activate Program","Activation du programme","Aktivasi Program","プログラムのアクティベーション",null,null,null,null,null,null,null,null,null,null,null,0,0]
["move","Application has been moved or copied to new computer, application could not run, Please download it again from original source","Application has been moved or copied to new computer, application could not run, Please download it again from original source","Demande a été déplacé ou copié à un autre ordinateur, l'application pourrait ne pas fonctionner, S'il vous plaît télécharger à nouveau depuis la source originale","Aplikasi telah dipindah atau disalin ke komputer yang baru, aplikasi tidak dapat berjalan.\nSilahkan unduh kembali ke sumber asli.","プログラムが新しいコンピュータに移動またはコピーされました。プログラムを実行できませんでした。www.lean-tool.comにダウンロードしてください。",null,null,null,null,null,null,null,null,null,null,null,0,0]
["get","Please get copy from original source","Please get copy from original source","S'il vous plaît télécharger à nouveau depuis la source originale","Silahkan dapatkan dari sumber asli","元のソースからコピーを取得してください",null,null,null,null,null,null,null,null,null,null,null,0,0]
["expired","Program trial period has been expired, visit www.LEAN-TOOL.com to get full version","Program trial period has been expired, visit www.LEAN-TOOL.com to get full version","Période d'essai du programme a expiré, visitez www.lean-campus.com pour obtenir la version complète","Periode trial telah tidak berlaku, kunjungi www.LEAN-TOOL.com untuk mendapatkan versi penuh","プログラム試用期間が終了しました。完全版を取得するには、www.LEAN-TOOL.comをご覧ください。",null,null,null,null,null,null,null,null,null,null,null,0,0]
["expired","Trial period  has been expired","Trial period  has been expired","La période d'essai a expiré","Periode trial telah tidak berlaku","試用期間が終了しました",null,null,null,null,null,null,null,null,null,null,null,0,0]
["expired"," days from today"," days from today"," jours à partir d'aujourd'hui"," hari mulai dari hari ini"," 日,今日から",null,null,null,null,null,null,null,null,null,null,null,0,0]
["guest","Guest (Unregistered User)","Guest (Unregistered User)","Invité (utilisateur non enregistré)","Tamu (tidak teregistrasi)","ゲスト（未登録ユーザ）",null,null,null,null,null,null,null,null,null,null,null,0,0]
["welcome","Welcome,\nThank You for using This Program. This Program is useful for creating\nStandardized Work Combination Table,\nProduction Capacity Sheet,\nYamazumi Chart.\nAnd Analyze it for your Improvement.\nWe hope this Program will help you to do your production improvement Faster.","Welcome,\nThank You for using This Program. This Program is useful for creating\nStandardized Work Combination Table,\nProduction Capacity Sheet,\nYamazumi Chart.\nAnd Analyze it for your Improvement.\nWe hope this Program will help you to do your production improvement Faster.","Bienvenue,\nMerci d'utiliser cette application. Ce programme  est utile pour créér une Table de Combinaison Opératoire (TCO), \nune Fiche de Capacité de Production,\nle graphe Yamazumi,\net pour analyser les améliorations possibles.\nNous espérons que ce programme va vous aider à  améliorer vos productions plus rapidement.","Selamat Datang,\nTerima kasih telah menggunakan program ini. Program ini berguna untuk pembuatan \nTabel Standar Kerja Kombinasi,\nTabel Kapasitas Produksi,\nYamazumi,\ndan menganalisa untuk perbaikan\nKami harap program ini dapat bermanfaat untuk perbaikan yang lebih cepat\n","ようこそ、\nこのプログラムを使用していただきありがとうございます。このプログラムは、\n標準作業組合せ表\n工程別能力表\n山積表\nを作成できます。\nこのプログラムがあなたの生産改善をより迅速に行うのに役立つことを願っています。",null,null,null,null,null,null,null,null,null,null,null,0,0]
["Purchase","Thank You for Purchase this Program.\nNow This Program is Full version and valid forever.\nPlease save and make backup on this computer.\n\nPlease do not copy or move this Program to another computer.\nThis Program is registered only for 1 computer, and could not be copied for another user.\n\nSincerely,\nYaser Ali Husen","Thank You for Purchase this Program.\nNow This Program is Full version and valid forever.\nPlease save and make backup on this computer.\n\nPlease do not copy or move this Program to another computer.\nThis Program is registered only for 1 computer, and could not be copied for another user.\n\nSincerely,\nYaser Ali Husen","Merci pour  d'achat. \nMaintenant, ce programme est une version complète et toujours valide. \nS'il vous plaît  faire-sauvegarde sur cet ordinateur.\n\nS'il vous plaît ne pas copier ou déplacer ce programme sur un autre ordinateur.\nCe programme est inscrit uniquement pour 1 ordinateur, et ne peut être copié à un autre utilisateur.\n\nsincèrement,\nYaser Ali Husen","Terima kasih telah melakukan pembelian lisensi.\nSekarang program ini menjadi versi penuh dan berlaku selamanya.\nSilahkan simpan dan buatlah back up pad komputer ini.\n\nMohon untuk tidak melakukan penyalinan ataupun pemindahan ke komputer yang lain.\nProgram ini hanya teregistrasi hanya untuk 1 komputer, dan tidak dapat disalin untuk pengguna yang lain.\n\nHormat kami,\nYaser Ali Husen","このプログラムを購入いただきありがとうございます。\n今、このプログラムはフルバージョンで永久に有効です。\nこのコンピュータに保存してバックアップを作成してください。\n\nこのプログラムを別のコンピュータにコピーまたは移動しないでください。\nこのプログラムは1台のコンピュータにのみ登録されており、他のユーザーにはコピーできません。\n\nよろしく、\nYaser Ali Husen",null,null,null,null,null,null,null,null,null,null,null,0,0]
["userform16","Step 1.                                                                             \nOpen a newer Standardized Work Analyze Tool File","Step 1.                                                                             \nOpen a newer Standardized Work Analyze Tool File","Étape 1.                                                                             \nOuvrez une dernière version de fichier","Step 1.\nBuka File versi terbaru","ステップ１。                                                                            \n新しい標準作業分析ツールのファイルを開く",null,null,null,null,null,null,null,null,null,null,null,0,0]
["userform16","Step 2.                                                                                   \nPlease select a newer Standardized Work Analyze Tool File's location","Step 2.                                                                                   \nPlease select a newer Standardized Work Analyze Tool File's location","Étape 2.                                                                                   \nSélectionner l'emplacement de dernière version","Step 2.\nPiliha lokasi file dengan versi terbaru","ステップ2。                                                                                   \n新しい標準作業分析ツールのファイルの場所を選択してください",null,null,null,null,null,null,null,null,null,null,null,0,0]
["userform16","File Name :","File Name :","Nom du fichier :","Nama File :","ファイル名 ：",null,null,null,null,null,null,null,null,null,null,null,0,0]
["userform16","Select Now","Select Now","Feuilleter","Pilih","選択",null,null,null,null,null,null,null,null,null,null,null,0,0]
["Activate","Activate Now","Activate Now","Activer","Aktivasi Sekarang","今すぐアクティブする",null,null,null,null,null,null,null,null,null,null,null,0,0]
["userform16","Transfer Activation","Transfer Activation","Transférer l'activation","Transfer Aktivasi","アクティベーション転送",null,null,null,null,null,null,null,null,null,null,null,0,0]
["not full version","Your current program is not a full version, please activate first!","Your current program is not a full version, please activate first!","Votre programme actuel est pas une version complète, se il vous plaît activer première!","Program ini bukan versi full, silahkan aktivasi terlebih dahulu","あなたの現在のプログラムは完全版ではありません、最初にアクティブにしてください！",null,null,null,null,null,null,null,null,null,null,null,0,0]
["failed","Activate failed","Activate failed","Activer échoué","Aktivasi gagal","アクティベーションが失敗しました",null,null,null,null,null,null,null,null,null,null,null,0,0]
["Full version","Full Version","Full Version","Version Complète","Versi Penuh","完全版",null,null,null,null,null,null,null,null,null,null,null,0,0]
["success","Transfer activation is succesful for ","Transfer activation is succesful for ","Le transfert est activé avec succès pour ","Transfer aktivasri berhasil untuk ","転送のアクティベーションが成功しました",null,null,null,null,null,null,null,null,null,null,null,0,0]
["success","Succesful","Succesful","Couronné de succès","Berhasil","成功",null,null,null,null,null,null,null,null,null,null,null,0,0]
["userform13","Sheet Selection","Sheet Selection","Sélection de la fiche","Pemilihan Sheet","シート選択",null,null,null,null,null,null,null,null,null,null,null,0,0]
["userform13","Time Study Sheet","Time Study Sheet","Fiche de chronométrage","Time Study Sheet","時間観測用紙",null,null,null,null,null,null,null,null,null,null,null,0,0]
["userform13","SWCT Form","SWCT Form","Fiche TCO","Form TSKK","標準作業組合せ表",null,null,null,null,null,null,null,null,null,null,null,0,0]
["userform13","Clear Data","Clear Data","Effacer","Hapus data","データ消去",null,null,null,null,null,null,null,null,null,null,null,0,0]
["userform13","Define Walk","Define Walk","Définir la marche","Definisikan jalan","歩行を定義",null,null,null,null,null,null,null,null,null,null,null,0,0]
["userform13","Insert Row","Insert Row","Insérer une ligne","Sisipkan baris","行を挿入",null,null,null,null,null,null,null,null,null,null,null,0,0]
["userform13","Delete Row","Delete Row","Effacer une ligne","Hapus baris","行の削除",null,null,null,null,null,null,null,null,null,null,null,0,0]
["userform13","Print","Print","Imprimer","Cetak","印刷",null,null,null,null,null,null,null,null,null,null,null,0,0]
["userform13","Show Toolbar","Show Toolbar","Barre d'outils","Munculkan Toolbar","ツールバーを表示",null,null,null,null,null,null,null,null,null,null,null,0,0]
["userform13","Exit","Exit","Sortir","Keluar","閉じる",null,null,null,null,null,null,null,null,null,null,null,0,0]
["userform13","Capacity :","Capacity :","Capacité :","Kapasitas :","容量：",null,null,null,null,null,null,null,null,null,null,null,0,0]
["userform2","Please define of walk activity for Time Study Sheet according to your language. When You type \"Walk\" that you have defined program will recognize that word is mean Walking Activity","Please define of walk activity for Time Study Sheet according to your language. When You type \"Walk\" that you have defined program will recognize that word is mean Walking Activity","Se il vous plaît définir l'activité de marche pour FC en fonction de votre langue. Lorsque vous tapez \"marcher\", le programme va reconnaître ce mot est moyenne marcher activité","Silahkan definiskan aktivitas berjalan untuk TSS sesuai bahasa Anda.\nKetika Anda mengetik \"Jalan\" maka program akan mengenali bahwa kata tersebut adalah aktivitas berjalan","あなたの言語に応じて時間観測用紙の歩行を定義してください。”歩行”定義したをタイプすると、プログラムはその単語が歩行活動であることを認識する",null,null,null,null,null,null,null,null,null,null,null,0,0]
["userform2","(Name is case sensitive)","(Name is case sensitive)","(Le nom est sensible à la casse)","(Nama case sensive)","（名前は大文字小文字を区別）",null,null,null,null,null,null,null,null,null,null,null,0,0]
["userform2","Current names of walk","Current names of walk","Noms actuels de marche","Nama untuk berjalan saat ini","歩行の現在の名前",null,null,null,null,null,null,null,null,null,null,null,0,0]
["userform2","Change","Change","Changement","Ubah","変更",null,null,null,null,null,null,null,null,null,null,null,0,0]
["userform2","Update","Update","Mettre à jour","Perbarui","アップデイト",null,null,null,null,null,null,null,null,null,null,null,0,0]
["userform2","Cancel","Cancel","Annuler","Batal","取消",null,null,null,null,null,null,null,null,null,null,null,0,0]
["userform2","Define Walk","Define Walk","Définir marche","Definisi Berjalan","歩行定義",null,null,null,null,null,null,null,null,null,null,null,0,0]
["userform2","Standard name for Walk activity has been changed.\nNew Standard Walk Names are\n","Standard name for Walk activity has been changed.\nNew Standard Walk Names are\n","Nom standard pour l'activité de promenade a été changé.\nNouveau nom standard pour l'activité de la marche sont\n","Standar nama untuk berjalan telah diubah.\nNama untuk berjalan adalah ","歩行の標準名が変更されました。\n新しい標準歩行名は",null,null,null,null,null,null,null,null,null,null,null,0,0]
["userform2","Walk Names has been changed","Walk Names has been changed","Nom standard pour l'activité de promenade a été changé","Nama berjalan telah diubah","歩行名が変更されました",null,null,null,null,null,null,null,null,null,null,null,0,0]
["userform1","Product Activation","Product Activation","Activation produit","Aktivasi Produk","プログラムのアクティベーション",null,null,null,null,null,null,null,null,null,null,null,0,0]
["userform1","User","User","Utilisateur","Pengguna","ユーザー",null,null,null,null,null,null,null,null,null,null,null,0,0]
["userform1","Registered Computer","Registered Computer","Ordinateur autorisé","Komputer yang teregistrasi","登録されたコンピュータ",null,null,null,null,null,null,null,null,null,null,null,0,0]
["userform1","Office Code","Office Code","Code office","Kode Office","オフィスコード",null,null,null,null,null,null,null,null,null,null,null,0,0]
["userform1","Serial Number","Serial Number","Numéro de série","Nomor Serial","通し番号",null,null,null,null,null,null,null,null,null,null,null,0,0]
["userform1","Activation code","Activation code","Code d'activation","Kode Aktivasi","アクティベーションコード",null,null,null,null,null,null,null,null,null,null,null,0,0]
["userform1","This Program is registered only for 1 computer, and could not be copied for another user.                                                                                                            Please download at www.LEAN-TOOL.com","This Program is registered only for 1 computer, and could not be copied for another user.                                                                                                            Please download at www.LEAN-TOOL.com","Ce programme est autorisé pour un seul ordinateur, et ne peut être copié pour un autre utilisateur.                                                       \nTéléchargez le à www.LEAN-TOOL.com","Program ini teregistrasi hanya untuk 1 komputer dan tidak dapat disalin ataupun dipindah untuk pengguna yang lain.\nSilahkan unduh kembali di www.LEAN-TOOL.com","このプログラムは1台のコンピュータにのみ登録されており、他のユーザーにはコピーできません。                                                                                                            www.LEAN-TOOL.comからダウンロードしてください!",null,null,null,null,null,null,null,null,null,null,null,0,0]
["userform1","Activate","Activate","Activer","Aktivasi","アクティベーション",null,null,null,null,null,null,null,null,null,null,null,0,0]
["userform1","Activate Later","Activate Later","Activer plus tard","Aktivasi nanti","後で",null,null,null,null,null,null,null,null,null,null,null,0,0]
["userform1","Activation was successful, Registered computer is ","Activation was successful, Registered computer is ","L'activation a réussi, Ordinateur autorisé ","Aktivasi berhasil. Teregistrasi di komputer ","アクティベーションが成功しました。登録のコンピュータは",null,null,null,null,null,null,null,null,null,null,null,0,0]
["userform1","Activation was failed, please enter the correct activation code","Activation was failed, please enter the correct activation code","Activation a échoué, se il vous plaît entrer le code d'activation correct","Aktivasi gagal, silahkan masukkan kode aktivasi yang benar","アクティベーションは失敗しました。正しいアクティベーションコードを入力してください",null,null,null,null,null,null,null,null,null,null,null,0,0]
["userform1","Failed","Failed","Manqué","Gagal","失敗",null,null,null,null,null,null,null,null,null,null,null,0,0]
["userform4","Keyboard Control Active","Keyboard Control Active","Commandes au clavier","Kontrol pada keyboard aktif","キーボードコントロールがアクティブ",null,null,null,null,null,null,null,null,null,null,null,0,0]
["userform4","Use keyboard to control Stopwatch","Use keyboard to control Stopwatch","Utilisez le clavier pour piloter le chronomètre","Menggunakan keyboard untuk kontrol stopwatch","キーボードを使用してストップウォッチを制御する",null,null,null,null,null,null,null,null,null,null,null,0,0]
["userform4","S key = Start/Stop     Space key = Lap      W Key = Start/End Waiting       R key = Reset","S key = Start/Stop     Space key = Lap      W Key = Start/End Waiting       R key = Reset","S = Départ / Arrêt, Espace = Temps intermédiaire, W = Départ / Arrêt de l'attente, R = Remise à zéro","S = Start/Stop   Spasi = Lap    W = Start/Berhenti Menunggu   R = Reset","S キー = 開始/止める     スペースキー = ラップ      W キー = 開始/終了待ち       R キー = リセット",null,null,null,null,null,null,null,null,null,null,null,0,0]
["userform4","Key 1 = to input cycle 1 result","Key 1 = to input cycle 1 result","1 = pour enregistrer le résultat du cycle 1  ","Tombol 1 = Input hasil siklus 1","1 キ = サイクル1の結果を入力",null,null,null,null,null,null,null,null,null,null,null,0,0]
["userform4","Key 2 = to input cycle 2 result","Key 2 = to input cycle 2 result","2 = pour enregistrer le résultat du cycle 2 ","Tombol 2 = Input hasil siklus 2","2キ = サイクル2の結果を入力",null,null,null,null,null,null,null,null,null,null,null,0,0]
["userform4","Key 3 = to input cycle 3 result","Key 3 = to input cycle 3 result","2 = pour enregistrer le résultat du cycle 3","Tombol 3 = Input hasil siklus 3","3キ = サイクル3の結果を入力",null,null,null,null,null,null,null,null,null,null,null,0,0]
["userform4","Arrow up/down = to select amount of cycle","Arrow up/down = to select amount of cycle","Flêche  haut / bas = Sélectionner le nombre de cycles\n","Panah atas/bawah = pilih jumlah siklus","矢印の上下 = サイクル数を選択",null,null,null,null,null,null,null,null,null,null,null,0,0]
["userform4","X key = Exit Keyboard control","X key = Exit Keyboard control","Touche X  = pour sortir du mode clavier","Tombol X = keluar kontrol keyboard","X key = 終了キーボードコントロール",null,null,null,null,null,null,null,null,null,null,null,0,0]
["userform5","Stopwatch for machine time & irregular work","Stopwatch for machine time & irregular work","Chronomètre pour les temps machine et travail fréquentiel","Stopwatch untuk waktu mesin dan pekerjaan irregular","自動 / 付帯作業のストップウォッチ",null,null,null,null,null,null,null,null,null,null,null,0,0]
["userform5","Machine Time / Irregular Work","Machine Time / Irregular Work","Temps machine / travail fréquentiel","Waktu mesin / irregular","自動 / 付帯作業",null,null,null,null,null,null,null,null,null,null,null,0,0]
["userform5","Process / Work name","Process / Work name","Processus / Nom de tâche","Process / Nama pekerjaan","工程名称/作業名",null,null,null,null,null,null,null,null,null,null,null,0,0]
["userform5","Piece / time","Piece / time","Fréquence en pièces","Piece / time","個/時間",null,null,null,null,null,null,null,null,null,null,null,0,0]
["userform5","Option","Option","Option","Pilihan","オプション",null,null,null,null,null,null,null,null,null,null,null,0,0]
["userform5","Result","Result","Mesure","Hasil","結果",null,null,null,null,null,null,null,null,null,null,null,0,0]
["userform5","Time :","Time :","Temps :","Waktu :","時間：",null,null,null,null,null,null,null,null,null,null,null,0,0]
["userform5","Input","Input","Enregistrer","Masukkan","入力",null,null,null,null,null,null,null,null,null,null,null,0,0]
["userform5","Close","Close","Fermer","Tutup","閉じる",null,null,null,null,null,null,null,null,null,null,null,0,0]
["userform5","Reset","Reset","Remise à zéro","Reset","リセット",null,null,null,null,null,null,null,null,null,null,null,0,0]
["userform5","Start","Start","Départ","Mulai","スタート",null,null,null,null,null,null,null,null,null,null,null,0,0]
["userform5","Stopwatch Control","Stopwatch Control","Commandes du Chronomètre","Kontrol stopwatch","ストップウォッチコントロール",null,null,null,null,null,null,null,null,null,null,null,0,0]
["userform5","sec","sec","sec","detik","秒",null,null,null,null,null,null,null,null,null,null,null,0,0]
["userform5","Machine Time","Machine Time","Temps machine","Waktu mesin","自動時間",null,null,null,null,null,null,null,null,null,null,null,0,0]
["userform5","Irregular Work","Irregular Work","Travail fréquentiel","Pekerjaan irregular","付帯作業",null,null,null,null,null,null,null,null,null,null,null,0,0]
["TSS Form","Irregular Work","Irregular Work","Tâche Fréquentielle","Pekerjaan irregular","付帯作業",null,null,null,null,null,null,null,null,null,null,null,0,0]
["userform6","Menu Toolbar","Menu Toolbar","Barre de Menu","Menu Toolbar","メニューツールバー",null,null,null,null,null,null,null,null,null,null,null,0,0]
["userform6","Tool","Tool","Outils","Tool","ツール",null,null,null,null,null,null,null,null,null,null,null,0,0]
["userform6","About","About","A propos","Tentang","情報",null,null,null,null,null,null,null,null,null,null,null,0,0]
["userform6","Manual Work","Manual Work","Tâches manuelles","Pekerjaan Manual","手作業",null,null,null,null,null,null,null,null,null,null,null,0,0]
["userform6","Machine Time/Irr.","Machine Time/Irr.","Cycles Machine / fréquentiels","Waktu mesin / Irr.","自動/付帯作業",null,null,null,null,null,null,null,null,null,null,null,0,0]
["userform6","Video Capture","Video Capture","Analyse vidéo","Video Capture","ビデオキャプチャ",null,null,null,null,null,null,null,null,null,null,null,0,0]
["userform6","Calculate","Calculate","Calculs","Hitung","計算",null,null,null,null,null,null,null,null,null,null,null,0,0]
["userform6","Add/Remove Form","Add/Remove Form","Ajouter/enlever fiche","Tambah/kurangi Form","フォームの追加/削除",null,null,null,null,null,null,null,null,null,null,null,0,0]
["userform6","Insert Data","Insert Data","Saisir des données","Masukkan data","データの挿入",null,null,null,null,null,null,null,null,null,null,null,0,0]
["userform6","Change Scale","Change Scale","Changer d'échelle","Ubah skala","変更スケール",null,null,null,null,null,null,null,null,null,null,null,0,0]
["userform6","Draw SWCT","Draw SWCT","Dessiner  TCO","Gambar TSKK","グラフ",null,null,null,null,null,null,null,null,null,null,null,0,0]
["userform6","Takt Time","Takt Time","Temps Takt","Takt Time","タクトタイム",null,null,null,null,null,null,null,null,null,null,null,0,0]
["userform6","Delete Chart","Delete Chart","Effacer le graphique","Hapus chart","グラフ削除",null,null,null,null,null,null,null,null,null,null,null,0,0]
["userform6","Prod. Cap Sheet","Prod. Cap Sheet","Temps de référence","Tabel Kap. Prod.","工程別能力",null,null,null,null,null,null,null,null,null,null,null,0,0]
["userform6","Yamazumi Chart","Yamazumi Chart","Yamazumi Chart","Yamazumi Chart","山積表",null,null,null,null,null,null,null,null,null,null,null,0,0]
["userform6","Save Result","Save Result","Enregistrer","Simpan Hasil","結果保存",null,null,null,null,null,null,null,null,null,null,null,0,0]
["userform6","Stopwatch","Stopwatch","Chronomètre","Stopwatch","ストップウォッチ",null,null,null,null,null,null,null,null,null,null,null,0,0]
["TSS Form","NO","NO","N°","NO","Ｎｏ．",null,null,null,null,null,null,null,null,null,null,null,0,0]
["userform6","Please select TSS (Time Study Sheet) form first to calculate result (TSS1~TSS8)","Please select TSS (Time Study Sheet) form first to calculate result (TSS1~TSS8)","Choisissez la TSS / FC (Fiche de Chronométrage) avant d'utiliser le  calculateur (TSS1~TSS8)","Silahkan pilih TSS Form sebelum hitung hasil observasi (TSS1~TSS8)","結果を計算するにはまず時間観測用紙を選択してください(TSS1~TSS8)",null,null,null,null,null,null,null,null,null,null,null,0,0]
["userform6","Select TSS (Time Study Sheet)","Select TSS (Time Study Sheet)","Choisissez la TSS / FC (Fiche de Chronométrage)","Pilih form TSS","時間観測用紙選択",null,null,null,null,null,null,null,null,null,null,null,0,0]
["userform6","Please select TSS (Time Study Sheet) form first to run Video Capture (TSS1~TSS8)","Please select TSS (Time Study Sheet) form first to run Video Capture (TSS1~TSS8)","Choisissez la FC (Fiche de Chronométrage) avant d'utiliser la capture vidéo (TSS1~TSS8)","Silahkan pilih TSS Form untuk mulai menjalankan video capture (TSS1~TSS8)","ビデオキャプチャを実行するにはまず時間観測用紙を選択してください(TSS1~TSS8)",null,null,null,null,null,null,null,null,null,null,null,0,0]
["userform6","Please press 'Delete Chart' button to delete existing chart!","Please press 'Delete Chart' button to delete existing chart!","Appuyez sur la gomme <Effacer le graphique> afin de supprimer le graphique existant","Silahkan tekan \"Hapus ","現在のグラフを削除するには、[グラフ削除]ボタンを押してください！",null,null,null,null,null,null,null,null,null,null,null,0,0]
["userform6","Delete chart","Delete chart","Effacer le graphique","Hapus Grafik","グラフ削除",null,null,null,null,null,null,null,null,null,null,null,0,0]
["userform14","Information","Information","Information","Informasi","情報",null,null,null,null,null,null,null,null,null,null,null,0,0]
["userform14","Product Information","Product Information","Information produit","Informasi Produk","プログラム情報",null,null,null,null,null,null,null,null,null,null,null,0,0]
["userform14","User Information","User Information","Information utilisateur","Informasi Pengguna","ユーザー情報",null,null,null,null,null,null,null,null,null,null,null,0,0]
["userform14","Product Version","Product Version","Version produit","Versi Produk","プログラムのバージョン",null,null,null,null,null,null,null,null,null,null,null,0,0]
["userform14","Status","Status","Statut","Status","状態",null,null,null,null,null,null,null,null,null,null,null,0,0]
["userform14","Validity Until","Validity Until","Valide pendant","Berlaku hingga ","有効期限まで",null,null,null,null,null,null,null,null,null,null,null,0,0]
["userform14","Serial Number","Serial Number","Numéro de série","Nomor Serial","通し番号",null,null,null,null,null,null,null,null,null,null,null,0,0]
["userform14","Developer","Developer","Développeur","Pengembang","プログラマー",null,null,null,null,null,null,null,null,null,null,null,0,0]
["userform14","Registered Computer Name","Registered Computer Name","Ordinateur autorisé","Nama Komputer teregistrasi","登録されたコンピュータ",null,null,null,null,null,null,null,null,null,null,null,0,0]
["userform14","Reg. Office Code","Reg. Office Code","Code office","Kode Office","オフィスコード",null,null,null,null,null,null,null,null,null,null,null,0,0]
["userform14","Curent Computer Name","Curent Computer Name","Nom de l'ordinateur","Nama Komputer saat ini","現在のコンピュータ名",null,null,null,null,null,null,null,null,null,null,null,0,0]
["userform14","User","User","Utilisateur","Pengguna","ユーザー",null,null,null,null,null,null,null,null,null,null,null,0,0]
["userform14","This Program is registered only for 1 computer, and could not be copied for another user. Please download at \nwww.LEAN-TOOL.com","This Program is registered only for 1 computer, and could not be copied for another user. Please download at \nwww.LEAN-TOOL.com","Ce programme est autorisé pour un seul ordinateur, et ne peut être copié pour un autre utilisateur.Téléchargez le à \nwww.LEAN-TOOL.com","Program ini teregistrasi hanya untuk 1 komputer dan tidak dapat disalin ataupun dipindah untuk pengguna yang lain.\nSilahkan unduh kembali di www.LEAN-TOOL.com","このプログラムは1台のコンピュータにのみ登録されており、他のユーザーにはコピーできません。                                                                                                            www.LEAN-TOOL.comからダウンロードしてください!",null,null,null,null,null,null,null,null,null,null,null,0,0]
["userform14","Forever","Forever","Pour toujours","Selamanya","永遠",null,null,null,null,null,null,null,null,null,null,null,0,0]
["userform10","Production Capacity Option","Production Capacity Option","Options pour le calcul de capacité","Pilihan untuk Tabel Kapasitas Produksi","工程別能力のオプション",null,null,null,null,null,null,null,null,null,null,null,0,0]
["userform10","Number per process :","Number per process :","Quantité  par cycle","Jumlah per proses","工程あたりの数：",null,null,null,null,null,null,null,null,null,null,null,0,0]
["userform10","Capacity/time","Capacity/time","Capacité / durée","Kapasitas/Waktu","能力/時間",null,null,null,null,null,null,null,null,null,null,null,0,0]
["userform10","Pieces","Pieces","Pièces","Jumlah","個",null,null,null,null,null,null,null,null,null,null,null,0,0]
["userform10","sec","sec","sec","detik","秒",null,null,null,null,null,null,null,null,null,null,null,0,0]
["userform10","Continue","Continue","Poursuivre","Lanjut","つづく",null,null,null,null,null,null,null,null,null,null,null,0,0]
["userform11","Change Scale","Change Scale","Changer d'échelle","Ubah skala","スケール変更",null,null,null,null,null,null,null,null,null,null,null,0,0]
["userform11","Scale (precision)","Scale (precision)","Pas de colonne","Skala (presisi)","スケール（精度）",null,null,null,null,null,null,null,null,null,null,null,0,0]
["userform11","Select or write manually\nFor scale 1 pitch","Select or write manually\nFor scale 1 pitch","Choisissez ou inscrivez  l'échelle d'un pas","Pilih atau tulis manual\nSkala untuk 1 kotak","選択またはタイプ\nスケール1ピッチ"]
["userform11","Set","Set","Définir","Set","定義"]
["userform11","Please select SWCT sheet to set scale (1~5)","Please select SWCT sheet to set scale (1~5)","Choisissez la TCO avant de définir l'échelle (1~5)","Silahkan pilih form TSKK untuk ubah skala (1~5)","スケールを設定するには標準作業組合せ表を選択してください(1~5)"]
["userform11","Wrong Sheet","Wrong Sheet","Mauvaise Fiche","Salah Sheet","間違ったシート"]
["userform12","Yamazumi Data","Yamazumi Data","Yamazumi","Data Yamazumi","山積表のデータ"]
["userform12","Please input data for Yamazumi Chart","Please input data for Yamazumi Chart","Données d'entrée pour Yamazumi","Silahkan masukkan data untuk Yamazumi","山積表のデータを入力してください"]
["userform12","Operator","Operator","Opérateur","Operator","オペレーター"]
["userform12","Qty/Cycle","Qty/Cycle","Qté/Cycle","Jumlah / Siklus","数量/サイクル"]
["userform12","Dandori (Type Change)","Dandori (Type Change)","Changement de Référence","Dandori (ganti type)","段取り（タイプ変更）"]
["userform12","Actual Cycle Time (sec/pc)","Actual Cycle Time (sec/pc)","Temps de cycle réel (sec/pc)","Aktual cycle time (sec/pc)","実績のサイクルタイム（秒/個）"]
["userform12","Takt Time (sec/pc)","Takt Time (sec/pc)","Temps Takt (sec/pc)","Takt Time","タクトタイム（秒/個）"]
["userform12","sec/pc","sec/pc","sec/pc","sec/pc","秒/個"]
["userform12","Based on actual Achievement Report","Based on actual Achievement Report","Sur la base du rapport de réalisation effective","Berdasarkan aktual laporan produksi","実績の業績報告書に基づいて"]
["userform12","<< Back","<< Back","<< Arrière","<< Sebelumnya","<<戻る"]
["userform12","Next >>","Next >>","Suivant >>","Selanjutnya >>","次へ>>"]
["userform12","Yamazumi data is complete, You can change data below (Only in Yellow Cell)","Yamazumi data is complete, You can change data below (Only in Yellow Cell)","Yamazumi données est terminée, Vous pouvez modifier les données ci-dessous (Seulement dans la cellule jaune)","Data Yamazumi lengkap, Anda dapat mengubah data dibawan ini (hanya cell berwarna kuning)","山積表が完成しました。以下のデータを変更できます（黄色セルのみ）"]
["userform12","Complete","Complete","Complete","Selesai","完了"]
["userform9","Number per cycle","Number per cycle","Nombre par cycle","Jumlah per siklus","1サイクルあたりの数"]
["userform9","Pieces","Pieces","Pieces","Jumlah","個"]
["userform9","Continue","Continue","Continuer","Lanjut","つづく"]
["userform8","Calculate result","Calculate result","Calculer les temps de tâches","Perhitungan hasil","結果計算"]
["userform8","Please select option to calculate","Please select option to calculate","Choisissez l'option de calcul","Silahkan pilih untuk menghitung","計算オプションを選択してください"]
["userform8","Smallest","Smallest","Plus petit","Terkecil","最小"]
["userform8","2nd Smallest","2nd Smallest","Deuxième plus petit (2e)","Terkecil kedua","2番目に小さい"]
["userform8","Most repeatable","Most repeatable","Plus petit répétable","Paling banyak muncul","最も反復可能な"]
["userform8","Average","Average","Moyenne","Rata-rata","平均"]
["userform8","Precision","Precision","Précision","Keakuratan","精度"]
["userform8","Calculate","Calculate","Calculer","Hitung","計算"]
["userform7","Set Takt Time","Set Takt Time","Définir le Temps Takt","Set Takt Time","タクトタイム設定"]
["userform7","sec/","sec/","sec/","detik/","秒/"]
["userform7","pcs","pcs","pièce(s)","pc","個"]
["userform3","Stopwatch for manual work","Stopwatch for manual work","Chronomètre pour les tâches manuelles","Stopwatch untuk pekerjaan manual","手作業のストップウォッチ"]
["userform3","Cycle 1","Cycle 1","Cycle 1","Siklus 1","サイクル1"]
["userform3","Cycle 2","Cycle 2","Cycle 2","Siklus 2","サイクル2"]
["userform3","Cycle 3","Cycle 3","Cycle 3","Siklus 3","サイクル3"]
["userform3","Cycle Time","Cycle Time","Temps de cycle","Cycle Time","サイクルタイム"]
["userform3","Input","Input","Entrée","Masukkan","入力"]
["userform3","Work Name","Work Name","Nom de tâche","Nama Pekerjaan","作業名"]
["userform3","Current Work  :","Current Work  :","Tâche en cours  :","Pekerjaan saat ini :","現在の作業："]
["userform3","Next Work      :","Next Work      :","Tâche suivante      :","Pekerjaan selanjutnya :","次の作業："]
["userform3","Total data","Total data","Données","Total data","合計データ"]
["userform3","Current :","Current :","En cours :","Sekarang :","現在："]
["userform3","Finish","Finish","Fin","Selesai","終り"]
["userform3","Lap No :","Lap No :","Lap No :","Nomor Lap :","ラップナンバー："]
["userform3","Total Lap :","Total Lap :","Total Lap :","Total Lap :","トータルラップ："]
["userform3","Start Waiting (W)","Start Waiting (W)","Départ de l'attente (W)","Mulai Menunggu (W)","手待ち開始（W）"]
["userform3","Keyboard Control","Keyboard Control","Commandes Clavier","Kontrol Keyboard","キーボードコントロール"]
["userform3","Reset ( R )","Reset ( R )","Remise à zéro ( R )","Reset ( R )","リセット（R）"]
["userform3","Start (S)","Start (S)","Départ (S)","Mulai (S)","スタート (S)"]
["userform3","Amount of cycle","Amount of cycle","Nombre de cycles à mesurer","Jumlah siklus","サイクル数"]
["userform3","Please select amount of cycle to start stopwatch","Please select amount of cycle to start stopwatch","Choisissez le nombre de cycles à mesurer avant de démarrer le chronomètre","Silahkan pilih jumlah siklus untuk memulai stopwatch","ストップウォッチを開始するサイクル数を選択してください"]
["userform3","Select amount of cycle","Select amount of cycle","Sélectionner le nombre de cycles à mesurer","Pilih jumlah siklus","サイクル数選択"]
["userform3","Lap (Space)","Lap (Space)","Lap (Espace)","Lap (Spasi)","ラップ（スペース）"]
["userform3","Do you want to exit?","Do you want to exit?","Sont sûr de vouloir fin?","Mau keluar?","あなたが終了してもよろしいですか？"]
["userform3","End of Waiting (W)","End of Waiting (W)","Arrêt de l'attente (W)","Akhir Menunggu (W)","手待ち終了（W）"]
["userform3","Please fill form Work Name first before run Stopwatch","Please fill form Work Name first before run Stopwatch","Remplissez le nom de la fiche de chronométrage (FC) avant d'utiliser le chronomètre","Silahkan isi nama pekerjaan sebelum mulai stopwatch","ストップウォッチを実行する前に作業名を入力してください"]
["userform3","Blank Fill","Blank Fill","Fiche vierge","Form kosong","未記入"]
["modul2","Please select TSS (Time Study Sheet) form first to run stopwatch (TSS1~TSS8)","Please select TSS (Time Study Sheet) form first to run stopwatch (TSS1~TSS8)","Choisissez la FC (Fiche de Chronométrage) avant d'utiliser le chronomètre (TSS1~TSS8)","Silahkan pilih form TSS untuk memulai stopwatch (TSS1~TSS8)","ストップウォッチを実行する前まず時間観測用紙を選択してください (TSS1~TSS8)"]
["modul2","Select TSS (Time Study Sheet)","Select TSS (Time Study Sheet)","Choisissez la FC (Fiche de Chronométrage)","Pilih form TSS","時間観測用紙を選択する"]
["modul2","Stop (S)","Stop (S)","Arrêt (S)","Berhenti (S)","停止（S）"]
["modul2","Could not input to form, it has reached data limit","Could not input to form, it has reached data limit","Ne pouvait pas entrer à former, il a atteint la limite de données","Tidak bisa memasukkan ke form, data sudah melampaui batas","フォームに入力できませんでした。データの制限に達しました。"]
["modul2","Over data limit","Over data limit","Elle a atteint la limite de données","Melebihi batas","オーバーデータ制限"]
["form TSS","CYCLE TIME","CYCLE TIME","TEMPS DE CYCLE","CYCLE TIME","サイクルタイム"]
["modul2","Stop","Stop","Arrêt","Berhenti","停止"]
["SWCT Form","TOTAL","TOTAL","TOTAL","TOTAL","合計"]
["userform17","Video Capture","Video Capture","Capture Vidéo","Video Capture","ビデオキャプチャ"]
["userform17","Browse file to open","Browse file to open","Chercher le fichier à ouvrir","Pilih lokasi file","ファイルを参照"]
["userform17","Control","Control","Commandes","Kontrol","コントロール"]
["userform17","Start","Start","Démarrer","Mulai","開始"]
["userform17","Pause","Pause","Pause","Jeda","一時停止"]
["userform17","Stop","Stop","Arrêt","Berhenti","止まれ"]
["userform17","Lap at this point","Lap at this point","Mesurer ce point","Lap pada titik ini","この時点でラップ"]
["userform17","Undo to Prev. Lap","Undo to Prev. Lap","Annuler la dernière mesure","Kembali lap sebelumnya","前のラップに戻す"]
["userform17","Regular Work","Regular Work","Tâche du cycle","Pekerjaan regular","通常の仕事"]
["userform17","Irregular Work","Irregular Work","Tâche fréquentielle","Pekerjaan irregular","不規則な仕事"]
["userform17","Get lap time for :","Get lap time for :","Mesurer le temps de","Ambil lap untuk :","ラップタイム："]
["userform17","Lap Time (sec)","Lap Time (sec)","Temps de tâche","Waktu lap (detik)","ラップタイム（秒）"]
["userform17","Qty/Irr.Job","Qty/Irr.Job","Quantité","Jumlah","数量"]
["userform17","Input to TSS Form","Input to TSS Form","Enregistrer dans la TSS","Masukkan ke Form TSS","TSSシートへ入力"]
["userform17","Reset","Reset","Remise à zéro","Reset","リセット"]
["userform17","Video Mode","Video Mode","Mode vidéo","Mode Video","ビデオモード"]
["userform17","None","None","Aucun","Kosong","なし"]
["userform17","Full","Full","Complet","Full","フル"]
["userform17","Speed Control","Speed Control","Contrôle de vitesse","Kontrol kecepatan","スピードコントロール"]
["userform17","Slow","Slow","Lent","Lambat","遅い"]
["userform17","Fast","Fast","Vite","Cepat","速い"]
["userform17","Normal","Normal","Normal","Normal","平常"]
["userform17","Please fill form Work Name first before run video capture, You can fill Work Name in form while watching video and click reset button to start","Please fill form Work Name first before run video capture, You can fill Work Name in form while watching video and click reset button to start","Remplissez le nom de la fiche de chronométrage (FC) avant d'utiliser le Capture Vidéo, Vous pouvez remplir Nom travail sous forme tout en regardant la vidéo, cliquez sur le bouton Remise à zéro pour démarrer","Silahkan isi nama pekerjaan sebelum mulai video capture, Anda dapat mengisi nama pekerjaan di dalam form saat melihat video dan tekan Reset untuk memulai observasi","ビデオキャプチャを実行する前,最初に作業名を入力してください。\nあなたはビデオを見ながらフォームに作業名を記入し、リセットボタンをクリックして開始することができます"]
["userform17","No Entry","No Entry","Remplir Blank","Kosong","未記入"]
["userform17","Browse","Browse","Parcourir","Pilih","参照"]
["userform17","Delete time for '","Delete time for '","Données a été supprimée pour '","Hapus waktu untuk '","時間削除'"]
["userform17"," on TSS, Continue?"," on TSS, Continue?",", Continuer?"," pada form TSS, lanjutkan?","続けますか？"]
["userform17","Delete data","Delete data","Effacer","Hapus data","データ削除"]
["userform17","Delete Irregular work time for '","Delete Irregular work time for '","Données a été supprimée pour Tâche Fréquentielle '","Hapus data irregular untuk '","不規則な作業時間を削除'"]
["userform17","Play","Play","Lecture","Mainkan","再生"]
["sheet Menu","Standardized Work Analyze Tool\nVideo Capture","Standardized Work Analyze Tool\nVideo Capture","l'outil d'analyse du travail standardisé\nCapture Vidéo","Standardized Work Analyze Tool\nVideo Capture","標準作業分析ツール\nビデオキャプチャ"]
["sheet Menu","*Don’t rename each sheet in this program","*Don’t rename each sheet in this program","* Ne modifiez pas les noms des feuilles de ce programme","*Dilarang mengubah nama sheet pada program ini","*このプログラムの各シートの名前を変更しないでください"]
["sheet Menu","Welcome to use Standardized Work Analyze Tool Ver.5.0\nPlease run it only for 1 computer, if you use in different computer,the license will not be valid",{"$f":"\"Welcome to use Standardized Work Analyze Tool \" &Menu!A2&\n\"\nPlease run it only for 1 computer, if you use in different computer,the license will not be valid\"","v":"Welcome to use Standardized Work Analyze Tool Ver.5.0\nPlease run it only for 1 computer, if you use in different computer,the license will not be valid"},{"$f":"\"Bonne utilisation de l'outil d'analyse du travail standardisé \" & Menu!A2 & \"\nN'utilisez ce programme que sur un seul ordinateur. Si vous l'utilisez sur différentes machines, la license ne sera pas valide.\"","v":"Bonne utilisation de l'outil d'analyse du travail standardisé Ver.5.0\nN'utilisez ce programme que sur un seul ordinateur. Si vous l'utilisez sur différentes machines, la license ne sera pas valide."},{"$f":"\"Selamat datang, selamat menggunakan Standardized Work Analyze Tool \"&Menu!A2&\"\nSilahkan menjalankan program ini hanya untuk 1 komputer, Menggunakan pada komputer yang lain, lisensi menjadi tidak berlaku\"","v":"Selamat datang, selamat menggunakan Standardized Work Analyze Tool Ver.5.0\nSilahkan menjalankan program ini hanya untuk 1 komputer, Menggunakan pada komputer yang lain, lisensi menjadi tidak berlaku"},{"$f":"\"標準作業分析ツール\"&Menu!A2&\"をご利用いただきありがとうございます\n1台のコンピュータでのみ実行してください。別のコンピュータで使用する場合、ライセンスは有効ではありません\"","v":"標準作業分析ツールVer.5.0をご利用いただきありがとうございます\n1台のコンピュータでのみ実行してください。別のコンピュータで使用する場合、ライセンスは有効ではありません"}]
["sheet Menu","If you have a newer version on this computer\nPlease click button below to transfer activation","If you have a newer version on this computer\nPlease click button below to transfer activation","Si vous avez une version plus récente sur cet ordinateur cliquez le bouton ci-dessous pour transférer l'activation\n","Jika memiliki versi terbaru.\nSilahkan klik tombol di bawah untuk melakukan transfer aktivasi","このコンピュータに新しいバージョンがある場合\nアクティベーションを転送するには、下のボタンをクリックしてください"]
["sheet Menu","Start\nShow Toolbar","Start\nShow Toolbar","Démarrer\nBarre d'outils","Mulai\nMunculkan Toolbar","スタート\nツールバーを表示"]
["sheet Menu","Transfer Activation","Transfer Activation","Transférer l'activation","Transfer Aktivasi","転送アクティベーション"]
["TSS Form","PROCESS NAME","PROCESS NAME","CELLULE","NAMA PROSES","工程"]
["TSS Form","WORK NAME\nFor walk activity, please write :","WORK NAME\nFor walk activity, please write :","NOM DE LA TÂCHE\nPour les déplacements, écrivez :","NAMA PEKERJAAN\nUntuk aktivitas berjalan, silahkan tulis:","要素作業\n歩行活動 :"]
["TSS Form","Manual Time","Manual Time","Temps manuel","Waktu Manual","手作業時間"]
["TSS Form","PART NO","PART NO","REF PRODUIT","NO PART","品番"]
["TSS Form","TYPE","TYPE","TYPE","TIPE","型式"]
["TSS Form","SECTION LINE","SECTION LINE","ATELIER","SEKSI / LINI","ライン"]
["TSS Form","TAKT TIME","TAKT TIME","TEMPS TAKT","TAKT TIME","タクトタイム"]
["TSS Form","OPERATION TIME","OPERATION TIME","TEMPS OPERATOIRE","WAKTU OPERASI","時間"]
["TSS Form","ADJUSTMENT\n(Will be used for SWCT Line)","ADJUSTMENT\n(Will be used for SWCT Line)","AJUSTEMENT\n(Temps utilisé pour les lignes du TCO)","Penyesuaian\n(akan digunakan di form TSKK)","調整\n(標準作業組合せ表に使用される時間)"]
["TSS Form","OPERATION","OPERATION","OPERATION","OPERASI","工程名称\n"]
["TSS Form","MACHINE NO","MACHINE NO","MACHINE N°","NO MESIN","機番"]
["TSS Form","MACHINE TIME","MACHINE TIME","TEMPS DE CYCLE AUTOMATIQUE MACHINE","WAKTU MESIN","自動送"]
["TSS Form","AUTO \n(MACHINE TIME)","AUTO \n(MACHINE TIME)","AUTO \n(TEMPS MACHINE)","AUTO\n(WAKTU MESIN)","自動"]
["TSS Form","Irregular Work (example : Take new polybox, etc)","Irregular Work (example : Take new polybox, etc)","Travail Fréquentiel ou aléa (exemple : approvisionner un conteneur, etc.)","Pekerjaan Irregular (contoh :mengambil boks kosong, dll)","付帯作業（例：からボックス取る）"]
["TSS Form","Time","Time","Temps","Waktu","時間"]
["TSS Form","Average Time","Average Time","Temps Moyen","Rata-rata waktu","平均時間"]
["TSS Form","Piece","Piece","Fréquence en pièces","Jumlah (piece)","数〈個）"]
["TSS Form","Time\n(sec/pc)","Time\n(sec/pc)","Temps\n(sec/pièce)","Waktu\n(detik/pc)","時間\n（秒・個）"]
["SWCT Form","PART NO","PART NO","REF PRODUIT","NO PART","品番"]
["SWCT Form","PROCESS","PROCESS","PROCESS","PROSES","行程"]
["SWCT Form","STANDARDIZED WORK COMBINATION TABLE SHEET","STANDARDIZED WORK COMBINATION TABLE SHEET","TABLE DE COMBINAISON DES OPERATIONS","TABEL STANDAR KERJA KOMBINASI","標準作業組合せ表"]
["SWCT Form","WORK NAME","WORK NAME","NOM DE TÂCHE","NAMA PEKERJAAN","作業内容"]
["SWCT Form","MAN","MAN","MANUEL","MANUAL","手作業"]
["SWCT Form","AUTO","AUTO","AUTO","AUTO","自動"]
["SWCT Form","WALK","WALK","MARCHE","JALAN","歩行"]
["SWCT Form","DATE TAKEN","DATE TAKEN","DATE D'ENREGISTREMENT","TANGGAL DIAMBIL","観測日"]
["SWCT Form","PCS / DAY","PCS / DAY","ORDRE / JOUR (PIÈCES)","PCS / HARI","必要数"]
["SWCT Form","LINE TAKT TIME","LINE TAKT TIME","TEMPS TAKT DE LA LIGNE","TAKT TIME LINE","タクトタイムライン"]
["SWCT Form","SECTION / LINE","SECTION / LINE","ATELIER / LIGNE","SEKSI / LINI","ライン"]
["SWCT Form","APPROVED","APPROVED","APPROUVÉ","DISETUJUI","承認"]
["SWCT Form","CHECKED","CHECKED","VÉRIFIÉ","DIPERIKSA","確認"]
["SWCT Form","PREPARED","PREPARED","ENREGISTRE","DIBUAT","作成"]
["SWCT Form","Wait","Wait","Attente","Menunggu","手待ち"]
["SWCT Form"," = Manual"," = Manual"," = Manuel"," = Manual"," = 手作業"]
["SWCT Form"," = Walking"," = Walking"," = Marche"," = Berjalan"," = 歩行"]
["SWCT Form"," = Automatic"," = Automatic"," = Auto"," = Auto"," = 自動"]
["SWCT Form"," = Waiting"," = Waiting"," = Attente"," = Menunggu"," = 手待ち"]
["PCS Form","PRODUCTION CAPACITY SHEET","PRODUCTION CAPACITY SHEET","FICHE DE CAPACITE DE PRODUCTION","TABEL KAPASITAS PRODUKSI","工程別能力表"]
["PCS Form","PAGE","PAGE","PAGE","HALAMAN","ページ"]
["PCS Form","NO. OF UNITS","NO. OF UNITS","TAILLE DE LOT","JUMLAH","工程あたりの数："]
["PCS Form","BASIC TIME","BASIC TIME","TEMPS DE BASE","WAKTU DASAR","基本時間"]
["PCS Form","TIME TO COMPLETE","TIME TO COMPLETE","TEMPS TOTAL","TOTAL WAKTU","完成時間"]
["PCS Form","TOOLS","TOOLS","TOOLS","TOOL","刃具"]
["PCS Form","NO CHANGED","NO CHANGED","INTERVALLE DE CHANGEMENT","JUMLAH TIAP PERGANTIAN","交換個数"]
["PCS Form","TIME TAKEN","TIME TAKEN","TEMPS DE CHANGEMENT","WAKTU","交換時間"]
["PCS Form","PROCESSING CAPACITY\n(","PROCESSING CAPACITY\n(","CAPACITE DE PRODUCTION HORAIRE\n(","KAPASITAS PROSES\n(","加工能力\n("]
["PCS Form","PART NAME","PART NAME","NOM DU PRODUIT","NAMA PART","品名"]
["TSS Form","TIME STUDY SHEET","TIME STUDY SHEET","FICHE DE CHRONOMÉTRAGE","TIME STUDY SHEET","時間観測用紙"]
["TSS Form","DATE","DATE","DATE","TANGGAL","観測日"]
["TSS Form","MEASURED BY","MEASURED BY","CHRONOMETRE PAR","DIUKUR OLEH","観測者"]
["PCS Form","DOC. NO.","DOC. NO.","DOC. N°","NO DOKUMEN","書類番号"]
["PCS Form","LINE","LINE","LIGNE","LINI","ライン名"]
["PCS Form","SECTION","SECTION","ATELIER","SEKSI"," 区間"]
["PCS Form","MANUAL","MANUAL","MANUEL","MANUAL","手作業"]
["modul1","Please select SWCT form to set takt time line (1~5)","Please select SWCT form to set takt time line (1~5)","Choisissez la TCO avant de définir temps takt (1~5)","Silahkan pilih form TSKK untuk set takt time(1~5)","タイムラインを設定するには 標準作業組合せ表を選択してください(1~5)"]
["modul1","Takt Time > Cycle Time, Want to add waiting in graph?","Takt Time > Cycle Time, Want to add waiting in graph?","Ajouter attente en temps takt?","Takt Time > Cycle Time, Tambahkan mengunggu terhadap takt time?","タクトタイム>サイクルタイム, 手待ちグラフを追加したいですか？"]
["modul1","Takt Time > Cycle Time","Takt Time > Cycle Time","Temps Takt > Temps de cycle","Takt Time > Cycle Time","タクトタイム>サイクルタイム"]
["modul1",", data on your TSS sheet is still empty",", data on your TSS sheet is still empty",", Données sur votre Fiche de Chronométrage est vide",", data pada form TSS masih kosong",", 時間観測用紙のデータはまだ空です"]
["modul1","Empty data","Empty data","Données vides","Data kosong","空のデータ"]
["modul1","Data will be overwritten, continue?","Data will be overwritten, continue?","Les données seront écrasées, continuer?","Data akan ditimpa, lanjutkan>","データは上書きされ,\n続けますか？"]
["modul1","Overwritten","Overwritten","écrasement","Data ditimpa","上書"]
["modul1",", your data exceeds the maximum format, please insert row in SWCT Form",", your data exceeds the maximum format, please insert row in SWCT Form",", Vos données dépasse le format maximal, Insérer une ligne",", data melebihi format TSKK, silahkan tambah baris pada form TSKK",", データが最大形式を超えています\n標準作業組合せ表に行を挿入してください"]
["modul1","Exceeds the maximum format","Exceeds the maximum format","Format maximal","Data Over","最大フォーマットを超えています"]
["modul1",", select SWCT sheet to insert data (1~5)",", select SWCT sheet to insert data (1~5)",", choisissez la TCO pour l'enregistrement des données (1~5)",", pilih form TSKK untuk memasukkan data ke TSKK (1~5)",", 標準作業組合せ表を選択してデータを挿入する(1~5)"]
["userform17","Please type or select irregular job here..","Please type or select irregular job here..","S'il vous plaît entrez ou sélectionnez Tâche Fréquentielle…","Silahkan isi nama pekerjaan iregular di sini …","ここに付帯作業を入力してください。"]
["userform13","Data on Current Time Study Sheet Form will be deleted, Continue?","Data on Current Time Study Sheet Form will be deleted, Continue?","Les données sur les Fiche de Chronométrage seront supprimés, Continuer?","Data pada form TSS akan dihapus, lanjutkan?","現在の時間観測用紙のデータは削除されますが、続行しますか？"]
["userform13","Delete data","Delete data","Supprimer les données","Hapus data","データ削除"]
["userform13","Data on Current SWCT Form will be deleted, Continue?","Data on Current SWCT Form will be deleted, Continue?","Les données sur les TCO seront supprimés, Continuer?","Data pada form TSKK akan dihapus, lanjutkan?","現在の標準作業組合せ表のデータは削除されますが、続行しますか？"]
["modul1",", please select SWCT sheet to start draw SWCT (1~5)",", please select SWCT sheet to start draw SWCT (1~5)",", choisissez la TCO avant de dessiner le graphe (1~5)",", silahkan pilih sheet TSKK untuk memulai gambar  TSKK (1~5)",",グラフを描画する標準作業組合せ表を選択してください(1~5)"]
["modul1","Wrong Sheet","Wrong Sheet","Mauvaise Fiche","Salah sheet","間違ったシート"]
["modul1","Total SWCT form is ","Total SWCT form is ","Il y a ","Total form TSKK adalah ","総標準作業組合せ表フォームは"]
["modul1"," , it will be copied to new book, You can save as with new file name. Proceed copy?"," , it will be copied to new book, You can save as with new file name. Proceed copy?"," fiche TCO au total, qui va être copiée dans un nouveau fichier, pour que vous puissiez la sauvegarder sous un nouveau nom. Procéder à la copie ?",", akan disalin ke book baru, Anda dapat melakukan Save As dengan nama baru, Lanjutkan?"," , 新しいワークブックにコピーされ、, 新しいファイル名で保存することができます。 続行しますか？"]
["modul1","Copy Result to new book","Copy Result to new book","Copie un nouveau fichier","Salin ke book baru","結果を新しいワークブックにコピー"]
["modul1",", your total cycle time exceeds the maximum format!",", your total cycle time exceeds the maximum format!",", votre temps de cycle total dépasse le format maximal!",", Cycle time melebihi maksimum format",",サイクルタイムの合計が最大フォーマットを超えています！"]
["modul1","Cycle time over","Cycle time over","Temps de cycle cycle est supérieure à la capacité","Cycle time over","サイクルタイムオーバー"]
["modul1","Entering New Cycle","Entering New Cycle","Début du cycle suivant","Mulai siklus baru","新しいサイクルに入る"]
["modul1","New Cycle","New Cycle","Nouveau cycle","Siklus baru","新しいサイクル"]
["userform7","Takt Time","Takt Time","Temps Takt","Takt Time","タクトタイム"]
["Jalan","Walk","Walk","Marche","Jalan","歩く"]
["userform7","pc","pc","pièce","pc","個"]
["yamazumi sheet","You can change data below (Only in Yellow Cell)","You can change data below (Only in Yellow Cell)","Vous pouvez modifier les données ci-dessous (Seulement dans la cellule jaune)","Anda dapat mengubah data dibawah ini (hanya cell berwarna kuning)","以下のデータを変更できます（黄色セルのみ）"]
["yamazumi sheet","Fluctuation","Fluctuation","Fluctuation","Fluktuasi","バラツキ"]
["yamazumi sheet","Changeover (sec/pc)","Changeover (sec/pc)","Changement (sec/pc)","Dandori (detik/pc)","段取り（秒/個）"]
["yamazumi sheet","Average Fluctuation","Average Fluctuation","Fluctuation moyenne","Rata-rata Fluktuasi","平均バラツキ"]
["userform help","Index","Index","Index","Daftar Isi","目次"]
["userform help","Help","Help","D'aide","Bantuan","ヘルプ"]
["userform help","Content","Content","Teneur","Isi","内容"]
["toolbar","Edit Chart","Edit Chart","Modifier le graphique","Edit Grafik","グラフを編集"]